{"text_format":"1","workbook":"xlsx","n_sheets":3,"sheets":["Credentialing Doc Checklist","Sheet4","Sheet2"],"not_rendered":{"charts":0,"images":0,"macros":1,"external_links":0,"defined_names":4,"comments":0,"pivot_tables":0},"unopened":[],"bounds":{"document_bytes":16777216,"sheet_cells":100000,"rows_first":2000,"rows_last":500,"rows_between":2000,"halvings":0,"cell_chars":16384,"cell_head_chars":4096},"cells_cut":0,"cells_raw":0,"read":"whole","date_system":"1900"}

{"sheet":"Credentialing Doc Checklist","index":0,"n_rows":3,"n_cols":3,"rows_kept":3,"cut":false,"hidden":false,"merged":[[2,0,2,2]]}
[]
["To check if credentialing is required for a specific taxonomy code, enter the taxonomy code here.",null,{"$f":"IFERROR(VLOOKUP(B2, Sheet4!A:C, 3, 0), \"\")","v":""}]
[{"$f":"IFERROR(VLOOKUP(B2, Sheet4!A:C, 2, 0), \"\")","v":""}]

{"sheet":"Sheet4","index":1,"n_rows":861,"n_cols":3,"rows_kept":861,"cut":false,"hidden":true,"merged":[]}
["*TAXONOMY","*SPECIALTY","*CRED REQ"]
["101200000X","Drama Therapist","Credentialing Required  "]
["101Y00000X","Counselor","Credentialing Required  "]
["101YA0400X","Counselor: Addiction (Substance Use Disorder)","Credentialing Required  "]
["101YM0800X","Counselor: Mental Health","Credentialing Required  "]
["101YP1600X","Counselor: Pastoral","Credentialing Required  "]
["101YP2500X","Counselor: Professional","Credentialing Required  "]
["101YS0200X","Counselor: School","Credentialing Required  "]
["102L00000X","Psychoanalyst","Credentialing Required  "]
["102X00000X","Poetry Therapist","Credentialing Not Required"]
["103G00000X","Clinical Neuropsychologist","Credentialing Required  "]
["103GC0700X","Clinical Neuropsychologist: Clinical","Credentialing Required  "]
["103K00000X","Behavioral Analyst","Credentialing Required  "]
["103T00000X","Psychologist","Credentialing Required  "]
["103TA0400X","Psychologist: Addiction (Substance Use Disorder)","Credentialing Required  "]
["103TA0700X","Psychologist: Adult Development & Aging","Credentialing Required  "]
["103TB0200X","Psychologist: Cognitive & Behavioral","Credentialing Required  "]
["103TC0700X","Psychologist: Clinical","Credentialing Required  "]
["103TC1900X","Psychologist: Counseling","Credentialing Required  "]
["103TC2200X","Psychologist: Clinical Child & Adolescent","Credentialing Required  "]
["103TE1000X","Psychologist: Educational","Credentialing Required  "]
["103TE1100X","Psychologist: Exercise & Sports","Credentialing Required  "]
["103TF0000X","Psychologist: Family","Credentialing Required  "]
["103TF0200X","Psychologist: Forensic","Credentialing Required  "]
["103TH0004X","Psychologist: Health","Credentialing Required  "]
["103TH0100X","Psychologist: Health Service","Credentialing Required  "]
["103TM1700X","Psychologist: Men & Masculinity","Credentialing Required  "]
["103TM1800X","Psychologist: Mental Retardation & Developmental Disabilities","Credentialing Required  "]
["103TP0016X","Psychologist: Prescribing (Medical)","Credentialing Required  "]
["103TP0814X","Psychologist: Psychoanalysis","Credentialing Required  "]
["103TP2700X","Psychologist: Psychotherapy","Credentialing Required  "]
["103TP2701X","Psychologist: Group Psychotherapy","Credentialing Required  "]
["103TR0400X","Psychologist: Rehabilitation","Credentialing Required  "]
["103TS0200X","Psychologist: School","Credentialing Required  "]
["103TW0100X","Psychologist: Women","Credentialing Required  "]
["104100000X","Social Worker","Credentialing Required  "]
["1041C0700X","Social Worker: Clinical","Credentialing Required  "]
["1041S0200X","Social Worker: School","Credentialing Required  "]
["106E00000X","Assistant Behavior Analyst","Credentialing Required  "]
["106H00000X","Marriage & Family Therapist","Credentialing Required  "]
["106S00000X","Behavior Technician","Credentialing Not Required"]
["111N00000X","Chiropractor","Credentialing Required  "]
["111NI0013X","Chiropractor: Independent Medical Examiner","Credentialing Required  "]
["111NI0900X","Chiropractor: Internist","Credentialing Required  "]
["111NN0400X","Chiropractor: Neurology","Credentialing Required  "]
["111NN1001X","Chiropractor: Nutrition","Credentialing Required  "]
["111NP0017X","Chiropractor: Pediatric Chiropractor","Credentialing Required  "]
["111NR0200X","Chiropractor: Radiology","Credentialing Required  "]
["111NR0400X","Chiropractor: Rehabilitation","Credentialing Required  "]
["111NS0005X","Chiropractor: Sports Physician","Credentialing Required  "]
["111NT0100X","Chiropractor: Thermography","Credentialing Required  "]
["111NX0100X","Chiropractor: Occupational Medicine","Credentialing Required  "]
["111NX0800X","Chiropractor: Orthopedic","Credentialing Required  "]
["122300000X","Dentist","Credentialing Required  "]
["1223D0001X","Dentist: Dental Public Health","Credentialing Required  "]
["1223D0004X","Dentist: Dentist Anesthesiologist","Specialty Ineligible for Enrollment"]
["1223E0200X","Dentist: Endodontics","Credentialing Required  "]
["1223G0001X","Dentist: General Practice","Credentialing Required  "]
["1223P0106X","Dentist: Oral and Maxillofacial Pathology","Credentialing Required  "]
["1223P0221X","Dentist: Pediatric Dentistry","Credentialing Required  "]
["1223P0300X","Dentist: Periodontics","Credentialing Required  "]
["1223P0700X","Dentist: Prosthodontics","Credentialing Required  "]
["1223S0112X","Dentist: Oral and Maxillofacial Surgery","Credentialing Required  "]
["1223X0008X","Dentist: Oral and Maxillofacial Radiology","Credentialing Required  "]
["1223X0400X","Dentist: Orthodontics and Dentofacial Orthopedics","Credentialing Required  "]
["1223X2210X","Dentist: Orofacial Pain","Credentialing Required  "]
["122400000X","Denturist","Specialty Ineligible for Enrollment"]
["124Q00000X","Dental Hygienist","Specialty Ineligible for Enrollment"]
["125J00000X","Dental Therapist","Specialty Ineligible for Enrollment"]
["125K00000X","Advanced Practice Dental Therapist","Specialty Ineligible for Enrollment"]
["125Q00000X","Oral Medicinist: Dental Providers","Credentialing Not Required"]
["126800000X","Dental Assistant","Specialty Ineligible for Enrollment"]
["126900000X","Dental Laboratory Technician","Specialty Ineligible for Enrollment"]
["132700000X","Dietary Manager","Credentialing Not Required"]
["133N00000X","Nutritionist","Credentialing Required  "]
["133NN1002X","Nutritionist: Nutrition, Education","Credentialing Not Required"]
["133V00000X","Dietitian, Registered","Credentialing Required  "]
["133VN1004X","Dietitian, Registered: Nutrition, Pediatric","Credentialing Required  "]
["133VN1005X","Dietitian, Registered: Nutrition, Renal","Credentialing Required  "]
["133VN1006X","Dietitian, Registered: Nutrition, Metabolic","Credentialing Required  "]
["133VN1101X","Dietitian, Registered: Nutrition, Gerontological","Credentialing Required  "]
["133VN1201X","Dietitian, Registered: Nutrition, Obesity and Weight Management","Credentialing Required  "]
["133VN1301X","Dietitian, Registered: Nutrition, Oncology","Credentialing Required  "]
["133VN1401X","Dietitian, Registered: Nutrition, Pediatric Critical Care","Credentialing Required  "]
["133VN1501X","Dietitian, Registered: Nutrition, Sports Dietetics","Credentialing Required  "]
["136A00000X","Dietetic Technician, Registered","Credentialing Required  "]
["146D00000X","Personal Emergency Response Attendant","Credentialing Not Required"]
["146L00000X","Emergency Medical Technician, Paramedic","Credentialing Not Required"]
["146M00000X","Emergency Medical Technician, Intermediate","Credentialing Not Required"]
["146N00000X","Emergency Medical Technician, Basic","Credentialing Not Required"]
["152WS0006X","Optometrist: Sports Vision","Credentialing Not Required"]
["156F00000X","Technician/Technologist","Credentialing Not Required"]
["156FC0800X","Technician/Technologist: Contact Lens","Credentialing Not Required"]
["156FC0801X","Technician/Technologist: Contact Lens Fitter","Credentialing Not Required"]
["156FX1100X","Technician/Technologist: Ophthalmic","Credentialing Not Required"]
["156FX1101X","Technician/Technologist: Ophthalmic Assistant","Credentialing Not Required"]
["156FX1201X","Technician/Technologist: Optometric Assistant","Credentialing Not Required"]
["156FX1202X","Technician/Technologist: Optometric Technician","Credentialing Not Required"]
["156FX1700X","Technician/Technologist: Ocularist","Credentialing Not Required"]
["156FX1800X","Technician/Technologist: Optician","Credentialing Not Required"]
["156FX1900X","Technician/Technologist: Orthoptist","Credentialing Not Required"]
["163W00000X","Registered Nurse","Credentialing Not Required"]
["163WA0400X","Registered Nurse: Addiction (Substance Use Disorder)","Credentialing Not Required"]
["163WA2000X","Registered Nurse: Administrator","Credentialing Not Required"]
["163WC0200X","Registered Nurse: Critical Care Medicine","Credentialing Not Required"]
["163WC0400X","Registered Nurse: Case Management","Credentialing Not Required"]
["163WC1400X","Registered Nurse: College Health","Credentialing Not Required"]
["163WC1500X","Registered Nurse: Community Health","Credentialing Not Required"]
["163WC1600X","Registered Nurse: Continuing Education/Staff Development","Credentialing Not Required"]
["163WC2100X","Registered Nurse: Continence Care","Credentialing Not Required"]
["163WC3500X","Registered Nurse: Cardiac Rehabilitation","Credentialing Not Required"]
["163WD0400X","Registered Nurse: Diabetes Educator","Credentialing Not Required"]
["163WD1100X","Registered Nurse: Dialysis, Peritoneal","Credentialing Not Required"]
["163WE0003X","Registered Nurse: Emergency","Credentialing Not Required"]
["163WE0900X","Registered Nurse: Enterostomal Therapy","Credentialing Not Required"]
["163WF0300X","Registered Nurse: Flight","Credentialing Not Required"]
["163WG0000X","Registered Nurse: General Practice","Credentialing Not Required"]
["163WG0100X","Registered Nurse: Gastroenterology","Credentialing Not Required"]
["163WG0600X","Registered Nurse: Gerontology","Credentialing Not Required"]
["163WH0200X","Registered Nurse: Home Health","Credentialing Not Required"]
["163WH0500X","Registered Nurse: Hemodialysis","Credentialing Not Required"]
["163WH1000X","Registered Nurse: Hospice","Credentialing Not Required"]
["163WI0500X","Registered Nurse: Infusion Therapy","Credentialing Not Required"]
["163WI0600X","Registered Nurse: Infection Control","Credentialing Not Required"]
["163WL0100X","Registered Nurse: Lactation Consultant","Credentialing Not Required"]
["163WM0102X","Registered Nurse: Maternal Newborn","Credentialing Not Required"]
["163WM0705X","Registered Nurse: Medical-Surgical","Credentialing Not Required"]
["163WM1400X","Registered Nurse: Nurse Massage Therapist (NMT)","Credentialing Not Required"]
["163WN0002X","Registered Nurse: Neonatal Intensive Care","Credentialing Not Required"]
["163WN0003X","Registered Nurse: Neonatal, Low-Risk","Credentialing Not Required"]
["163WN0300X","Registered Nurse: Nephrology","Credentialing Not Required"]
["163WN0800X","Registered Nurse: Neuroscience","Credentialing Not Required"]
["163WN1003X","Registered Nurse: Nutrition Support","Credentialing Not Required"]
["163WP0000X","Registered Nurse: Pain Management","Credentialing Not Required"]
["163WP0200X","Registered Nurse: Pediatrics","Credentialing Not Required"]
["163WP0218X","Registered Nurse: Pediatric Oncology","Credentialing Not Required"]
["163WP0807X","Registered Nurse: Psych/Mental Health, Child & Adolescent","Credentialing Not Required"]
["163WP0808X","Registered Nurse: Psych/Mental Health","Credentialing Not Required"]
["163WP0809X","Registered Nurse: Psych/Mental Health, Adult","Credentialing Not Required"]
["163WP1700X","Registered Nurse: Perinatal","Credentialing Not Required"]
["163WP2201X","Registered Nurse: Ambulatory Care","Credentialing Not Required"]
["163WR0006X","Registered Nurse: Registered Nurse First Assistant","Credentialing Not Required"]
["163WR0400X","Registered Nurse: Rehabilitation","Credentialing Not Required"]
["163WR1000X","Registered Nurse: Reproductive Endocrinology/Infertility","Credentialing Not Required"]
["163WS0121X","Registered Nurse: Plastic Surgery","Credentialing Not Required"]
["163WS0200X","Registered Nurse: School","Credentialing Not Required"]
["163WU0100X","Registered Nurse: Urology","Credentialing Not Required"]
["163WW0000X","Registered Nurse: Wound Care","Credentialing Not Required"]
["163WW0101X","Registered Nurse: Womens Health Care, Ambulatory","Credentialing Not Required"]
["163WX0002X","Registered Nurse: Obstetric, High-Risk","Credentialing Not Required"]
["163WX0003X","Registered Nurse: Obstetric, Inpatient","Credentialing Not Required"]
["163WX0106X","Registered Nurse: Occupational Health","Credentialing Not Required"]
["163WX0200X","Registered Nurse: Oncology","Credentialing Not Required"]
["163WX0601X","Registered Nurse: Otorhinolaryngology & Head-Neck","Credentialing Not Required"]
["163WX0800X","Registered Nurse: Orthopedic","Credentialing Not Required"]
["163WX1100X","Registered Nurse: Ophthalmic","Credentialing Not Required"]
["163WX1500X","Registered Nurse: Ostomy Care","Credentialing Not Required"]
["164W00000X","Licensed Practical Nurse","Credentialing Not Required"]
["164X00000X","Licensed Vocational Nurse","Credentialing Not Required"]
["167G00000X","Licensed Psychiatric Technician","Credentialing Not Required"]
["170100000X","Medical Genetics, Ph.D. Medical Genetics","Credentialing Required  "]
["170300000X","Genetic Counselor, MS","Credentialing Not Required"]
["171000000X","Military Health Care Provider","Credentialing Not Required"]
["1710I1002X","Military Health Care Provider: Independent Duty Corpsman","Credentialing Not Required"]
["1710I1003X","Military Health Care Provider: Independent Duty Medical Technicians","Credentialing Not Required"]
["171100000X","Acupuncturist","Credentialing Required  "]
["171400000X","Health & Wellness Coach","Credentialing Not Required"]
["171M00000X","Case Manager/Care Coordinator","Credentialing Required  "]
["171R00000X","Interpreter","Credentialing Not Required"]
["171W00000X","Contractor: Financial Services","Credentialing Not Required"]
["171WH0202X","Contractor: Home Modifications","Credentialing Not Required"]
["171WV0202X","Contractor: Vehicle Modifications","Credentialing Not Required"]
["172A00000X","Driver","Credentialing Not Required"]
["172M00000X","Mechanotherapist","Credentialing Not Required"]
["172P00000X","Naprapath","Credentialing Not Required"]
["172V00000X","Community Health Worker","Credentialing Required  "]
["173000000X","Legal Medicine (Other Service Providers)","Credentialing Not Required"]
["173C00000X","Reflexologist","Credentialing Not Required"]
["173F00000X","Sleep Specialist, PhD","Credentialing Required  "]
["174200000X","Meals","Credentialing Required  "]
["174400000X","Specialist","Credentialing Required  "]
["1744G0900X","Specialist: Graphics Designer","Credentialing Not Required"]
["1744P3200X","Specialist: Prosthetics Case Management","Credentialing Not Required"]
["1744R1102X","Specialist: Research Study","Credentialing Not Required"]
["1744R1103X","Specialist: Research Data Abstracter/Coder","Credentialing Not Required"]
["174H00000X","Health Educator","Credentialing Not Required"]
["174M00000X","Veterinarian","Credentialing Not Required"]
["174MM1900X","Veterinarian: Medical Research","Credentialing Not Required"]
["174N00000X","Lactation Consultant, Non-RN","Credentialing Not Required"]
["174V00000X","Clinical Ethicist","Credentialing Required  "]
["175F00000X","Naturopath","Credentialing Required  "]
["175L00000X","Homeopath","Credentialing Required  "]
["175M00000X","Midwife, Lay","Credentialing Required  "]
["175T00000X","Peer Specialist (Other Service Providers)","Credentialing Not Required"]
["176B00000X","Midwife","Credentialing Required  "]
["176P00000X","Funeral Director","Credentialing Not Required"]
["177F00000X","Lodging","Credentialing Not Required"]
["183500000X","Pharmacist","Credentialing Not Required"]
["1835C0205X","Pharmacist: Critical Care","Specialty Ineligible for Enrollment"]
["1835G0000X","Pharmacist: General Practice","Specialty Ineligible for Enrollment"]
["1835G0303X","Pharmacist: Geriatric","Specialty Ineligible for Enrollment"]
["1835N0905X","Pharmacist: Nuclear","Specialty Ineligible for Enrollment"]
["1835N1003X","Pharmacist: Nutrition Support","Credentialing Not Required"]
["1835P0018X","Pharmacist: Pharmacist Clinician (PhC)/ Clinical Pharmacy Specialist","Specialty Ineligible for Enrollment"]
["1835P0200X","Pharmacist: Pediatrics","Specialty Ineligible for Enrollment"]
["1835P1200X","Pharmacist: Pharmacotherapy","Specialty Ineligible for Enrollment"]
["1835P1300X","Pharmacist: Psychiatric","Specialty Ineligible for Enrollment"]
["1835P2201X","Pharmacist: Ambulatory Care","Specialty Ineligible for Enrollment"]
["1835X0200X","Pharmacist: Oncology","Specialty Ineligible for Enrollment"]
["183700000X","Pharmacy Technician","Specialty Ineligible for Enrollment"]
["193200000X","Multi-Specialty","Credentialing Not Required"]
["193400000X","Single Specialty","Credentialing Not Required"]
["202C00000X","Independent Medical Examiner","Credentialing Not Required"]
["202K00000X","Phlebology","Credentialing Required  "]
["204C00000X","Neuromusculoskeletal Medicine, Sports Medicine","Credentialing Required  "]
["204D00000X","Neuromusculoskeletal Medicine & OMM","Credentialing Required  "]
["204E00000X","Oral & Maxillofacial Surgery","Credentialing Required  "]
["204F00000X","Transplant Surgery","Credentialing Required  "]
["204R00000X","Electrodiagnostic Medicine","Credentialing Not Required"]
["207K00000X","Allergy & Immunology","Credentialing Required  "]
["207KA0200X","Allergy & Immunology: Allergy","Credentialing Required  "]
["207KI0005X","Allergy & Immunology: Clinical & Laboratory Immunology","Credentialing Required  "]
["207L00000X","Anesthesiology","Credentialing Not Required"]
["207LA0401X","Anesthesiology: Addiction Medicine","Credentialing Required  "]
["207LC0200X","Anesthesiology: Critical Care Medicine","Credentialing Not Required"]
["207LH0002X","Anesthesiology: Hospice and Palliative Medicine","Credentialing Not Required"]
["207LP2900X","Anesthesiology: Pain Medicine","Credentialing Required  "]
["207LP3000X","Anesthesiology: Pediatric Anesthesiology","Credentialing Not Required"]
["207N00000X","Dermatology","Credentialing Required  "]
["207ND0101X","Dermatology: MOHS-Micrographic Surgery","Credentialing Required  "]
["207ND0900X","Dermatology: Dermatopathology","Credentialing Required  "]
["207NI0002X","Dermatology: Clinical & Laboratory Dermatological Immunology","Credentialing Required  "]
["207NP0225X","Dermatology: Pediatric Dermatology","Credentialing Required  "]
["207NS0135X","Dermatology: Procedural Dermatology","Credentialing Required  "]
["207P00000X","Emergency Medicine","Credentialing Not Required"]
["207PE0004X","Emergency Medicine: Emergency Medical Services","Credentialing Not Required"]
["207PE0005X","Emergency Medicine: Undersea and Hyperbaric Medicine","Credentialing Not Required"]
["207PH0002X","Emergency Medicine: Hospice and Palliative Medicine","Credentialing Not Required"]
["207PP0204X","Emergency Medicine: Pediatric Emergency Medicine","Credentialing Not Required"]
["207PS0010X","Emergency Medicine: Sports Medicine","Credentialing Not Required"]
["207PT0002X","Emergency Medicine: Medical Toxicology","Credentialing Not Required"]
["207Q00000X","Family Medicine","Credentialing Required  "]
["207QA0000X","Family Medicine: Adolescent Medicine","Credentialing Required  "]
["207QA0401X","Family Medicine: Addiction Medicine","Credentialing Required  "]
["207QA0505X","Family Medicine: Adult Medicine","Credentialing Required  "]
["207QB0002X","Family Medicine: Obesity Medicine","Credentialing Required  "]
["207QG0300X","Family Medicine: Geriatric Medicine","Credentialing Required  "]
["207QH0002X","Family Medicine: Hospice and Palliative Medicine","Credentialing Required  "]
["207QS0010X","Family Medicine: Sports Medicine","Credentialing Required  "]
["207QS1201X","Family Medicine: Sleep Medicine","Credentialing Required  "]
["207R00000X","Internal Medicine","Credentialing Required  "]
["207RA0000X","Internal Medicine: Adolescent Medicine","Credentialing Required  "]
["207RA0001X","Internal Medicine: Advanced Heart Failure and Transplant Cardiology","Credentialing Required  "]
["207RA0002X","Adult Congenital Heart Disease","Credentialing Required  "]
["207RA0201X","Internal Medicine: Allergy & Immunology","Credentialing Required  "]
["207RA0401X","Internal Medicine: Addiction Medicine","Credentialing Required  "]
["207RB0002X","Internal Medicine: Obesity Medicine","Credentialing Required  "]
["207RC0000X","Internal Medicine: Cardiovascular Disease","Credentialing Required  "]
["207RC0001X","Internal Medicine: Clinical Cardiac Electrophysiology","Credentialing Required  "]
["207RC0200X","Internal Medicine: Critical Care Medicine","Credentialing Required  "]
["207RE0101X","Internal Medicine: Endocrinology, Diabetes & Metabolism","Credentialing Required  "]
["207RG0100X","Internal Medicine: Gastroenterology","Credentialing Required  "]
["207RG0300X","Internal Medicine: Geriatric Medicine","Credentialing Required  "]
["207RH0000X","Internal Medicine: Hematology","Credentialing Required  "]
["207RH0002X","Hospice and Palliative Medicine","Credentialing Required  "]
["207RH0003X","Internal Medicine: Hematology & Oncology","Credentialing Required  "]
["207RH0005X","Hypertension Specialist","Credentialing Not Required"]
["207RI0001X","Internal Medicine: Clinical & Laboratory Immunology","Credentialing Required  "]
["207RI0008X","Internal Medicine: Hepatology","Credentialing Required  "]
["207RI0011X","Internal Medicine: Interventional Cardiology","Credentialing Required  "]
["207RI0200X","Internal Medicine: Infectious Disease","Credentialing Required  "]
["207RM1200X","Internal Medicine: Magnetic Resonance Imaging (MRI)","Credentialing Not Required"]
["207RN0300X","Internal Medicine: Nephrology","Credentialing Required  "]
["207RP1001X","Internal Medicine: Pulmonary Disease","Credentialing Required  "]
["207RR0500X","Internal Medicine: Rheumatology","Credentialing Required  "]
["207RS0010X","Internal Medicine: Sports Medicine","Credentialing Required  "]
["207RS0012X","Internal Medicine: Sleep Medicine","Credentialing Required  "]
["207RT0003X","Internal Medicine: Transplant Hepatology","Credentialing Required  "]
["207RX0202X","Internal Medicine: Medical Oncology","Credentialing Required  "]
["207SC0300X","Medical Genetics: Clinical Cytogenetic","Credentialing Not Required"]
["207SG0201X","Medical Genetics: Clinical Genetics (M.D.)","Credentialing Required  "]
["207SG0202X","Medical Genetics: Clinical Biochemical Genetics","Credentialing Not Required"]
["207SG0203X","Medical Genetics: Clinical Molecular Genetics","Credentialing Not Required"]
["207SG0205X","Medical Genetics: Ph.D. Medical Genetics","Credentialing Not Required"]
["207SM0001X","Medical Genetics: Molecular Genetic Pathology","Credentialing Not Required"]
["207T00000X","Neurological Surgery","Credentialing Required  "]
["207U00000X","Nuclear Medicine","Credentialing Not Required"]
["207UN0901X","Nuclear Medicine: Nuclear Cardiology","Credentialing Not Required"]
["207UN0902X","Nuclear Medicine: Nuclear Imaging & Therapy","Credentialing Not Required"]
["207UN0903X","Nuclear Medicine: In Vivo & In Vitro Nuclear Medicine","Credentialing Not Required"]
["207V00000X","Obstetrics & Gynecology","Credentialing Required  "]
["207VB0002X","Obstetrics & Gynecology: Obesity Medicine","Credentialing Required  "]
["207VC0200X","Obstetrics & Gynecology: Critical Care Medicine","Credentialing Required  "]
["207VE0102X","Obstetrics & Gynecology: Reproductive Endocrinology","Credentialing Required  "]
["207VF0040X","Female Pelvic Medicine and Reconstructive Surgery, OB/GYN","Credentialing Required  "]
["207VG0400X","Obstetrics & Gynecology: Gynecology","Credentialing Required  "]
["207VH0002X","Obstetrics & Gynecology: Hospice and Palliative Medicine","Credentialing Required  "]
["207VM0101X","Obstetrics & Gynecology: Maternal & Fetal Medicine","Credentialing Not Required"]
["207VX0000X","Obstetrics & Gynecology: Obstetrics","Credentialing Required  "]
["207VX0201X","Obstetrics & Gynecology: Gynecologic Oncology","Credentialing Required  "]
["207W00000X","Ophthalmology","Credentialing Required  "]
["207WX0009X","Ophthalmology: Glaucoma Specialist","Credentialing Required  "]
["207WX0107X","Ophthalmology: Retina Specialist","Credentialing Required  "]
["207WX0108X","Ophthalmology: Uveitis and Ocular Inflammatory Disease","Credentialing Required  "]
["207WX0109X","Ophthalmology: Neuro-ophthalmology","Credentialing Required  "]
["207WX0110X","Ophthalmology: Pediatric Ophthalmology and Strabismus Specialist","Credentialing Required  "]
["207WX0120X","Ophthalmology: Cornea and External Diseases Specialist","Credentialing Required  "]
["207WX0200X","Ophthalmology: Ophthalmic Plastic and Reconstructive Surgery","Credentialing Required  "]
["207X00000X","Orthopaedic Surgery","Credentialing Required  "]
["207XP3100X","Orthopaedic Surgery: Pediatric Orthopaedic Surgery","Credentialing Required  "]
["207XS0106X","Orthopaedic Surgery: Hand Surgery","Credentialing Required  "]
["207XS0114X","Orthopaedic Surgery: Adult Reconstructive Orthopaedic Surgery","Credentialing Required  "]
["207XS0117X","Orthopaedic Surgery: Orthopaedic Surgery of the Spine","Credentialing Required  "]
["207XX0004X","Orthopaedic Surgery: Foot and Ankle Surgery","Credentialing Required  "]
["207XX0005X","Orthopaedic Surgery: Sports Medicine","Credentialing Required  "]
["207XX0801X","Orthopaedic Surgery: Orthopaedic Trauma","Credentialing Required  "]
["207Y00000X","Otolaryngology","Credentialing Required  "]
["207YP0228X","Otolaryngology: Pediatric Otolaryngology","Credentialing Required  "]
["207YS0012X","Otolaryngology: Sleep Medicine","Credentialing Required  "]
["207YS0123X","Otolaryngology: Facial Plastic Surgery","Credentialing Required  "]
["207YX0007X","Otolaryngology: Plastic Surgery within the Head & Neck","Credentialing Required  "]
["207YX0602X","Otolaryngology: Otolaryngic Allergy","Credentialing Required  "]
["207YX0901X","Otolaryngology: Otology & Neurotology","Credentialing Required  "]
["207YX0905X","Otolaryngology: Otolaryngology/Facial Plastic Surgery","Credentialing Required  "]
["207ZB0001X","Pathology: Blood Banking & Transfusion Medicine","Credentialing Not Required"]
["207ZC0006X","Pathology: Clinical Pathology","Credentialing Not Required"]
["207ZC0008X","Pathology: Clinical Informatics","Credentialing Not Required"]
["207ZC0500X","Pathology: Cytopathology","Credentialing Not Required"]
["207ZD0900X","Pathology: Dermatopathology","Credentialing Not Required"]
["207ZF0201X","Pathology: Forensic Pathology","Credentialing Not Required"]
["207ZH0000X","Pathology: Hematology","Credentialing Not Required"]
["207ZI0100X","Pathology: Immunopathology","Credentialing Not Required"]
["207ZM0300X","Pathology: Medical Microbiology","Credentialing Not Required"]
["207ZN0500X","Pathology: Neuropathology","Credentialing Not Required"]
["207ZP0007X","Pathology: Molecular Genetic Pathology","Credentialing Not Required"]
["207ZP0101X","Pathology: Anatomic Pathology","Credentialing Not Required"]
["207ZP0102X","Pathology: Anatomic Pathology & Clinical Pathology","Credentialing Not Required"]
["207ZP0104X","Pathology: Chemical Pathology","Credentialing Not Required"]
["207ZP0105X","Pathology: Clinical Pathology/Laboratory Medicine","Credentialing Not Required"]
["207ZP0213X","Pathology: Pediatric Pathology","Credentialing Not Required"]
["208000000X","Pediatrics","Credentialing Required  "]
["2080A0000X","Pediatrics: Adolescent Medicine","Credentialing Required  "]
["2080B0002X","Pediatrics: Obesity Medicine","Credentialing Required  "]
["2080C0008X","Pediatrics: Child Abuse Pediatrics","Credentialing Required  "]
["2080H0002X","Pediatrics: Hospice and Palliative Medicine","Credentialing Required  "]
["2080I0007X","Pediatrics: Clinical & Laboratory Immunology","Credentialing Required  "]
["2080N0001X","Pediatrics: Neonatal-Perinatal Medicine","Credentialing Not Required"]
["2080P0006X","Pediatrics: Developmental - Behavioral Pediatrics","Credentialing Required  "]
["2080P0008X","Pediatrics: Neurodevelopmental Disabilities","Credentialing Required  "]
["2080P0201X","Pediatrics: Pediatric Allergy & Immunology","Credentialing Required  "]
["2080P0202X","Pediatrics: Pediatric Cardiology","Credentialing Required  "]
["2080P0203X","Pediatrics: Pediatric Critical Care Medicine","Credentialing Required  "]
["2080P0204X","Pediatrics: Pediatric Emergency Medicine","Credentialing Not Required"]
["2080P0205X","Pediatrics: Pediatric Endocrinology","Credentialing Required  "]
["2080P0206X","Pediatrics: Pediatric Gastroenterology","Credentialing Required  "]
["2080P0207X","Pediatrics: Pediatric Hematology-Oncology","Credentialing Required  "]
["2080P0208X","Pediatrics: Pediatric Infectious Diseases","Credentialing Required  "]
["2080P0210X","Pediatrics: Pediatric Nephrology","Credentialing Required  "]
["2080P0214X","Pediatrics: Pediatric Pulmonology","Credentialing Required  "]
["2080P0216X","Pediatrics: Pediatric Rheumatology","Credentialing Required  "]
["2080S0010X","Pediatrics: Sports Medicine","Credentialing Required  "]
["2080S0012X","Pediatrics: Sleep Medicine","Credentialing Required  "]
["2080T0002X","Pediatrics: Medical Toxicology","Credentialing Required  "]
["2080T0004X","Pediatrics: Pediatric Transplant Hepatology","Credentialing Required  "]
["208100000X","Physical Medicine & Rehabilitation","Credentialing Required  "]
["2081H0002X","Physical Medicine & Rehabilitation: Hospice and Palliative Medicine","Credentialing Required  "]
["2081N0008X","Physical Medicine & Rehabilitation: Neuromuscular Medicine","Credentialing Required  "]
["2081P0004X","Physical Medicine & Rehabilitation: Spinal Cord Injury Medicine","Credentialing Required  "]
["2081P0010X","Physical Medicine & Rehabilitation: Pediatric Rehabilitation Medicine","Credentialing Required  "]
["2081P0301X","Physical Medicine & Rehabilitation: Brain Injury Medicine","Credentialing Required  "]
["2081P2900X","Physical Medicine & Rehabilitation: Pain Medicine","Credentialing Required  "]
["2081S0010X","Physical Medicine & Rehabilitation: Sports Medicine","Credentialing Required  "]
["208200000X","Plastic Surgery","Credentialing Required  "]
["2082S0099X","Plastic Surgery: Plastic Surgery Within the Head and Neck","Credentialing Required  "]
["2082S0105X","Plastic Surgery: Surgery of the Hand","Credentialing Required  "]
["2083A0100X","Preventive Medicine: Aerospace Medicine","Credentialing Required  "]
["2083A0300X","Preventive Medicine: Addiction Medicine","Credentialing Required  "]
["2083B0002X","Preventive Medicine: Obesity Medicine","Credentialing Required  "]
["2083C0008X","Preventive Medicine: Clinical Informatics","Credentialing Required  "]
["2083P0011X","Preventive Medicine: Undersea and Hyperbaric Medicine","Credentialing Required  "]
["2083P0500X","Preventive Medicine: Preventive Medicine/Occupational Environmental Medicine","Credentialing Required  "]
["2083P0901X","Preventive Medicine: Public Health & General Preventive Medicine","Credentialing Required  "]
["2083S0010X","Preventive Medicine: Sports Medicine","Credentialing Required  "]
["2083T0002X","Preventive Medicine: Medical Toxicology","Credentialing Required  "]
["2083X0100X","Preventive Medicine: Occupational Medicine","Credentialing Required  "]
["2084A0401X","Psychiatry & Neurology: Addiction Medicine","Credentialing Required  "]
["2084A2900X","Psychiatry & Neurology: Neurocritical Care","Credentialing Required  "]
["2084B0002X","Psychiatry & Neurology: Obesity Medicine","Credentialing Required  "]
["2084B0040X","Behavioral Neurology & Neuropsychiatry","Credentialing Required  "]
["2084D0003X","Psychiatry & Neurology: Diagnostic Neuroimaging","Credentialing Required  "]
["2084F0202X","Psychiatry & Neurology: Forensic Psychiatry","Credentialing Required  "]
["2084H0002X","Psychiatry & Neurology: Hospice and Palliative Medicine","Credentialing Required  "]
["2084N0008X","Psychiatry & Neurology: Neuromuscular Medicine","Credentialing Required  "]
["2084N0400X","Psychiatry & Neurology: Neurology","Credentialing Required  "]
["2084N0402X","Psychiatry & Neurology: Neurology with Special Qualifications in Child Neurology","Credentialing Required  "]
["2084N0600X","Psychiatry & Neurology: Clinical Neurophysiology","Credentialing Required  "]
["2084P0005X","Psychiatry & Neurology: Neurodevelopmental Disabilities","Credentialing Required  "]
["2084P0015X","Psychiatry & Neurology: Psychosomatic Medicine","Credentialing Required  "]
["2084P0301X","Psychiatry & Neurology: Brain Injury Medicine","Credentialing Required  "]
["2084P0800X","Psychiatry & Neurology: Psychiatry","Credentialing Required  "]
["2084P0802X","Psychiatry & Neurology: Addiction Psychiatry","Credentialing Required  "]
["2084P0804X","Psychiatry & Neurology: Child & Adolescent Psychiatry","Credentialing Required  "]
["2084P0805X","Psychiatry & Neurology: Geriatric Psychiatry","Credentialing Required  "]
["2084P2900X","Psychiatry & Neurology: Pain Medicine","Credentialing Required  "]
["2084S0010X","Psychiatry & Neurology: Sports Medicine","Credentialing Required  "]
["2084S0012X","Psychiatry & Neurology: Sleep Medicine","Credentialing Required  "]
["2084V0102X","Psychiatry & Neurology: Vascular Neurology","Credentialing Required  "]
["2085B0100X","Radiology: Body Imaging","Credentialing Not Required"]
["2085D0003X","Radiology: Diagnostic Neuroimaging","Credentialing Not Required"]
["2085H0002X","Radiology: Hospice and Palliative Medicine","Credentialing Not Required"]
["2085N0700X","Radiology: Neuroradiology","Credentialing Not Required"]
["2085N0904X","Radiology: Nuclear Radiology","Credentialing Not Required"]
["2085P0229X","Radiology: Pediatric Radiology","Credentialing Not Required"]
["2085R0001X","Radiology: Radiation Oncology","Credentialing Required  "]
["2085R0202X","Radiology: Diagnostic Radiology","Credentialing Not Required"]
["2085R0203X","Radiology: Therapeutic Radiology","Credentialing Required  "]
["2085R0204X","Radiology: Vascular & Interventional Radiology","Credentialing Not Required"]
["2085R0205X","Radiology: Radiological Physics","Credentialing Not Required"]
["2085U0001X","Radiology: Diagnostic Ultrasound","Credentialing Not Required"]
["208600000X","Surgery","Credentialing Required  "]
["2086H0002X","Surgery: Hospice and Palliative Medicine","Credentialing Required  "]
["2086S0102X","Surgery: Surgical Critical Care","Credentialing Required  "]
["2086S0105X","Surgery: Surgery of the Hand","Credentialing Required  "]
["2086S0120X","Surgery: Pediatric Surgery","Credentialing Required  "]
["2086S0122X","Surgery: Plastic and Reconstructive Surgery","Credentialing Required  "]
["2086S0127X","Surgery: Trauma Surgery","Credentialing Required  "]
["2086S0129X","Surgery: Vascular Surgery","Credentialing Required  "]
["2086X0206X","Surgery: Surgical Oncology","Credentialing Required  "]
["208800000X","Urology","Credentialing Required  "]
["2088F0040X","Female Pelvic Medicine and Reconstructive Surgery, Urology Physician","Credentialing Required  "]
["2088P0231X","Urology: Pediatric Urology","Credentialing Required  "]
["208C00000X","Colon & Rectal Surgery","Credentialing Required  "]
["208D00000X","General Practice","Credentialing Required  "]
["208G00000X","Thoracic Surgery (Cardiothoracic Vascular Surgery)","Credentialing Required  "]
["208M00000X","Hospitalist","Credentialing Not Required"]
["208U00000X","Clinical Pharmacology","Credentialing Not Required"]
["208VP0000X","Pain Medicine: Pain Medicine","Credentialing Required  "]
["208VP0014X","Pain Medicine: Interventional Pain Medicine","Credentialing Required  "]
["209800000X","Legal Medicine (Allopathic & Osteopathic)","Credentialing Not Required"]
["211D00000X","Assistant, Podiatric","Credentialing Not Required"]
["213E00000X","Podiatrist","Credentialing Required  "]
["213EG0000X","Podiatrist: General Practice","Credentialing Required  "]
["213EP0504X","Podiatrist: Public Medicine","Credentialing Required  "]
["213EP1101X","Podiatrist: Primary Podiatric Medicine","Credentialing Required  "]
["213ER0200X","Podiatrist: Radiology","Credentialing Not Required"]
["213ES0000X","Podiatrist: Sports Medicine","Credentialing Required  "]
["213ES0103X","Podiatrist: Foot & Ankle Surgery","Credentialing Required  "]
["213ES0131X","Podiatrist: Foot Surgery","Credentialing Required  "]
["221700000X","Art Therapist","Credentialing Not Required"]
["222Q00000X","Developmental Therapist","Credentialing Required  "]
["222Z00000X","Orthotist","Credentialing Not Required"]
["224900000X","Mastectomy Fitter","Credentialing Not Required"]
["224L00000X","Pedorthist","Credentialing Not Required"]
["224P00000X","Prosthetist","Credentialing Not Required"]
["224Y00000X","Clinical Exercise Physiologist","Credentialing Not Required"]
["224Z00000X","Occupational Therapy Assistant","Credentialing Not Required"]
["224ZE0001X","Occupational Therapy Assistant: Environmental Modification","Credentialing Not Required"]
["224ZF0002X","Occupational Therapy Assistant: Feeding, Eating & Swallowing","Credentialing Not Required"]
["224ZL0004X","Occupational Therapy Assistant: Low Vision","Credentialing Not Required"]
["224ZR0403X","Occupational Therapy Assistant: Driving and Community Mobility","Credentialing Not Required"]
["225000000X","Orthotics/Prosthetics Fitter","Credentialing Not Required"]
["225100000X","Physical Therapist","Credentialing Required  "]
["2251C2600X","Physical Therapist: Cardiopulmonary","Credentialing Required  "]
["2251E1200X","Physical Therapist: Ergonomics","Credentialing Required  "]
["2251E1300X","Physical Therapist: Electrophysiology, Clinical","Credentialing Required  "]
["2251G0304X","Physical Therapist: Geriatrics","Credentialing Required  "]
["2251H1200X","Physical Therapist: Hand","Credentialing Required  "]
["2251H1300X","Physical Therapist: Human Factors","Credentialing Required  "]
["2251N0400X","Physical Therapist: Neurology","Credentialing Required  "]
["2251P0200X","Physical Therapist: Pediatrics","Credentialing Required  "]
["2251S0007X","Physical Therapist: Sports","Credentialing Required  "]
["2251X0800X","Physical Therapist: Orthopedic","Credentialing Required  "]
["225200000X","Physical Therapy Assistant","Credentialing Not Required"]
["225400000X","Rehabilitation Practitioner","Credentialing Required  "]
["225500000X","Specialist/Technologist (Respiratory & Rehab)","Credentialing Not Required"]
["2255A2300X","Specialist/Technologist: Athletic Trainer","Credentialing Not Required"]
["2255R0406X","Specialist/Technologist: Rehabilitation, Blind","Credentialing Not Required"]
["225600000X","Dance Therapist","Credentialing Not Required"]
["225700000X","Massage Therapist","Credentialing Required  "]
["225800000X","Recreation Therapist","Credentialing Not Required"]
["225A00000X","Music Therapist","Credentialing Required  "]
["225B00000X","Pulmonary Function Technologist","Credentialing Not Required"]
["225C00000X","Rehabilitation Counselor","Credentialing Required  "]
["225CA2400X","Rehabilitation Counselor: Assistive Technology Practitioner","Credentialing Required  "]
["225CA2500X","Rehabilitation Counselor: Assistive Technology Supplier","Credentialing Required  "]
["225CX0006X","Rehabilitation Counselor: Orientation and Mobility Training Provider","Credentialing Required  "]
["225X00000X","Occupational Therapist","Credentialing Required  "]
["225XE0001X","Occupational Therapist: Environmental Modification","Credentialing Required  "]
["225XE1200X","Occupational Therapist: Ergonomics","Credentialing Required  "]
["225XF0002X","Occupational Therapist: Feeding, Eating & Swallowing","Credentialing Required  "]
["225XG0600X","Occupational Therapist: Gerontology","Credentialing Required  "]
["225XH1200X","Occupational Therapist: Hand","Credentialing Required  "]
["225XH1300X","Occupational Therapist: Human Factors","Credentialing Required  "]
["225XL0004X","Occupational Therapist: Low Vision","Credentialing Required  "]
["225XM0800X","Occupational Therapist: Mental Health","Credentialing Required  "]
["225XN1300X","Occupational Therapist: Neurorehabilitation","Credentialing Required  "]
["225XP0019X","Occupational Therapist: Physical Rehabilitation","Credentialing Required  "]
["225XP0200X","Occupational Therapist: Pediatrics","Credentialing Required  "]
["225XR0403X","Occupational Therapist: Driving and Community Mobility","Credentialing Required  "]
["226000000X","Recreational Therapist Assistant","Credentialing Not Required"]
["226300000X","Kinesiotherapist","Credentialing Not Required"]
["227800000X","Respiratory Therapist, Certified","Credentialing Not Required"]
["2278C0205X","Respiratory Therapist, Certified: Critical Care","Credentialing Not Required"]
["2278E0002X","Respiratory Therapist, Certified: Emergency Care","Credentialing Not Required"]
["2278E1000X","Respiratory Therapist, Certified: Educational","Credentialing Not Required"]
["2278G0305X","Respiratory Therapist, Certified: Geriatric Care","Credentialing Not Required"]
["2278G1100X","Respiratory Therapist, Certified: General Care","Credentialing Not Required"]
["2278H0200X","Respiratory Therapist, Certified: Home Health","Credentialing Not Required"]
["2278P1004X","Respiratory Therapist, Certified: Pulmonary Diagnostics","Credentialing Not Required"]
["2278P1005X","Respiratory Therapist, Certified: Pulmonary Rehabilitation","Credentialing Not Required"]
["2278P1006X","Respiratory Therapist, Certified: Pulmonary Function Technologist","Credentialing Not Required"]
["2278P3800X","Respiratory Therapist, Certified: Palliative/Hospice","Credentialing Not Required"]
["2278P3900X","Respiratory Therapist, Certified: Neonatal/Pediatrics","Credentialing Not Required"]
["2278P4000X","Respiratory Therapist, Certified: Patient Transport","Credentialing Not Required"]
["2278S1500X","Respiratory Therapist, Certified: SNF/Subacute Care","Credentialing Not Required"]
["227900000X","Respiratory Therapist, Registered","Credentialing Not Required"]
["2279C0205X","Respiratory Therapist, Registered: Critical Care","Credentialing Not Required"]
["2279E0002X","Respiratory Therapist, Registered: Emergency Care","Credentialing Not Required"]
["2279E1000X","Respiratory Therapist, Registered: Educational","Credentialing Not Required"]
["2279G0305X","Respiratory Therapist, Registered: Geriatric Care","Credentialing Not Required"]
["2279G1100X","Respiratory Therapist, Registered: General Care","Credentialing Not Required"]
["2279H0200X","Respiratory Therapist, Registered: Home Health","Credentialing Not Required"]
["2279P1004X","Respiratory Therapist, Registered: Pulmonary Diagnostics","Credentialing Not Required"]
["2279P1005X","Respiratory Therapist, Registered: Pulmonary Rehabilitation","Credentialing Not Required"]
["2279P1006X","Respiratory Therapist, Registered: Pulmonary Function Technologist","Credentialing Not Required"]
["2279P3800X","Respiratory Therapist, Registered: Palliative/Hospice","Credentialing Not Required"]
["2279P3900X","Respiratory Therapist, Registered: Neonatal/Pediatrics","Credentialing Not Required"]
["2279P4000X","Respiratory Therapist, Registered: Patient Transport","Credentialing Not Required"]
["2279S1500X","Respiratory Therapist, Registered: SNF/Subacute Care","Credentialing Not Required"]
["229N00000X","Anaplastologist","Credentialing Not Required"]
["231H00000X","Audiologist","Credentialing Required  "]
["231HA2400X","Audiologist: Assistive Technology Practitioner","Credentialing Not Required"]
["231HA2500X","Audiologist: Assistive Technology Supplier","Credentialing Not Required"]
["235500000X","Specialist/Technologist (Speech & Hearing)","Credentialing Not Required"]
["2355A2700X","Specialist/Technologist: Audiology Assistant","Credentialing Not Required"]
["2355S0801X","Specialist/Technologist: Speech-Language Assistant","Credentialing Not Required"]
["235Z00000X","Speech-Language Pathologist","Credentialing Required  "]
["237600000X","Audiologist-Hearing Aid Fitter","Credentialing Not Required"]
["237700000X","Hearing Instrument Specialist","Credentialing Not Required"]
["242T00000X","Perfusionist","Credentialing Not Required"]
["243U00000X","Radiology Practitioner Assistant","Credentialing Not Required"]
["246Q00000X","Spec/Tech, Pathology","Credentialing Not Required"]
["246QB0000X","Spec/Tech, Pathology: Blood Banking","Credentialing Not Required"]
["246QC1000X","Spec/Tech, Pathology: Chemistry","Credentialing Not Required"]
["246QC2700X","Spec/Tech, Pathology: Cytotechnology","Credentialing Not Required"]
["246QH0000X","Spec/Tech, Pathology: Hematology","Credentialing Not Required"]
["246QH0401X","Spec/Tech, Pathology: Hemapheresis Practitioner","Credentialing Not Required"]
["246QH0600X","Spec/Tech, Pathology: Histology","Credentialing Not Required"]
["246QI0000X","Spec/Tech, Pathology: Immunology","Credentialing Not Required"]
["246QL0900X","Spec/Tech, Pathology: Laboratory Management","Credentialing Not Required"]
["246QL0901X","Spec/Tech, Pathology: Laboratory Management, Diplomate","Credentialing Not Required"]
["246QM0706X","Spec/Tech, Pathology: Medical Technologist","Credentialing Not Required"]
["246QM0900X","Spec/Tech, Pathology: Microbiology","Credentialing Not Required"]
["246R00000X","Technician, Pathology","Credentialing Not Required"]
["246RH0600X","Technician, Pathology: Histology","Credentialing Not Required"]
["246RM2200X","Technician, Pathology: Medical Laboratory","Credentialing Not Required"]
["246RP1900X","Technician, Pathology: Phlebotomy","Credentialing Not Required"]
["246W00000X","Technician, Cardiology","Credentialing Not Required"]
["246X00000X","Spec/Tech, Cardiovascular","Credentialing Not Required"]
["246XC2901X","Spec/Tech, Cardiovascular: Cardiovascular Invasive Specialist","Credentialing Not Required"]
["246XC2903X","Spec/Tech, Cardiovascular: Vascular Specialist","Credentialing Not Required"]
["246XS1301X","Spec/Tech, Cardiovascular: Sonography","Credentialing Not Required"]
["246Y00000X","Spec/Tech, Health Info","Credentialing Not Required"]
["246YC3301X","Spec/Tech, Health Info: Coding Specialist, Hospital Based","Credentialing Not Required"]
["246YC3302X","Spec/Tech, Health Info: Coding Specialist, Physician Office Based","Credentialing Not Required"]
["246YR1600X","Spec/Tech, Health Info: Registered Record Administrator","Credentialing Not Required"]
["246Z00000X","Specialist/Technologist, Other","Credentialing Not Required"]
["246ZA2600X","Specialist/Technologist, Other: Art, Medical","Credentialing Not Required"]
["246ZB0301X","Specialist/Technologist, Other: Biomedical Engineering","Credentialing Not Required"]
["246ZB0302X","Specialist/Technologist, Other: Biomedical Photographer","Credentialing Not Required"]
["246ZB0500X","Specialist/Technologist, Other: Biochemist","Credentialing Not Required"]
["246ZB0600X","Specialist/Technologist, Other: Biostatistician","Credentialing Not Required"]
["246ZC0007X","Specialist/Technologist, Other: Certified First Assistant","Credentialing Not Required"]
["246ZE0500X","Specialist/Technologist, Other: EEG","Credentialing Not Required"]
["246ZE0600X","Specialist/Technologist, Other: Electroneurodiagnostic","Credentialing Not Required"]
["246ZG0701X","Specialist/Technologist, Other: Graphics Methods","Credentialing Not Required"]
["246ZG1000X","Specialist/Technologist, Other: Geneticist, Medical (PhD)","Credentialing Not Required"]
["246ZI1000X","Specialist/Technologist, Other: Illustration, Medical","Credentialing Not Required"]
["246ZN0300X","Specialist/Technologist, Other: Nephrology","Credentialing Not Required"]
["246ZS0400X","Specialist/Technologist, Other: Surgical","Credentialing Not Required"]
["246ZS0410X","Specialist/Technologist, Other: Surgical Technologist","Credentialing Not Required"]
["246ZX2200X","Specialist/Technologist, Other: Orthopedic Assistant","Credentialing Not Required"]
["247000000X","Technician, Health Information","Credentialing Not Required"]
["2470A2800X","Technician, Health Information: Assistant Record Technician","Credentialing Not Required"]
["247100000X","Radiologic Technologist","Credentialing Not Required"]
["2471B0102X","Radiologic Technologist: Bone Densitometry","Credentialing Not Required"]
["2471C1101X","Radiologic Technologist: Cardiovascular-Interventional Technology","Credentialing Not Required"]
["2471C1106X","Radiologic Technologist: Cardiac-Interventional Technology","Credentialing Not Required"]
["2471C3401X","Radiologic Technologist: Computed Tomography","Credentialing Not Required"]
["2471C3402X","Radiologic Technologist: Radiography","Credentialing Not Required"]
["2471M1202X","Radiologic Technologist: Magnetic Resonance Imaging","Credentialing Not Required"]
["2471M2300X","Radiologic Technologist: Mammography","Credentialing Not Required"]
["2471N0900X","Radiologic Technologist: Nuclear Medicine Technology","Credentialing Not Required"]
["2471Q0001X","Radiologic Technologist: Quality Management","Credentialing Not Required"]
["2471R0002X","Radiologic Technologist: Radiation Therapy","Credentialing Not Required"]
["2471S1302X","Radiologic Technologist: Sonography","Credentialing Not Required"]
["2471V0105X","Radiologic Technologist: Vascular Sonography","Credentialing Not Required"]
["2471V0106X","Radiologic Technologist: Vascular-Interventional Technology","Credentialing Not Required"]
["247200000X","Technician, Other","Credentialing Not Required"]
["2472B0301X","Technician, Other: Biomedical Engineering","Credentialing Not Required"]
["2472D0500X","Technician, Other: Darkroom","Credentialing Not Required"]
["2472E0500X","Technician, Other: EEG","Credentialing Not Required"]
["2472R0900X","Technician, Other: Renal Dialysis","Credentialing Not Required"]
["2472V0600X","Technician, Other: Veterinary","Credentialing Not Required"]
["247ZC0005X","Pathology: Clinical Laboratory Director, Non-physician","Credentialing Not Required"]
["251300000X","Local Education Agency (LEA)","Credentialing Not Required"]
["251B00000X","Case Management","Credentialing Required  "]
["251C00000X","Day Training, Developmentally Disabled Services","Credentialing Required  "]
["251E00000X","Home Health","Credentialing Required  "]
["251F00000X","Home Infusion","Credentialing Required  "]
["251G00000X","Hospice Care, Community Based","Credentialing Required  "]
["251J00000X","Nursing Care","Credentialing Not Required"]
["251K00000X","Public Health or Welfare","Credentialing Required  "]
["251S00000X","Community/Behavioral Health","Credentialing Required  "]
["251T00000X","PACE Provider Organization","Credentialing Not Required"]
["251V00000X","Voluntary or Charitable","Credentialing Not Required"]
["251X00000X","Supports Brokerage","Credentialing Not Required"]
["252Y00000X","Early Intervention Provider Agency","Credentialing Not Required"]
["253J00000X","Foster Care Agency","Credentialing Required  "]
["253Z00000X","In Home Supportive Care","Credentialing Required  "]
["261Q00000X","Clinic/Center","Credentialing Required  "]
["261QA0005X","Clinic/Center: Ambulatory Family Planning Facility","Credentialing Required  "]
["261QA0006X","Clinic/Center: Ambulatory Fertility Facility","Credentialing Required  "]
["261QA0600X","Clinic/Center: Adult Day Care","Credentialing Required  "]
["261QA0900X","Clinic/Center: Amputee","Credentialing Not Required"]
["261QA1903X","Clinic/Center: Ambulatory Surgical","Credentialing Required  "]
["261QA3000X","Clinic/Center: Augmentative Communication","Credentialing Not Required"]
["261QB0400X","Clinic/Center: Birthing","Credentialing Required  "]
["261QC0050X","Clinic/Center: Critical Access Hospital","Credentialing Required  "]
["261QC1500X","Clinic/Center: Community Health","Credentialing Required  "]
["261QC1800X","Clinic/Center: Corporate Health","Credentialing Not Required"]
["261QD0000X","Clinic/Center: Dental","Credentialing Not Required"]
["261QD1600X","Clinic/Center: Developmental Disabilities","Credentialing Not Required"]
["261QE0002X","Clinic/Center: Emergency Care","Credentialing Required  "]
["261QE0700X","Clinic/Center: End-Stage Renal Disease (ESRD) Treatment","Credentialing Required  "]
["261QE0800X","Clinic/Center: Endoscopy","Credentialing Required  "]
["261QF0050X","Clinic/Center: Family Planning, Non-Surgical","Credentialing Not Required"]
["261QF0400X","Clinic/Center: Federally Qualified Health Center (FQHC)","Credentialing Required  "]
["261QG0250X","Clinic/Center: Genetics","Credentialing Not Required"]
["261QH0100X","Clinic/Center: Health Service","Credentialing Not Required"]
["261QH0700X","Clinic/Center: Hearing and Speech","Credentialing Required  "]
["261QI0500X","Clinic/Center: Infusion Therapy","Credentialing Required  "]
["261QL0400X","Clinic/Center: Lithotripsy","Credentialing Required  "]
["261QM0801X","Clinic/Center: Mental Health (Including Community Mental Health Center)","Credentialing Required  "]
["261QM0850X","Clinic/Center: Adult Mental Health","Credentialing Required  "]
["261QM0855X","Clinic/Center: Adolescent and Children Mental Health","Credentialing Required  "]
["261QM1000X","Clinic/Center: Migrant Health","Credentialing Required  "]
["261QM1100X","Clinic/Center: Military/U.S. Coast Guard Outpatient","Credentialing Required  "]
["261QM1101X","Clinic/Center: Military and U.S. Coast Guard Ambulatory Procedure","Credentialing Required  "]
["261QM1102X","Clinic/Center: Military Outpatient Operational (Transportable) Component","Credentialing Required  "]
["261QM1103X","Clinic/Center: Military Ambulatory Procedure Visits Operational (Transportable)","Credentialing Required  "]
["261QM1200X","Clinic/Center: Magnetic Resonance Imaging (MRI)","Credentialing Required  "]
["261QM1300X","Clinic/Center: Multi-Specialty","Credentialing Not Required"]
["261QM2500X","Clinic/Center: Medical Specialty","Credentialing Required  "]
["261QM2800X","Clinic/Center: Methadone Clinic","Credentialing Required  "]
["261QM3000X","Clinic/Center: Medically Fragile Infants and Children Day Care","Credentialing Required  "]
["261QP0904X","Clinic/Center: Public Health, Federal","Credentialing Not Required"]
["261QP0905X","Clinic/Center: Public Health, State or Local","Credentialing Not Required"]
["261QP1100X","Clinic/Center: Podiatric","Credentialing Not Required"]
["261QP2000X","Clinic/Center: Physical Therapy","Credentialing Required  "]
["261QP2300X","Clinic/Center: Primary Care","Credentialing Not Required"]
["261QP2400X","Clinic/Center: Prison Health","Credentialing Required  "]
["261QP3300X","Clinic/Center: Pain","Credentialing Required  "]
["261QR0200X","Clinic/Center: Radiology","Credentialing Required  "]
["261QR0206X","Clinic/Center: Radiology, Mammography","Credentialing Required  "]
["261QR0207X","Clinic/Center: Radiology, Mobile Mammography","Credentialing Required  "]
["261QR0208X","Clinic/Center: Radiology, Mobile","Credentialing Required  "]
["261QR0400X","Clinic/Center: Rehabilitation","Credentialing Required  "]
["261QR0401X","Clinic/Center: Rehabilitation, Comprehensive Outpatient Rehabilitation Facility (CORF)","Credentialing Required  "]
["261QR0404X","Clinic/Center: Rehabilitation, Cardiac Facilities","Credentialing Required  "]
["261QR0405X","Clinic/Center: Rehabilitation, Substance Use Disorder","Credentialing Required  "]
["261QR0800X","Clinic/Center: Recovery Care","Credentialing Not Required"]
["261QR1100X","Clinic/Center: Research","Credentialing Not Required"]
["261QR1300X","Clinic/Center: Rural Health","Credentialing Required  "]
["261QS0112X","Clinic/Center: Oral and Maxillofacial Surgery","Credentialing Not Required"]
["261QS0132X","Clinic/Center: Ophthalmologic Surgery","Credentialing Required  "]
["261QS1000X","Clinic/Center: Student Health","Credentialing Not Required"]
["261QS1200X","Clinic/Center: Sleep Disorder Diagnostic","Credentialing Required  "]
["261QU0200X","Clinic/Center: Urgent Care","Credentialing Required  "]
["261QV0200X","Clinic/Center: VA","Credentialing Not Required"]
["261QX0100X","Clinic/Center: Occupational Medicine","Credentialing Not Required"]
["261QX0200X","Clinic/Center: Oncology","Credentialing Not Required"]
["261QX0203X","Clinic/Center: Oncology, Radiation","Credentialing Not Required"]
["273100000X","Epilepsy Unit","Credentialing Required  "]
["273R00000X","Psychiatric Unit","Credentialing Required  "]
["273Y00000X","Rehabilitation Unit","Credentialing Required  "]
["275N00000X","Medicare Defined Swing Bed Unit","Credentialing Required  "]
["276400000X","Rehabilitation, Substance Use Disorder Unit","Credentialing Required  "]
["281P00000X","Chronic Disease Hospital","Credentialing Required  "]
["281PC2000X","Chronic Disease Hospital: Children","Credentialing Required  "]
["282E00000X","Long Term Care Hospital","Credentialing Required  "]
["282J00000X","Religious Nonmedical Health Care Institution","Credentialing Required  "]
["282N00000X","General Acute Care Hospital","Credentialing Required  "]
["282NC0060X","General Acute Care Hospital: Critical Access","Credentialing Required  "]
["282NC2000X","General Acute Care Hospital: Children","Credentialing Required  "]
["282NR1301X","General Acute Care Hospital: Rural","Credentialing Required  "]
["282NW0100X","General Acute Care Hospital: Women","Credentialing Required  "]
["283Q00000X","Psychiatric Hospital","Credentialing Required  "]
["283X00000X","Rehabilitation Hospital","Credentialing Required  "]
["283XC2000X","Rehabilitation Hospital: Children","Credentialing Required  "]
["284300000X","Special Hospital","Credentialing Required  "]
["286500000X","Military Hospital","Credentialing Not Required"]
["2865C1500X","Military Hospital: Community Health","Credentialing Not Required"]
["2865M2000X","Military Hospital: Military General Acute Care Hospital","Credentialing Not Required"]
["2865X1600X","Military Hospital: Military General Acute Care Hospital. Operational (Transportable)","Credentialing Not Required"]
["287300000X","Christian Science Sanitorium","Credentialing Not Required"]
["291900000X","Military Clinical Medical Laboratory","Credentialing Not Required"]
["291U00000X","Clinical Medical Laboratory","Credentialing Required  "]
["292200000X","Dental Laboratory","Credentialing Not Required"]
["293D00000X","Physiological Laboratory","Credentialing Required  "]
["302F00000X","Exclusive Provider Organization","Credentialing Not Required"]
["302R00000X","Health Maintenance Organization","Credentialing Not Required"]
["305R00000X","Preferred Provider Organization","Credentialing Not Required"]
["305S00000X","Point of Service","Credentialing Not Required"]
["310400000X","Assisted Living Facility","Credentialing Required  "]
["3104A0625X","Assisted Living Facility: Assisted Living, Mental Illness","Credentialing Required  "]
["3104A0630X","Assisted Living Facility: Assisted Living, Behavioral Disturbances","Credentialing Required  "]
["310500000X","Intermediate Care Facility, Mental Illness","Credentialing Required  "]
["311500000X","Alzheimer Center (Dementia Center)","Credentialing Required  "]
["311Z00000X","Custodial Care Facility","Credentialing Required  "]
["311ZA0620X","Custodial Care Facility: Adult Care Home","Credentialing Required  "]
["313M00000X","Nursing Facility/Intermediate Care Facility","Credentialing Required  "]
["314000000X","Skilled Nursing Facility","Credentialing Required  "]
["3140N1450X","Skilled Nursing Facility: Nursing Care, Pediatric","Credentialing Required  "]
["315D00000X","Hospice, Inpatient","Credentialing Not Required"]
["315P00000X","Intermediate Care Facility, Mentally Retarded","Credentialing Required  "]
["317400000X","Christian Science Facility","Credentialing Not Required"]
["320600000X","Residential Treatment Facility, Mental Retardation and/or Developmental Disabilities","Credentialing Required  "]
["320700000X","Residential Treatment Facility, Physical Disabilities","Credentialing Required  "]
["320800000X","Community Based Residential Treatment Facility, Mental Illness","Credentialing Required  "]
["320900000X","Community Based Residential Treatment, Mental Retardation and/or Developmental Disabilities","Credentialing Required  "]
["322D00000X","Residential Treatment Facility, Emotionally Disturbed Children","Credentialing Required  "]
["323P00000X","Psychiatric Residential Treatment Facility","Credentialing Required  "]
["324500000X","Substance Abuse Rehabilitation Facility","Credentialing Required  "]
["3245S0500X","Substance Abuse Rehabilitation Facility: Substance Abuse Treatment, Children","Credentialing Required  "]
["331L00000X","Blood Bank","Credentialing Not Required"]
["332000000X","Military/U.S. Coast Guard Pharmacy","Credentialing Not Required"]
["332100000X","Department of Veterans Affairs (VA) Pharmacy","Credentialing Not Required"]
["332800000X","Indian Health Service/Tribal/Urban Indian Health (I/T/U) Pharmacy","Credentialing Not Required"]
["332900000X","Non-Pharmacy Dispensing Site","Credentialing Not Required"]
["332B00000X","Durable Medical Equipment & Medical Supplies","Credentialing Required  "]
["332BC3200X","Durable Medical Equipment & Medical Supplies: Customized Equipment","Credentialing Required  "]
["332BD1200X","Durable Medical Equipment & Medical Supplies: Dialysis Equipment & Supplies","Credentialing Required  "]
["332BN1400X","Durable Medical Equipment & Medical Supplies: Nursing Facility Supplies","Credentialing Required  "]
["332BP3500X","Durable Medical Equipment & Medical Supplies: Parenteral & Enteral Nutrition","Credentialing Required  "]
["332BX2000X","Durable Medical Equipment & Medical Supplies: Oxygen Equipment & Supplies","Credentialing Required  "]
["332G00000X","Eye Bank","Credentialing Not Required"]
["332H00000X","Eyewear Supplier (Equipment, not the service)","Credentialing Not Required"]
["332S00000X","Hearing Aid Equipment","Credentialing Not Required"]
["332U00000X","Home Delivered Meals","Credentialing Required  "]
["333300000X","Emergency Response System Companies","Credentialing Required  "]
["333600000X","Pharmacy","Credentialing Not Required"]
["3336C0002X","Pharmacy: Clinic Pharmacy","Credentialing Not Required"]
["3336C0003X","Pharmacy: Community/Retail Pharmacy","Credentialing Not Required"]
["3336C0004X","Pharmacy: Compounding Pharmacy","Credentialing Not Required"]
["3336H0001X","Pharmacy: Home Infusion Therapy Pharmacy","Credentialing Not Required"]
["3336I0012X","Pharmacy: Institutional Pharmacy","Credentialing Not Required"]
["3336L0003X","Pharmacy: Long Term Care Pharmacy","Credentialing Not Required"]
["3336M0002X","Pharmacy: Mail Order Pharmacy","Credentialing Not Required"]
["3336M0003X","Pharmacy: Managed Care Organization Pharmacy","Credentialing Not Required"]
["3336N0007X","Pharmacy: Nuclear Pharmacy","Credentialing Not Required"]
["3336S0011X","Pharmacy: Specialty Pharmacy","Credentialing Not Required"]
["335E00000X","Prosthetic/Orthotic Supplier","Credentialing Required  "]
["335G00000X","Medical Foods Supplier","Credentialing Required  "]
["335U00000X","Organ Procurement Organization","Credentialing Not Required"]
["335V00000X","Portable X-ray and/or Other Portable Diagnostic Imaging Supplier","Credentialing Required  "]
["341600000X","Ambulance","Credentialing Required  "]
["3416A0800X","Ambulance: Air Transport","Credentialing Required  "]
["3416L0300X","Ambulance: Land Transport","Credentialing Required  "]
["3416S0300X","Ambulance: Water Transport","Credentialing Not Required"]
["341800000X","Military/U.S. Coast Guard Transport","Credentialing Not Required"]
["3418M1110X","Military/U.S. Coast Guard Transport: Military or U.S. Coast Guard Ambulance, Ground Transport","Credentialing Not Required"]
["3418M1120X","Military/U.S. Coast Guard Transport: Military or U.S. Coast Guard Ambulance, Air Transport","Credentialing Not Required"]
["3418M1130X","Military/U.S. Coast Guard Transport: Military or U.S. Coast Guard Ambulance, Water Transport","Credentialing Not Required"]
["342000000X","Transportation Network Company","Credentialing Not Required"]
["343800000X","Secured Medical Transport (VAN)","Credentialing Required  "]
["343900000X","Non-emergency Medical Transport (VAN)","Credentialing Required  "]
["344600000X","Taxi","Credentialing Not Required"]
["344800000X","Air Carrier","Credentialing Not Required"]
["347B00000X","Bus","Credentialing Not Required"]
["347C00000X","Private Vehicle","Credentialing Required  "]
["347D00000X","Train","Credentialing Not Required"]
["347E00000X","Transportation Broker","Credentialing Not Required"]
["363A00000X","Physician Assistant","Credentialing Required  "]
["363AM0700X","Physician Assistant: Medical","Credentialing Required  "]
["363AS0400X","Physician Assistant: Surgical","Credentialing Required  "]
["363L00000X","Nurse Practitioner","Credentialing Required  "]
["363LA2100X","Nurse Practitioner: Acute Care","Credentialing Required  "]
["363LA2200X","Nurse Practitioner: Adult Health","Credentialing Required  "]
["363LC0200X","Nurse Practitioner: Critical Care Medicine","Credentialing Required  "]
["363LC1500X","Nurse Practitioner: Community Health","Credentialing Required  "]
["363LF0000X","Nurse Practitioner: Family","Credentialing Required  "]
["363LG0600X","Nurse Practitioner: Gerontology","Credentialing Required  "]
["363LN0000X","Nurse Practitioner: Neonatal","Credentialing Not Required"]
["363LN0005X","Nurse Practitioner: Neonatal, Critical Care","Credentialing Not Required"]
["363LP0200X","Nurse Practitioner: Pediatrics","Credentialing Required  "]
["363LP0222X","Nurse Practitioner: Pediatrics, Critical Care","Credentialing Required  "]
["363LP0808X","Nurse Practitioner: Psych/Mental Health","Credentialing Required  "]
["363LP1700X","Nurse Practitioner: Perinatal","Credentialing Not Required"]
["363LP2300X","Nurse Practitioner: Primary Care","Credentialing Required  "]
["363LS0200X","Nurse Practitioner: School","Credentialing Required  "]
["363LW0102X","Nurse Practitioner: Womens Health","Credentialing Required  "]
["363LX0001X","Nurse Practitioner: Obstetrics & Gynecology","Credentialing Required  "]
["363LX0106X","Nurse Practitioner: Occupational Health","Credentialing Required  "]
["364S00000X","Clinical Nurse Specialist","Credentialing Not Required"]
["364SA2100X","Clinical Nurse Specialist: Acute Care","Credentialing Not Required"]
["364SA2200X","Clinical Nurse Specialist: Adult Health","Credentialing Not Required"]
["364SC0200X","Clinical Nurse Specialist: Critical Care Medicine","Credentialing Not Required"]
["364SC1501X","Clinical Nurse Specialist: Community Health/Public Health","Credentialing Not Required"]
["364SC2300X","Clinical Nurse Specialist: Chronic Care","Credentialing Not Required"]
["364SE0003X","Clinical Nurse Specialist: Emergency","Credentialing Not Required"]
["364SE1400X","Clinical Nurse Specialist: Ethics","Credentialing Not Required"]
["364SF0001X","Clinical Nurse Specialist: Family Health","Credentialing Not Required"]
["364SG0600X","Clinical Nurse Specialist: Gerontology","Credentialing Not Required"]
["364SH0200X","Clinical Nurse Specialist: Home Health","Credentialing Not Required"]
["364SH1100X","Clinical Nurse Specialist: Holistic","Credentialing Not Required"]
["364SI0800X","Clinical Nurse Specialist: Informatics","Credentialing Not Required"]
["364SL0600X","Clinical Nurse Specialist: Long-Term Care","Credentialing Not Required"]
["364SM0705X","Clinical Nurse Specialist: Medical-Surgical","Credentialing Not Required"]
["364SN0000X","Clinical Nurse Specialist: Neonatal","Credentialing Not Required"]
["364SN0800X","Clinical Nurse Specialist: Neuroscience","Credentialing Not Required"]
["364SP0200X","Clinical Nurse Specialist: Pediatrics","Credentialing Not Required"]
["364SP0807X","Clinical Nurse Specialist: Psych/Mental Health, Child & Adolescent","Credentialing Not Required"]
["364SP0808X","Clinical Nurse Specialist: Psych/Mental Health","Credentialing Not Required"]
["364SP0809X","Clinical Nurse Specialist: Psych/Mental Health, Adult","Credentialing Not Required"]
["364SP0810X","Clinical Nurse Specialist: Psych/Mental Health, Child & Family","Credentialing Not Required"]
["364SP0811X","Clinical Nurse Specialist: Psych/Mental Health, Chronically Ill","Credentialing Not Required"]
["364SP0812X","Clinical Nurse Specialist: Psych/Mental Health, Community","Credentialing Not Required"]
["364SP0813X","Clinical Nurse Specialist: Psych/Mental Health, Geropsychiatric","Credentialing Not Required"]
["364SP1700X","Clinical Nurse Specialist: Perinatal","Credentialing Not Required"]
["364SP2800X","Clinical Nurse Specialist: Perioperative","Credentialing Not Required"]
["364SR0400X","Clinical Nurse Specialist: Rehabilitation","Credentialing Not Required"]
["364SS0200X","Clinical Nurse Specialist: School","Credentialing Not Required"]
["364ST0500X","Clinical Nurse Specialist: Transplantation","Credentialing Not Required"]
["364SW0102X","Clinical Nurse Specialist: Womens Health","Credentialing Not Required"]
["364SX0106X","Clinical Nurse Specialist: Occupational Health","Credentialing Not Required"]
["364SX0200X","Clinical Nurse Specialist: Oncology","Credentialing Not Required"]
["364SX0204X","Clinical Nurse Specialist: Oncology, Pediatrics","Credentialing Not Required"]
["367500000X","Nurse Anesthetist, Certified Registered","Credentialing Not Required"]
["367A00000X","Advanced Practice Midwife","Credentialing Required  "]
["367H00000X","Anesthesiologist Assistant","Credentialing Not Required"]
["372500000X","Chore Provider","Credentialing Not Required"]
["372600000X","Adult Companion","Credentialing Required  "]
["373H00000X","Day Training/Habilitation Specialist","Credentialing Required  "]
["374700000X","Technician","Specialty Ineligible for Enrollment"]
["3747A0650X","Technician: Attendant Care Provider","Credentialing Not Required"]
["3747P1801X","Technician: Personal Care Attendant","Credentialing Not Required"]
["374J00000X","Doula","Credentialing Required  "]
["374K00000X","Religious Nonmedical Practitioner","Credentialing Required  "]
["374T00000X","Christian Science Practitioner/Nurse","Credentialing Not Required"]
["374U00000X","Home Health Aide","Credentialing Required  "]
["376G00000X","Nursing Home Administrator","Credentialing Not Required"]
["376J00000X","Homemaker","Credentialing Required  "]
["376K00000X","Nurses  Aide","Credentialing Not Required"]
["385H00000X","Respite Care","Credentialing Required  "]
["385HR2050X","Respite Care: Respite Care Camp","Credentialing Required  "]
["385HR2055X","Respite Care: Respite Care, Mental Illness, Child","Credentialing Required  "]
["385HR2060X","Respite Care: Respite Care, Mental Retardation and/or Developmental Disabilities, Child","Credentialing Required  "]
["385HR2065X","Respite Care: Respite Care, Physical Disabilities, Child","Credentialing Required  "]
["390200000X","Student in an Organized Health Care Education/Training Program","Credentialing Not Required"]
["405300000X","Prevention Professional","Credentialing Required  "]

{"sheet":"Sheet2","index":2,"n_rows":888,"n_cols":8,"rows_kept":888,"cut":false,"hidden":true,"merged":[]}
[null,"Provider Type Code","Provider Specialty Code","Provider Type Description","Provider Specialty Description","Taxonomy Code","Taxonomy Description"]
[{"$f":"CLEAN(F2)","v":"282N00000X"},{"$f":"\"01\"","v":"01"},{"$f":"\"200\"","v":"200"},"GENERAL HOSPITAL","HOSPITAL WITH BIRTH/DELIVERY SERVICES","282N00000X","GENERAL ACUTE CARE HOSPITAL",{"$f":"_xlfn.TEXTJOIN(\", \", TRUE, IF($A$2:$A$4=D1, $B$2:$B$4, \"\"))","v":""}]
[{"$f":"CLEAN(F3)","v":"282NW0100X"},"01",{"$f":"\"200\"","v":"200"},"GENERAL HOSPITAL","HOSPITAL WITH BIRTH/DELIVERY SERVICES","282NW0100X","GENERAL ACUTE CARE HOSPITAL - WOMEN"]
["284300000X","01",{"$f":"\"200\"","v":"200"},"GENERAL HOSPITAL","HOSPITAL WITH BIRTH/DELIVERY SERVICES","284300000X","SPECIAL HOSPITAL"]
["282N00000X","01",{"$f":"\"201\"","v":"201"},"GENERAL HOSPITAL","EMERGENCY SERVICES","282N00000X","GENERAL ACUTE CARE HOSPITAL"]
["284300000X","01",{"$f":"\"201\"","v":"201"},"GENERAL HOSPITAL","EMERGENCY SERVICES","284300000X","SPECIAL HOSPITAL"]
["284300000X","01",{"$f":"\"210\"","v":"210"},"GENERAL HOSPITAL","PSYCHIATRIC COMMUNITY HOSPITAL/CSU CAP ONLY ADULT","284300000X","SPECIAL HOSPITAL"]
["284300000X","01",{"$f":"\"211\"","v":"211"},"GENERAL HOSPITAL","PSYCHIATRIC COMMUNITY HOSPITAL/CSU CAP ONLY CHILD","284300000X","SPECIAL HOSPITAL"]
["261QC0050X","01",{"$f":"\"901\"","v":"901"},"GENERAL HOSPITAL","GENERAL HOSPITAL","261QC0050X","CLINIC/CENTER - CRITICAL ACCESS HOSPITAL"]
["273100000X","01","901","GENERAL HOSPITAL","GENERAL HOSPITAL","273100000X","EPILEPSY UNIT"]
["273R00000X","01","901","GENERAL HOSPITAL","GENERAL HOSPITAL","273R00000X","PSYCHIATRIC UNIT"]
["273Y00000X","01","901","GENERAL HOSPITAL","GENERAL HOSPITAL","273Y00000X","REHABILITATION UNIT"]
["276400000X","01","901","GENERAL HOSPITAL","GENERAL HOSPITAL","276400000X","REHABILITATION, SUBSTANCE USE DISORDER UNIT"]
["282N00000X","01","901","GENERAL HOSPITAL","GENERAL HOSPITAL","282N00000X","GENERAL ACUTE CARE HOSPITAL"]
["282NC0060X","01","901","GENERAL HOSPITAL","GENERAL HOSPITAL","282NC0060X","GENERAL ACUTE CARE HOSPITAL - CRITICAL ACCESS"]
["282NC2000X","01","901","GENERAL HOSPITAL","GENERAL HOSPITAL","282NC2000X","GENERAL ACUTE CARE HOSPITAL - CHILDREN"]
["282NR1301X","01","901","GENERAL HOSPITAL","GENERAL HOSPITAL","282NR1301X","GENERAL ACUTE CARE HOSPITAL - RURAL"]
["282NW0100X","01","901","GENERAL HOSPITAL","GENERAL HOSPITAL","282NW0100X","GENERAL ACUTE CARE HOSPITAL - WOMEN"]
["284300000X","01","901","GENERAL HOSPITAL","GENERAL HOSPITAL","284300000X","SPECIAL HOSPITAL"]
["283Q00000X",{"$f":"\"04\"","v":"04"},{"$f":"\"904\"","v":"904"},"STATE MENTAL HOSPITAL","STATE MENTAL HOSPITAL","283Q00000X","PSYCHIATRIC HOSPITAL"]
["251S00000X",{"$f":"\"05\"","v":"05"},{"$f":"\"905\"","v":"905"},"COMMUNITY BEHAVIORAL HEALTH SERVICES","COMMUNITY MENTAL HEALTH SERVICES","251S00000X","COMMUNITY/BEHAVIORAL HEALTH"]
["261QC1500X",{"$f":"\"05\"","v":"05"},{"$f":"\"905\"","v":"905"},"COMMUNITY BEHAVIORAL HEALTH SERVICES","COMMUNITY MENTAL HEALTH SERVICES","261QC1500X","CLINIC/CENTER - COMMUNITY HEALTH"]
["261QM0801X",{"$f":"\"05\"","v":"05"},{"$f":"\"905\"","v":"905"},"COMMUNITY BEHAVIORAL HEALTH SERVICES","COMMUNITY MENTAL HEALTH SERVICES","261QM0801X","CLINIC/CENTER - MENTAL HEALTH (INCLUDING COMMUNITY MENTAL HEALTH CENTER)"]
["261QM0850X",{"$f":"\"05\"","v":"05"},{"$f":"\"905\"","v":"905"},"COMMUNITY BEHAVIORAL HEALTH SERVICES","COMMUNITY MENTAL HEALTH SERVICES","261QM0850X","CLINIC/CENTER - ADULT MENTAL HEALTH"]
["261QM0855X",{"$f":"\"05\"","v":"05"},{"$f":"\"905\"","v":"905"},"COMMUNITY BEHAVIORAL HEALTH SERVICES","COMMUNITY MENTAL HEALTH SERVICES","261QM0855X","CLINIC/CENTER - ADOLESCENT AND CHILDREN MENTAL HEALTH"]
["261Q00000X",{"$f":"\"06\"","v":"06"},{"$f":"\"906\"","v":"906"},"AMBULATORY HEALTH CARE FACILITY","AMBULATORY SURGERY CENTER","261Q00000X","CLINIC/CENTER"]
["261QA0005X","06","906","AMBULATORY HEALTH CARE FACILITY","AMBULATORY SURGERY CENTER","261QA0005X","CLINIC/CENTER - AMBULATORY FAMILY PLANNING FACILITY"]
["261QA0006X","06","906","AMBULATORY HEALTH CARE FACILITY","AMBULATORY SURGERY CENTER","261QA0006X","CLINIC/CENTER - AMBULATORY FERTILITY FACILITY"]
["261QA1903X","06","906","AMBULATORY HEALTH CARE FACILITY","AMBULATORY SURGERY CENTER","261QA1903X","CLINIC/CENTER - AMBULATORY SURGICAL"]
["261QD0000X","06","906","AMBULATORY HEALTH CARE FACILITY","AMBULATORY SURGERY CENTER","261QD0000X","CLINIC/CENTER - DENTAL"]
["261QE0800X","06","906","AMBULATORY HEALTH CARE FACILITY","AMBULATORY SURGERY CENTER","261QE0800X","CLINIC/CENTER - ENDOSCOPY"]
["261QF0050X","06","906","AMBULATORY HEALTH CARE FACILITY","AMBULATORY SURGERY CENTER","261QF0050X","CLINIC/CENTER - FAMILY PLANNING, NON-SURGICAL"]
["261QG0250X","06","906","AMBULATORY HEALTH CARE FACILITY","AMBULATORY SURGERY CENTER","261QG0250X","CLINIC/CENTER - GENETICS"]
["261QL0400X","06","906","AMBULATORY HEALTH CARE FACILITY","AMBULATORY SURGERY CENTER","261QL0400X","CLINIC/CENTER - LITHOTRIPSY"]
["101YM0800X",{"$f":"\"07\"","v":"07"},{"$f":"\"066\"","v":"066"},"SPECIALIZED THERAPEUTIC SERVICES","COMPREHENSIVE BEHAVIORAL HEALTH ASSESSMENT","101YM0800X","COUNSELOR - MENTAL HEALTH"]
["103T00000X",{"$f":"\"07\"","v":"07"},{"$f":"\"066\"","v":"066"},"SPECIALIZED THERAPEUTIC SERVICES","COMPREHENSIVE BEHAVIORAL HEALTH ASSESSMENT","103T00000X","PSYCHOLOGIST"]
["253J00000X",{"$f":"\"07\"","v":"07"},{"$f":"\"067\"","v":"067"},"SPECIALIZED THERAPEUTIC SERVICES","SPECIALIZED THERAPEUTIC FOSTER CARE","253J00000X","FOSTER CARE AGENCY"]
["101YM0800X",{"$f":"\"07\"","v":"07"},{"$f":"\"907\"","v":"907"},"SPECIALIZED THERAPEUTIC SERVICES","SPECIALIZED THERAPEUTIC SERVICES","101YM0800X","COUNSELOR - MENTAL HEALTH"]
["103T00000X",{"$f":"\"07\"","v":"07"},{"$f":"\"907\"","v":"907"},"SPECIALIZED THERAPEUTIC SERVICES","SPECIALIZED THERAPEUTIC SERVICES","103T00000X","PSYCHOLOGIST"]
["251300000X",{"$f":"\"08\"","v":"08"},{"$f":"\"908\"","v":"908"},"SCHOOL DISTRICT","SCHOOL DISTRICT","251300000X","LOCAL EDUCATION AGENCY (LEA)"]
["313M00000X",{"$f":"\"09\"","v":"09"},{"$f":"\"909\"","v":"909"},"HOSPITAL-BASED SKILLED NURSING FACILITY","HOSPITAL-BASED SKILLED NURSING FACILITY","313M00000X","NURSING FACILITY/INTERMEDIATE CARE FACILITY"]
["311500000X",{"$f":"\"10\"","v":"10"},{"$f":"\"910\"","v":"910"},"SKILLED NURSING FACILITY","SKILLED NURSING FACILITY","311500000X","ALZHEIMER CENTER (DEMENTIA CENTER)"]
["313M00000X",{"$f":"\"10\"","v":"10"},{"$f":"\"910\"","v":"910"},"SKILLED NURSING FACILITY","SKILLED NURSING FACILITY","313M00000X","NURSING FACILITY/INTERMEDIATE CARE FACILITY"]
["314000000X",{"$f":"\"10\"","v":"10"},{"$f":"\"910\"","v":"910"},"SKILLED NURSING FACILITY","SKILLED NURSING FACILITY","314000000X","SKILLED NURSING FACILITY"]
["3140N1450X",{"$f":"\"10\"","v":"10"},{"$f":"\"910\"","v":"910"},"SKILLED NURSING FACILITY","SKILLED NURSING FACILITY","3140N1450X","SKILLED NURSING FACILITY - NURSING CARE, PEDIATRIC"]
["310500000X",{"$f":"\"11\"","v":"11"},{"$f":"\"911\"","v":"911"},"STATE ICF/DD FACILITY","STATE ICF/DD FACILITY","310500000X","INTERMEDIATE CARE FACILITY, MENTAL ILLNESS"]
["315P00000X",{"$f":"\"11\"","v":"11"},{"$f":"\"911\"","v":"911"},"STATE ICF/DD FACILITY","STATE ICF/DD FACILITY","315P00000X","INTERMEDIATE CARE FACILITY, MENTALLY RETARDED"]
["320600000X",{"$f":"\"11\"","v":"11"},{"$f":"\"911\"","v":"911"},"STATE ICF/DD FACILITY","STATE ICF/DD FACILITY","320600000X","RESIDENTIAL TREATMENT FACILITY, MENTAL RETARDATION AND/OR DEVELOPMENTAL DISABILITIES"]
["320700000X",{"$f":"\"11\"","v":"11"},{"$f":"\"911\"","v":"911"},"STATE ICF/DD FACILITY","STATE ICF/DD FACILITY","320700000X","RESIDENTIAL TREATMENT FACILITY, PHYSICAL DISABILITIES"]
["310500000X",{"$f":"\"12\"","v":"12"},{"$f":"\"912\"","v":"912"},"PRIVATE ICF/DD FACILITY","PRIVATE ICF/DD FACILITY","310500000X","INTERMEDIATE CARE FACILITY, MENTAL ILLNESS"]
["315P00000X",{"$f":"\"12\"","v":"12"},{"$f":"\"912\"","v":"912"},"PRIVATE ICF/DD FACILITY","PRIVATE ICF/DD FACILITY","315P00000X","INTERMEDIATE CARE FACILITY, MENTALLY RETARDED"]
["320600000X",{"$f":"\"12\"","v":"12"},{"$f":"\"912\"","v":"912"},"PRIVATE ICF/DD FACILITY","PRIVATE ICF/DD FACILITY","320600000X","RESIDENTIAL TREATMENT FACILITY, MENTAL RETARDATION AND/OR DEVELOPMENTAL DISABILITIES"]
["320700000X",{"$f":"\"12\"","v":"12"},{"$f":"\"912\"","v":"912"},"PRIVATE ICF/DD FACILITY","PRIVATE ICF/DD FACILITY","320700000X","RESIDENTIAL TREATMENT FACILITY, PHYSICAL DISABILITIES"]
["275N00000X",{"$f":"\"13\"","v":"13"},{"$f":"\"913\"","v":"913"},"RURAL HOSPITAL SWING BED FACILITY","RURAL HOSPITAL SWING BED FACILITY","275N00000X","MEDICARE DEFINED SWING BED UNIT"]
["310400000X",{"$f":"\"14\"","v":"14"},{"$f":"\"121\"","v":"121"},"ASSISTIVE CARE SERVICES","ASSISTED LIVING","310400000X","ASSISTED LIVING FACILITY"]
["3104A0630X","14",{"$f":"\"121\"","v":"121"},"ASSISTIVE CARE SERVICES","ASSISTED LIVING","3104A0630X","ASSISTED LIVING FACILITY - ASSISTED LIVING, BEHAVIORAL DISTURBANCES"]
["311Z00000X","14",{"$f":"\"121\"","v":"121"},"ASSISTIVE CARE SERVICES","ASSISTED LIVING","311Z00000X","CUSTODIAL CARE FACILITY"]
["310400000X","14",{"$f":"\"122\"","v":"122"},"ASSISTIVE CARE SERVICES","EXTENDED CONGREGATE CARE","310400000X","ASSISTED LIVING FACILITY"]
["311Z00000X","14",{"$f":"\"122\"","v":"122"},"ASSISTIVE CARE SERVICES","EXTENDED CONGREGATE CARE","311Z00000X","CUSTODIAL CARE FACILITY"]
["310400000X","14",{"$f":"\"123\"","v":"123"},"ASSISTIVE CARE SERVICES","LIMITED NURSING SPECIALTY LICENSE","310400000X","ASSISTED LIVING FACILITY"]
["311Z00000X","14",{"$f":"\"123\"","v":"123"},"ASSISTIVE CARE SERVICES","LIMITED NURSING SPECIALTY LICENSE","311Z00000X","CUSTODIAL CARE FACILITY"]
["3104A0625X","14",{"$f":"\"124\"","v":"124"},"ASSISTIVE CARE SERVICES","LIMITED MENTAL HEALTH SPECIALTY LICENSE","3104A0625X","ASSISTED LIVING FACILITY - ASSISTED LIVING, MENTAL ILLNESS"]
["311Z00000X","14",{"$f":"\"124\"","v":"124"},"ASSISTIVE CARE SERVICES","LIMITED MENTAL HEALTH SPECIALTY LICENSE","311Z00000X","CUSTODIAL CARE FACILITY"]
["311ZA0620X","14",{"$f":"\"125\"","v":"125"},"ASSISTIVE CARE SERVICES","ADULT FAMILY CARE HOME","311ZA0620X","CUSTODIAL CARE FACILITY - ADULT CARE HOME"]
["310400000X","14",{"$f":"\"126\"","v":"126"},"ASSISTIVE CARE SERVICES","RESIDENTIAL TREATMENT FACILITY","310400000X","ASSISTED LIVING FACILITY"]
["251X00000X","14",{"$f":"\"914\"","v":"914"},"ASSISTIVE CARE SERVICES","ASSISTIVE CARE SERVICES","251X00000X","SUPPORTS BROKERAGE"]
[{"$f":"CLEAN(F67)","v":"310400000X"},"14",{"$f":"\"914\"","v":"914"},"ASSISTIVE CARE SERVICES","ASSISTIVE CARE SERVICES","310400000X","ASSISTED LIVING FACILITY"]
["3747A0650X","14",{"$f":"\"914\"","v":"914"},"ASSISTIVE CARE SERVICES","ASSISTIVE CARE SERVICES","3747A0650X","TECHNICIAN - ATTENDANT CARE PROVIDER"]
["251G00000X",{"$f":"\"15\"","v":"15"},{"$f":"\"915\"","v":"915"},"HOSPICE","HOSPICE","251G00000X","HOSPICE CARE, COMMUNITY BASED"]
["315D00000X",{"$f":"\"15\"","v":"15"},{"$f":"\"915\"","v":"915"},"HOSPICE","HOSPICE","315D00000X","HOSPICE, INPATIENT"]
["283Q00000X",{"$f":"\"16\"","v":"16"},{"$f":"\"300\"","v":"300"},"RESIDENTIAL AND FREESTANDING PSYCHIATRIC FACILITY","FREESTANDING PSYCHIATRIC HOSPITAL FOR CHILDREN","283Q00000X","PSYCHIATRIC HOSPITAL"]
["284300000X","16",{"$f":"\"300\"","v":"300"},"RESIDENTIAL AND FREESTANDING PSYCHIATRIC FACILITY","FREESTANDING PSYCHIATRIC HOSPITAL FOR CHILDREN","284300000X","SPECIAL HOSPITAL"]
["322D00000X","16",{"$f":"\"300\"","v":"300"},"RESIDENTIAL AND FREESTANDING PSYCHIATRIC FACILITY","FREESTANDING PSYCHIATRIC HOSPITAL FOR CHILDREN","322D00000X","RESIDENTIAL TREATMENT FACILITY, EMOTIONALLY DISTURBED CHILDREN"]
["283Q00000X","16",{"$f":"\"301\"","v":"301"},"RESIDENTIAL AND FREESTANDING PSYCHIATRIC FACILITY","FREESTANDING PSYCHIATRIC HOSPITAL FOR ADULTS","283Q00000X","PSYCHIATRIC HOSPITAL"]
["284300000X","16",{"$f":"\"301\"","v":"301"},"RESIDENTIAL AND FREESTANDING PSYCHIATRIC FACILITY","FREESTANDING PSYCHIATRIC HOSPITAL FOR ADULTS","284300000X","SPECIAL HOSPITAL"]
["283Q00000X","16",{"$f":"\"302\"","v":"302"},"RESIDENTIAL AND FREESTANDING PSYCHIATRIC FACILITY","ADDICTIONS RECEIVING FACILITIES","283Q00000X","PSYCHIATRIC HOSPITAL"]
["284300000X","16",{"$f":"\"302\"","v":"302"},"RESIDENTIAL AND FREESTANDING PSYCHIATRIC FACILITY","ADDICTIONS RECEIVING FACILITIES","284300000X","SPECIAL HOSPITAL"]
["324500000X","16",{"$f":"\"302\"","v":"302"},"RESIDENTIAL AND FREESTANDING PSYCHIATRIC FACILITY","ADDICTIONS RECEIVING FACILITIES","324500000X","SUBSTANCE ABUSE REHABILITATION FACILITY"]
["283Q00000X","16",{"$f":"\"303\"","v":"303"},"RESIDENTIAL AND FREESTANDING PSYCHIATRIC FACILITY","RESIDENTIAL TREATMENT CENTERS FOR CHILD/ADOLESCENT","283Q00000X","PSYCHIATRIC HOSPITAL"]
["284300000X","16",{"$f":"\"303\"","v":"303"},"RESIDENTIAL AND FREESTANDING PSYCHIATRIC FACILITY","RESIDENTIAL TREATMENT CENTERS FOR CHILD/ADOLESCENT","284300000X","SPECIAL HOSPITAL"]
["323P00000X","16",{"$f":"\"303\"","v":"303"},"RESIDENTIAL AND FREESTANDING PSYCHIATRIC FACILITY","RESIDENTIAL TREATMENT CENTERS FOR CHILD/ADOLESCENT","323P00000X","PSYCHIATRIC RESIDENTIAL TREATMENT FACILITY"]
["3245S0500X","16",{"$f":"\"303\"","v":"303"},"RESIDENTIAL AND FREESTANDING PSYCHIATRIC FACILITY","RESIDENTIAL TREATMENT CENTERS FOR CHILD/ADOLESCENT","3245S0500X","SUBSTANCE ABUSE REHABILITATION FACILITY - SUBSTANCE ABUSE TREATMENT, CHILDREN"]
["283Q00000X","16",{"$f":"\"304\"","v":"304"},"RESIDENTIAL AND FREESTANDING PSYCHIATRIC FACILITY","CRISIS STABILIZATION UNIT","283Q00000X","PSYCHIATRIC HOSPITAL"]
["284300000X","16",{"$f":"\"304\"","v":"304"},"RESIDENTIAL AND FREESTANDING PSYCHIATRIC FACILITY","CRISIS STABILIZATION UNIT","284300000X","SPECIAL HOSPITAL"]
["283Q00000X","16",{"$f":"\"305\"","v":"305"},"RESIDENTIAL AND FREESTANDING PSYCHIATRIC FACILITY","SHORT-TERM RESIDENTIAL TREATMENT","283Q00000X","PSYCHIATRIC HOSPITAL"]
["284300000X","16",{"$f":"\"305\"","v":"305"},"RESIDENTIAL AND FREESTANDING PSYCHIATRIC FACILITY","SHORT-TERM RESIDENTIAL TREATMENT","284300000X","SPECIAL HOSPITAL"]
["283Q00000X","16",{"$f":"\"306\"","v":"306"},"RESIDENTIAL AND FREESTANDING PSYCHIATRIC FACILITY","PSYCHIATRIC RESIDENTIAL TREATEMENT FACILITY","283Q00000X","PSYCHIATRIC HOSPITAL"]
["284300000X","16",{"$f":"\"306\"","v":"306"},"RESIDENTIAL AND FREESTANDING PSYCHIATRIC FACILITY","PSYCHIATRIC RESIDENTIAL TREATEMENT FACILITY","284300000X","SPECIAL HOSPITAL"]
["284300000X","16",{"$f":"\"916\"","v":"916"},"RESIDENTIAL AND FREESTANDING PSYCHIATRIC FACILITY","SIPP","284300000X","SPECIAL HOSPITAL"]
["323P00000X","16",{"$f":"\"916\"","v":"916"},"RESIDENTIAL AND FREESTANDING PSYCHIATRIC FACILITY","SIPP","323P00000X","PSYCHIATRIC RESIDENTIAL TREATMENT FACILITY"]
["333600000X",{"$f":"\"20\"","v":"20"},{"$f":"\"150\"","v":"150"},"PRESCRIBED DRUG SERVICES","COMMUNITY PHARMACY","333600000X","PHARMACY"]
["3336C0003X","20",{"$f":"\"150\"","v":"150"},"PRESCRIBED DRUG SERVICES","COMMUNITY PHARMACY","3336C0003X","PHARMACY - COMMUNITY/RETAIL PHARMACY"]
["3336C0004X","20",{"$f":"\"150\"","v":"150"},"PRESCRIBED DRUG SERVICES","COMMUNITY PHARMACY","3336C0004X","PHARMACY - COMPOUNDING PHARMACY"]
["261QI0500X","20",{"$f":"\"151\"","v":"151"},"PRESCRIBED DRUG SERVICES","INFUSION PHARMACY","261QI0500X","CLINIC/CENTER - INFUSION THERAPY"]
["3336H0001X","20",{"$f":"\"151\"","v":"151"},"PRESCRIBED DRUG SERVICES","INFUSION PHARMACY","3336H0001X","PHARMACY - HOME INFUSION THERAPY PHARMACY"]
["3336L0003X","20",{"$f":"\"152\"","v":"152"},"PRESCRIBED DRUG SERVICES","LTC - NON COMMUNITY","3336L0003X","PHARMACY - LONG TERM CARE PHARMACY"]
["3336C0002X","20",{"$f":"\"153\"","v":"153"},"PRESCRIBED DRUG SERVICES","INSTITUTIONAL CLASS I PHARMACY (HOSPITAL/NH)","3336C0002X","PHARMACY - CLINIC PHARMACY"]
["3336I0012X","20",{"$f":"\"153\"","v":"153"},"PRESCRIBED DRUG SERVICES","INSTITUTIONAL CLASS I PHARMACY (HOSPITAL/NH)","3336I0012X","PHARMACY - INSTITUTIONAL PHARMACY"]
["3336C0003X","20",{"$f":"\"154\"","v":"154"},"PRESCRIBED DRUG SERVICES","TAX SUPPORTED","3336C0003X","PHARMACY - COMMUNITY/RETAIL PHARMACY"]
["3336C0003X","20",{"$f":"\"155\"","v":"155"},"PRESCRIBED DRUG SERVICES","340B PHARMACY","3336C0003X","PHARMACY - COMMUNITY/RETAIL PHARMACY"]
["332900000X","20",{"$f":"\"156\"","v":"156"},"PRESCRIBED DRUG SERVICES","DISPENSING PRACTITIONER","332900000X","NON-PHARMACY DISPENSING SITE"]
["3336N0007X","20",{"$f":"\"157\"","v":"157"},"PRESCRIBED DRUG SERVICES","NUCLEAR PHARMACY","3336N0007X","PHARMACY - NUCLEAR PHARMACY"]
["3336S0011X","20",{"$f":"\"158\"","v":"158"},"PRESCRIBED DRUG SERVICES","SPECIAL PHARMACY (PARENTERAL, ALF, CLSD SYS, ESRD)","3336S0011X","PHARMACY - SPECIALTY PHARMACY"]
["3747P1801X",{"$f":"\"23\"","v":"23"},{"$f":"\"923\"","v":"923"},"MEDICAL FOSTER CARE/ PERSONAL CARE PROVIDER","MEDICAL FOSTER CARE/ PERSONAL CARE PROVIDER","3747P1801X","TECHNICIAN - PERSONAL CARE ATTENDANT"]
["261QM3000X",{"$f":"\"24\"","v":"24"},{"$f":"\"924\"","v":"924"},"PRESCRIBED PEDIATRIC EXTENDED CARE (PPECC)","PRESCRIBED PEDIATRIC EXTENDED CARE (PPECC)","261QM3000X","CLINIC/CENTER - MEDICALLY FRAGILE INTANTS AND CHILDREN DAY CARE"]
["207QA0000X",{"$f":"\"25\"","v":"25"},{"$f":"\"001\"","v":"001"},"PHYSICIAN (M.D.)","ADOLESCENT MEDICINE","207QA0000X","FAMILY MEDICINE - ADOLESCENT MEDICINE"]
["207RA0000X","25",{"$f":"\"001\"","v":"001"},"PHYSICIAN (M.D.)","ADOLESCENT MEDICINE","207RA0000X","INTERNAL MEDICINE - ADOLESCENT MEDICINE"]
["2080A0000X","25",{"$f":"\"001\"","v":"001"},"PHYSICIAN (M.D.)","ADOLESCENT MEDICINE","2080A0000X","PEDIATRICS - ADOLESCENT MEDICINE"]
["2084E0001X","25",{"$f":"\"001\"","v":"001"},"PHYSICIAN (M.D.)","ADOLESCENT MEDICINE","2084E0001X","EPILEPSY PHYSICIAN"]
["207K00000X","25",{"$f":"\"002\"","v":"002"},"PHYSICIAN (M.D.)","ALLERGY","207K00000X","ALLERGY & IMMUNOLOGY"]
["207KA0200X","25",{"$f":"\"002\"","v":"002"},"PHYSICIAN (M.D.)","ALLERGY","207KA0200X","ALLERGY & IMMUNOLOGY - ALLERGY"]
["207L00000X","25",{"$f":"\"003\"","v":"003"},"PHYSICIAN (M.D.)","ANESTHESIOLOGY","207L00000X","ANESTHESIOLOGY"]
["207LA0401X","25","003","PHYSICIAN (M.D.)","ANESTHESIOLOGY","207LA0401X","ANESTHESIOLOGY - ADDICTION MEDICINE"]
["207LC0200X","25","003","PHYSICIAN (M.D.)","ANESTHESIOLOGY","207LC0200X","ANESTHESIOLOGY - CRITICAL CARE MEDICINE"]
["207LH0002X","25","003","PHYSICIAN (M.D.)","ANESTHESIOLOGY","207LH0002X","ANESTHESIOLOGY - HOSPICE AND PALLIATIVE MEDICINE"]
["207LP2900X","25","003","PHYSICIAN (M.D.)","ANESTHESIOLOGY","207LP2900X","ANESTHESIOLOGY - PAIN MEDICINE"]
["207LP3000X","25","003","PHYSICIAN (M.D.)","ANESTHESIOLOGY","207LP3000X","ANESTHESIOLOGY - PEDIATRIC ANESTHESIOLOGY"]
["207RC0000X","25",{"$f":"\"004\"","v":"004"},"PHYSICIAN (M.D.)","CARDIOVASCULAR MEDICINE","207RC0000X","INTERNAL MEDICINE - CARDIOVASCULAR DISEASE"]
["207RC0001X","25",{"$f":"\"004\"","v":"004"},"PHYSICIAN (M.D.)","CARDIOVASCULAR MEDICINE","207RC0001X","INTERNAL MEDICINE - CLINICAL CARDIAC ELECTROPHYSIOLOGY"]
["207RI0011X","25",{"$f":"\"004\"","v":"004"},"PHYSICIAN (M.D.)","CARDIOVASCULAR MEDICINE","207RI0011X","INTERNAL MEDICINE - INTERVENTIONAL CARDIOLOGY"]
["207N00000X","25",{"$f":"\"005\"","v":"005"},"PHYSICIAN (M.D.)","DERMATOLOGY","207N00000X","DERMATOLOGY"]
["207ND0101X","25","005","PHYSICIAN (M.D.)","DERMATOLOGY","207ND0101X","DERMATOLOGY - MOHS-MICROGRAPHIC SURGERY"]
["207ND0900X","25","005","PHYSICIAN (M.D.)","DERMATOLOGY","207ND0900X","DERMATOLOGY - DERMATOPATHOLOGY"]
["207NI0002X","25","005","PHYSICIAN (M.D.)","DERMATOLOGY","207NI0002X","DERMATOLOGY - CLINICAL & LABORATORY DERMATOLOGICAL IMMUNOLOGY"]
["207NP0225X","25","005","PHYSICIAN (M.D.)","DERMATOLOGY","207NP0225X","DERMATOLOGY - PEDIATRIC DERMATOLOGY"]
["207NS0135X","25","005","PHYSICIAN (M.D.)","DERMATOLOGY","207NS0135X","DERMATOLOGY - PROCEDURAL DERMATOLOGY"]
["207RE0101X","25",{"$f":"\"006\"","v":"006"},"PHYSICIAN (M.D.)","DIABETES","207RE0101X","INTERNAL MEDICINE - ENDOCRINOLOGY, DIABETES & METABOLISM"]
["207P00000X","25",{"$f":"\"007\"","v":"007"},"PHYSICIAN (M.D.)","EMERGENCY MEDICINE","207P00000X","EMERGENCY MEDICINE"]
["207PE0004X","25","007","PHYSICIAN (M.D.)","EMERGENCY MEDICINE","207PE0004X","EMERGENCY MEDICINE - EMERGENCY MEDICAL SERVICES"]
["207PE0005X","25","007","PHYSICIAN (M.D.)","EMERGENCY MEDICINE","207PE0005X","EMERGENCY MEDICINE - UNDERSEA AND HYPERBARIC MEDICINE"]
[{"$f":"CLEAN(F131)","v":"207PH0002X"},"25","007","PHYSICIAN (M.D.)","EMERGENCY MEDICINE","207PH0002X","EMERGENCY MEDICINE - HOSPICE AND PALLIATIVE MEDICINE"]
["207PP0204X","25","007","PHYSICIAN (M.D.)","EMERGENCY MEDICINE","207PP0204X","EMERGENCY MEDICINE - PEDIATRIC EMERGENCY MEDICINE"]
["207PS0010X","25","007","PHYSICIAN (M.D.)","EMERGENCY MEDICINE","207PS0010X","EMERGENCY MEDICINE - SPORTS MEDICINE"]
["207PT0002X","25","007","PHYSICIAN (M.D.)","EMERGENCY MEDICINE","207PT0002X","EMERGENCY MEDICINE - MEDICAL TOXICOLOGY"]
["207RE0101X","25",{"$f":"\"008\"","v":"008"},"PHYSICIAN (M.D.)","ENDOCRINOLOGY","207RE0101X","INTERNAL MEDICINE - ENDOCRINOLOGY, DIABETES & METABOLISM"]
["202D00000X","25",{"$f":"\"009\"","v":"009"},"PHYSICIAN (M.D.)","FAMILY PRACTICE","202D00000X","INTEGRATIVE MEDICINE"]
["207Q00000X","25","009","PHYSICIAN (M.D.)","FAMILY PRACTICE","207Q00000X","FAMILY MEDICINE"]
["207QA0401X","25","009","PHYSICIAN (M.D.)","FAMILY PRACTICE","207QA0401X","FAMILY MEDICINE - ADDICTION MEDICINE"]
["207QA0505X","25","009","PHYSICIAN (M.D.)","FAMILY PRACTICE","207QA0505X","FAMILY MEDICINE - ADULT MEDICINE"]
["207QB0002X","25","009","PHYSICIAN (M.D.)","FAMILY PRACTICE","207QB0002X","FAMILY MEDICINE - OBESITY MEDICINE"]
["207QH0002X","25","009","PHYSICIAN (M.D.)","FAMILY PRACTICE","207QH0002X","FAMILY MEDICINE - HOSPICE AND PALLIATIVE MEDICINE"]
["207QS0010X","25","009","PHYSICIAN (M.D.)","FAMILY PRACTICE","207QS0010X","FAMILY MEDICINE - SPORTS MEDICINE"]
["207QS1201X","25","009","PHYSICIAN (M.D.)","FAMILY PRACTICE","207QS1201X","FAMILY MEDICINE - SLEEP MEDICINE"]
["207RG0100X","25",{"$f":"\"010\"","v":"010"},"PHYSICIAN (M.D.)","GASTROENTEROLOGY","207RG0100X","INTERNAL MEDICINE - GASTROENTEROLOGY"]
["207RT0003X","25",{"$f":"\"010\"","v":"010"},"PHYSICIAN (M.D.)","GASTROENTEROLOGY","207RT0003X","INTERNAL MEDICINE - TRANSPLANT HEPATOLOGY"]
["202D00000X","25",{"$f":"\"011\"","v":"011"},"PHYSICIAN (M.D.)","GENERAL PRACTICE (DEFAULT SPEC FOR PHYS)","202D00000X","INTEGRATIVE MEDICINE"]
["2084E0001X","25",{"$f":"\"011\"","v":"011"},"PHYSICIAN (M.D.)","GENERAL PRACTICE (DEFAULT SPEC FOR PHYS)","2084E0001X","EPILEPSY PHYSICIAN"]
["208D00000X","25",{"$f":"\"011\"","v":"011"},"PHYSICIAN (M.D.)","GENERAL PRACTICE (DEFAULT SPEC FOR PHYS)","208D00000X","GENERAL PRACTICE"]
["202D00000X","25",{"$f":"\"012\"","v":"012"},"PHYSICIAN (M.D.)","PREVENTIVE MEDICINE","202D00000X","INTEGRATIVE MEDICINE"]
["207RA0401X","25","012","PHYSICIAN (M.D.)","PREVENTIVE MEDICINE","207RA0401X","INTERNAL MEDICINE - ADDICTION MEDICINE"]
["2083A0100X","25","012","PHYSICIAN (M.D.)","PREVENTIVE MEDICINE","2083A0100X","PREVENTIVE MEDICINE - AEROSPACE MEDICINE"]
["2083B0002X","25","012","PHYSICIAN (M.D.)","PREVENTIVE MEDICINE","2083B0002X","PREVENTIVE MEDICINE - OBESITY MEDICINE"]
["2083C0008X","25","012","PHYSICIAN (M.D.)","PREVENTIVE MEDICINE","2083C0008X","PREVENTIVE MEDICINE - CLINICAL INFORMATICS"]
["2083P0011X","25","012","PHYSICIAN (M.D.)","PREVENTIVE MEDICINE","2083P0011X","PREVENTIVE MEDICINE - UNDERSEA AND HYPERBARIC MEDICINE"]
["2083P0500X","25","012","PHYSICIAN (M.D.)","PREVENTIVE MEDICINE","2083P0500X","PREVENTIVE MEDICINE - PREVENTIVE MEDICINE/OCCUPATIONAL ENVIRONMENTAL MEDICINE"]
["2083P0901X","25","012","PHYSICIAN (M.D.)","PREVENTIVE MEDICINE","2083P0901X","PREVENTIVE MEDICINE - PUBLIC HEALTH & GENERAL PREVENTIVE MEDICINE"]
["2083S0010X","25","012","PHYSICIAN (M.D.)","PREVENTIVE MEDICINE","2083S0010X","PREVENTIVE MEDICINE - SPORTS MEDICINE"]
["2083T0002X","25","012","PHYSICIAN (M.D.)","PREVENTIVE MEDICINE","2083T0002X","PREVENTIVE MEDICINE - MEDICAL TOXICOLOGY"]
["207QG0300X","25",{"$f":"\"013\"","v":"013"},"PHYSICIAN (M.D.)","GERIATRICS","207QG0300X","FAMILY MEDICINE - GERIATRIC MEDICINE"]
["207RG0300X","25",{"$f":"\"013\"","v":"013"},"PHYSICIAN (M.D.)","GERIATRICS","207RG0300X","INTERNAL MEDICINE - GERIATRIC MEDICINE"]
["207VG0400X","25",{"$f":"\"014\"","v":"014"},"PHYSICIAN (M.D.)","GYNECOLOGY","207VG0400X","OBSTETRICS & GYNECOLOGY - GYNECOLOGY"]
["207VX0201X","25",{"$f":"\"014\"","v":"014"},"PHYSICIAN (M.D.)","GYNECOLOGY","207VX0201X","OBSTETRICS & GYNECOLOGY - GYNECOLOGIC ONCOLOGY"]
["207RH0000X","25",{"$f":"\"015\"","v":"015"},"PHYSICIAN (M.D.)","HEMATOLOGY","207RH0000X","INTERNAL MEDICINE - HEMATOLOGY"]
["207ZH0000X","25",{"$f":"\"015\"","v":"015"},"PHYSICIAN (M.D.)","HEMATOLOGY","207ZH0000X","PATHOLOGY - HEMATOLOGY"]
["207KI0005X","25",{"$f":"\"016\"","v":"016"},"PHYSICIAN (M.D.)","IMMUNOLOGY","207KI0005X","ALLERGY & IMMUNOLOGY - CLINICAL & LABORATORY IMMUNOLOGY"]
["207RI0001X","25",{"$f":"\"016\"","v":"016"},"PHYSICIAN (M.D.)","IMMUNOLOGY","207RI0001X","INTERNAL MEDICINE - CLINICAL & LABORATORY IMMUNOLOGY"]
["207RI0200X","25",{"$f":"\"017\"","v":"017"},"PHYSICIAN (M.D.)","INFECTIOUS DISEASES","207RI0200X","INTERNAL MEDICINE - INFECTIOUS DISEASE"]
["202D00000X","25",{"$f":"\"018\"","v":"018"},"PHYSICIAN (M.D.)","INTERNAL MEDICINE","202D00000X","INTEGRATIVE MEDICINE"]
["207R00000X","25","018","PHYSICIAN (M.D.)","INTERNAL MEDICINE","207R00000X","INTERNAL MEDICINE"]
["207RA0401X",{"$f":"\"25\"","v":"25"},"018","PHYSICIAN (M.D.)","INTERNAL MEDICINE","207RA0401X","INTERNAL MEDICINE - ADDICTION MEDICINE"]
["207RB0002X","25","018","PHYSICIAN (M.D.)","INTERNAL MEDICINE","207RB0002X","INTERNAL MEDICINE - OBESITY MEDICINE"]
["207RC0200X","25","018","PHYSICIAN (M.D.)","INTERNAL MEDICINE","207RC0200X","INTERNAL MEDICINE - CRITICAL CARE MEDICINE"]
["207RH0002X","25","018","PHYSICIAN (M.D.)","INTERNAL MEDICINE","207RH0002X","INTERNAL MEDICINE - HOSPICE AND PALLIATIVE MEDICINE"]
["207RH0005X","25","018","PHYSICIAN (M.D.)","INTERNAL MEDICINE","207RH0005X","INTERNAL MEDICINE - HYPERTENSION SPECIALIST"]
["207RI0008X","25","018","PHYSICIAN (M.D.)","INTERNAL MEDICINE","207RI0008X","INTERNAL MEDICINE - HEPATOLOGY"]
["207RM1200X","25","018","PHYSICIAN (M.D.)","INTERNAL MEDICINE","207RM1200X","INTERNAL MEDICINE - MAGNETIC RESONANCE IMAGING (MRI)"]
["207RS0010X","25","018","PHYSICIAN (M.D.)","INTERNAL MEDICINE","207RS0010X","INTERNAL MEDICINE - SPORTS MEDICINE"]
["207RS0012X","25","018","PHYSICIAN (M.D.)","INTERNAL MEDICINE","207RS0012X","INTERNAL MEDICINE - SLEEP MEDICINE"]
["2084E0001X","25","018","PHYSICIAN (M.D.)","INTERNAL MEDICINE","2084E0001X","EPILEPSY PHYSICIAN"]
["261QI0500X","25","018","PHYSICIAN (M.D.)","INTERNAL MEDICINE","261QI0500X","CLINIC/CENTER - INFUSION THERAPY"]
["2080N0001X","25",{"$f":"\"019\"","v":"019"},"PHYSICIAN (M.D.)","NEONATAL/PERINATAL","2080N0001X","PEDIATRICS - NEONATAL-PERINATAL MEDICINE"]
["207RN0300X","25",{"$f":"\"021\"","v":"021"},"PHYSICIAN (M.D.)","NEPHROLOGY","207RN0300X","INTERNAL MEDICINE - NEPHROLOGY"]
["2084B0002X","25",{"$f":"\"022\"","v":"022"},"PHYSICIAN (M.D.)","NEUROLOGY","2084B0002X","PSYCHIATRY AND NEUROLOGY - OBESITY MEDICINE"]
["2084B0040X","25","022","PHYSICIAN (M.D.)","NEUROLOGY","2084B0040X","PSYCHIATRY AND NEUROLOGY - BEHAVIORAL NEUROLOGY AND NEUROPSYCHIATRY"]
["2084D0003X","25","022","PHYSICIAN (M.D.)","NEUROLOGY","2084D0003X","PSYCHIATRY & NEUROLOGY - DIAGNOSTIC NEUROIMAGING"]
["2084E0001X","25","022","PHYSICIAN (M.D.)","NEUROLOGY","2084E0001X","EPILEPSY PHYSICIAN"]
["2084H0002X","25","022","PHYSICIAN (M.D.)","NEUROLOGY","2084H0002X","PSYCHIATRY & NEUROLOGY - HOSPICE AND PALLIATIVE MEDICINE"]
["2084N0008X","25","022","PHYSICIAN (M.D.)","NEUROLOGY","2084N0008X","PSYCHIATRY & NEUROLOGY - NEUROMUSCULAR MEDICINE"]
["2084N0400X","25","022","PHYSICIAN (M.D.)","NEUROLOGY","2084N0400X","PSYCHIATRY & NEUROLOGY - NEUROLOGY"]
["2084N0600X","25","022","PHYSICIAN (M.D.)","NEUROLOGY","2084N0600X","PSYCHIATRY & NEUROLOGY - CLINICAL NEUROPHYSIOLOGY"]
["2084P0005X","25","022","PHYSICIAN (M.D.)","NEUROLOGY","2084P0005X","PSYCHIATRY & NEUROLOGY - NEURODEVELOPMENTAL DISABILITIES"]
["2084P0015X","25","022","PHYSICIAN (M.D.)","NEUROLOGY","2084P0015X","PSYCHIATRY & NEUROLOGY - PSYCHOSOMATIC MEDICINE"]
["2084P0301X","25","022","PHYSICIAN (M.D.)","NEUROLOGY","2084P0301X","PSYCHIATRY AND NEUROLOGY - BRAIN INJURY MEDICINE"]
["2084P0805X","25","022","PHYSICIAN (M.D.)","NEUROLOGY","2084P0805X","PSYCHIATRY & NEUROLOGY - GERIATRIC PSYCHIATRY"]
[{"$f":"CLEAN(F195)","v":"2084P2900X"},"25","022","PHYSICIAN (M.D.)","NEUROLOGY","2084P2900X","PSYCHIATRY & NEUROLOGY - PAIN MEDICINE"]
["2084S0010X","25","022","PHYSICIAN (M.D.)","NEUROLOGY","2084S0010X","PSYCHIATRY & NEUROLOGY - SPORTS MEDICINE"]
["2084S0012X","25","022","PHYSICIAN (M.D.)","NEUROLOGY","2084S0012X","PSYCHIATRY & NEUROLOGY - SLEEP MEDICINE"]
["2084V0102X","25","022","PHYSICIAN (M.D.)","NEUROLOGY","2084V0102X","PSYCHIATRY & NEUROLOGY - VASCULAR NEUROLOGY"]
["2084E0001X","25",{"$f":"\"023\"","v":"023"},"PHYSICIAN (M.D.)","NEUROLOGY/CHILDREN","2084E0001X","EPILEPSY PHYSICIAN"]
["2084N0402X","25",{"$f":"\"023\"","v":"023"},"PHYSICIAN (M.D.)","NEUROLOGY/CHILDREN","2084N0402X","PSYCHIATRY & NEUROLOGY - NEUROLOGY WITH SPECIAL QUALIFICATIONS IN CHILD NEUROLOGY"]
["2084P0005X","25",{"$f":"\"023\"","v":"023"},"PHYSICIAN (M.D.)","NEUROLOGY/CHILDREN","2084P0005X","PSYCHIATRY & NEUROLOGY - NEURODEVELOPMENTAL DISABILITIES"]
["2084P0301X","25",{"$f":"\"023\"","v":"023"},"PHYSICIAN (M.D.)","NEUROLOGY/CHILDREN","2084P0301X","PSYCHIATRY AND NEUROLOGY - BRAIN INJURY MEDICINE"]
["207ZN0500X","25",{"$f":"\"024\"","v":"024"},"PHYSICIAN (M.D.)","NEUROPATHOLOGY","207ZN0500X","PATHOLOGY - NEUROPATHOLOGY"]
["2084E0001X","25",{"$f":"\"024\"","v":"024"},"PHYSICIAN (M.D.)","NEUROPATHOLOGY","2084E0001X","EPILEPSY PHYSICIAN"]
["207VX0000X","25",{"$f":"\"026\"","v":"026"},"PHYSICIAN (M.D.)","OBSTETRICS","207VX0000X","OBSTETRICS & GYNECOLOGY - OBSTETRICS"]
["207V00000X","25",{"$f":"\"027\"","v":"027"},"PHYSICIAN (M.D.)","OB-GYN","207V00000X","OBSTETRICS & GYNECOLOGY"]
["207VB0002X","25","027","PHYSICIAN (M.D.)","OB-GYN","207VB0002X","OBSTETRICS AND GYNECOLOGY - OBESITY MEDICINE"]
["207VC0200X","25","027","PHYSICIAN (M.D.)","OB-GYN","207VC0200X","OBSTETRICS & GYNECOLOGY - CRITICAL CARE MEDICINE"]
["207VC0300X","25","027","PHYSICIAN (M.D.)","OB-GYN","207VC0300X","OBSTETRICS & GYNECOLOGY - COMPLEX FAMILY PLANNING"]
["207VE0102X","25","027","PHYSICIAN (M.D.)","OB-GYN","207VE0102X","OBSTETRICS & GYNECOLOGY - REPRODUCTIVE ENDOCRINOLOGY"]
["207VF0040X","25","027","PHYSICIAN (M.D.)","OB-GYN","207VF0040X","OBSTETRICS AND GYNECOLOGY - FEMALE PELVIC MEDICINE AND RECONSTRUCTIVE SURGERY"]
["207VH0002X","25","027","PHYSICIAN (M.D.)","OB-GYN","207VH0002X","OBSTETRICS & GYNECOLOGY - HOSPICE AND PALLIATIVE MEDICINE"]
["2083X0100X","25",{"$f":"\"028\"","v":"028"},"PHYSICIAN (M.D.)","OCCUPATIONAL MEDICINE","2083X0100X","PREVENTIVE MEDICINE - OCCUPATIONAL MEDICINE"]
["207RX0202X","25",{"$f":"\"029\"","v":"029"},"PHYSICIAN (M.D.)","ONCOLOGY","207RX0202X","INTERNAL MEDICINE - MEDICAL ONCOLOGY"]
["207W00000X","25",{"$f":"\"030\"","v":"030"},"PHYSICIAN (M.D.)","OPHTHALMOLOGY","207W00000X","OPHTHALMOLOGY"]
["207WX0200X","25",{"$f":"\"030\"","v":"030"},"PHYSICIAN (M.D.)","OPHTHALMOLOGY","207WX0200X","OPHTHALMOLOGY - OPHTHALMIC PLASTIC AND RECONSTRUCTIVE SURGERY"]
["207Y00000X","25",{"$f":"\"031\"","v":"031"},"PHYSICIAN (M.D.)","OTOLARYNGOLOGY","207Y00000X","OTOLARYNGOLOGY"]
["207YP0228X","25","031","PHYSICIAN (M.D.)","OTOLARYNGOLOGY","207YP0228X","OTOLARYNGOLOGY - PEDIATRIC OTOLARYNGOLOGY"]
["207YS0012X","25","031","PHYSICIAN (M.D.)","OTOLARYNGOLOGY","207YS0012X","OTOLARYNGOLOGY - SLEEP MEDICINE"]
["207YS0123X","25","031","PHYSICIAN (M.D.)","OTOLARYNGOLOGY","207YS0123X","OTOLARYNGOLOGY - FACIAL PLASTIC SURGERY"]
["207YX0007X","25","031","PHYSICIAN (M.D.)","OTOLARYNGOLOGY","207YX0007X","OTOLARYNGOLOGY - PLASTIC SURGERY WITHIN THE HEAD & NECK"]
["207YX0602X","25","031","PHYSICIAN (M.D.)","OTOLARYNGOLOGY","207YX0602X","OTOLARYNGOLOGY - OTOLARYNGIC ALLERGY"]
["207YX0901X","25","031","PHYSICIAN (M.D.)","OTOLARYNGOLOGY","207YX0901X","OTOLARYNGOLOGY - OTOLOGY & NEUROTOLOGY"]
["207YX0905X","25","031","PHYSICIAN (M.D.)","OTOLARYNGOLOGY","207YX0905X","OTOLARYNGOLOGY - OTOLARYNGOLOGY/FACIAL PLASTIC SURGERY"]
["207SM0001X","25",{"$f":"\"032\"","v":"032"},"PHYSICIAN (M.D.)","PATHOLOGY","207SM0001X","MEDICAL GENETICS - MOLECULAR GENETIC PATHOLOGY"]
["207ZB0001X","25","032","PHYSICIAN (M.D.)","PATHOLOGY","207ZB0001X","PATHOLOGY - BLOOD BANKING & TRANSFUSION MEDICINE"]
["207ZC0006X","25","032","PHYSICIAN (M.D.)","PATHOLOGY","207ZC0006X","PATHOLOGY - CLINICAL PATHOLOGY"]
["207ZC0008X","25","032","PHYSICIAN (M.D.)","PATHOLOGY","207ZC0008X","PATHOLOGY - CLINICAL INFORMATICS"]
["207ZC0500X","25","032","PHYSICIAN (M.D.)","PATHOLOGY","207ZC0500X","PATHOLOGY - CYTOPATHOLOGY"]
["207ZD0900X","25","032","PHYSICIAN (M.D.)","PATHOLOGY","207ZD0900X","PATHOLOGY - DERMATOPATHOLOGY"]
["207ZI0100X","25","032","PHYSICIAN (M.D.)","PATHOLOGY","207ZI0100X","PATHOLOGY - IMMUNOPATHOLOGY"]
["207ZM0300X","25","032","PHYSICIAN (M.D.)","PATHOLOGY","207ZM0300X","PATHOLOGY - MEDICAL MICROBIOLOGY"]
["207ZP0007X","25","032","PHYSICIAN (M.D.)","PATHOLOGY","207ZP0007X","PATHOLOGY - MOLECULAR GENETIC PATHOLOGY"]
["207ZP0101X",{"$f":"\"25\"","v":"25"},"032","PHYSICIAN (M.D.)","PATHOLOGY","207ZP0101X","PATHOLOGY - ANATOMIC PATHOLOGY"]
["207ZP0102X","25","032","PHYSICIAN (M.D.)","PATHOLOGY","207ZP0102X","PATHOLOGY - ANATOMIC PATHOLOGY & CLINICAL PATHOLOGY"]
["207ZP0104X","25","032","PHYSICIAN (M.D.)","PATHOLOGY","207ZP0104X","PATHOLOGY - CHEMICAL PATHOLOGY"]
["207ZP0105X","25","032","PHYSICIAN (M.D.)","PATHOLOGY","207ZP0105X","PATHOLOGY - CLINICAL PATHOLOGY/LABORATORY MEDICINE"]
["207ZP0213X","25","032","PHYSICIAN (M.D.)","PATHOLOGY","207ZP0213X","PATHOLOGY - PEDIATRIC PATHOLOGY"]
["207SM0001X","25",{"$f":"\"033\"","v":"033"},"PHYSICIAN (M.D.)","PATHOLOGY, CLINICAL","207SM0001X","MEDICAL GENETICS - MOLECULAR GENETIC PATHOLOGY"]
["207ZC0006X","25","033","PHYSICIAN (M.D.)","PATHOLOGY, CLINICAL","207ZC0006X","PATHOLOGY - CLINICAL PATHOLOGY"]
["207ZC0500X","25","033","PHYSICIAN (M.D.)","PATHOLOGY, CLINICAL","207ZC0500X","PATHOLOGY - CYTOPATHOLOGY"]
["207ZD0900X","25","033","PHYSICIAN (M.D.)","PATHOLOGY, CLINICAL","207ZD0900X","PATHOLOGY - DERMATOPATHOLOGY"]
["207ZP0104X","25","033","PHYSICIAN (M.D.)","PATHOLOGY, CLINICAL","207ZP0104X","PATHOLOGY - CHEMICAL PATHOLOGY"]
["207ZP0213X","25","033","PHYSICIAN (M.D.)","PATHOLOGY, CLINICAL","207ZP0213X","PATHOLOGY - PEDIATRIC PATHOLOGY"]
["207ZF0201X","25",{"$f":"\"034\"","v":"034"},"PHYSICIAN (M.D.)","PATHOLOGY, FORENSIC","207ZF0201X","PATHOLOGY - FORENSIC PATHOLOGY"]
["208000000X","25",{"$f":"\"035\"","v":"035"},"PHYSICIAN (M.D.)","PEDIATRICS","208000000X","PEDIATRICS"]
["2080B0002X","25","035","PHYSICIAN (M.D.)","PEDIATRICS","2080B0002X","PEDIATRICS - OBESITY MEDICINE"]
["2080C0008X","25","035","PHYSICIAN (M.D.)","PEDIATRICS","2080C0008X","PEDIATRICS - CHILD ABUSE PEDIATRICS"]
["2080I0007X","25","035","PHYSICIAN (M.D.)","PEDIATRICS","2080I0007X","PEDIATRICS - CLINICAL & LABORATORY IMMUNOLOGY"]
["2080P0006X","25","035","PHYSICIAN (M.D.)","PEDIATRICS","2080P0006X","PEDIATRICS - DEVELOPMENTAL - BEHAVIORAL PEDIATRICS"]
["2080P0008X","25","035","PHYSICIAN (M.D.)","PEDIATRICS","2080P0008X","PEDIATRICS - NEURODEVELOPMENTAL DISABILITIES"]
["2080P0206X","25","035","PHYSICIAN (M.D.)","PEDIATRICS","2080P0206X","PEDIATRICS - PEDIATRIC GASTROENTEROLOGY"]
["2080P0208X","25","035","PHYSICIAN (M.D.)","PEDIATRICS","2080P0208X","PEDIATRICS - PEDIATRIC INFECTIOUS DISEASES"]
["2080P0214X","25","035","PHYSICIAN (M.D.)","PEDIATRICS","2080P0214X","PEDIATRICS - PEDIATRIC PULMONOLOGY"]
["2080P0216X","25","035","PHYSICIAN (M.D.)","PEDIATRICS","2080P0216X","PEDIATRICS - PEDIATRIC RHEUMATOLOGY"]
["2080S0010X","25","035","PHYSICIAN (M.D.)","PEDIATRICS","2080S0010X","PEDIATRICS - SPORTS MEDICINE"]
["2080S0012X","25","035","PHYSICIAN (M.D.)","PEDIATRICS","2080S0012X","PEDIATRICS - SLEEP MEDICINE"]
["2080T0002X","25","035","PHYSICIAN (M.D.)","PEDIATRICS","2080T0002X","PEDIATRICS - MEDICAL TOXICOLOGY"]
[{"$f":"CLEAN(F259)","v":"2080T0004X"},"25","035","PHYSICIAN (M.D.)","PEDIATRICS","2080T0004X","PEDIATRICS - PEDIATRIC TRANSPLANT HEPATOLOGY"]
["2084E0001X","25","035","PHYSICIAN (M.D.)","PEDIATRICS","2084E0001X","EPILEPSY PHYSICIAN"]
["2084P0005X","25","035","PHYSICIAN (M.D.)","PEDIATRICS","2084P0005X","PSYCHIATRY & NEUROLOGY - NEURODEVELOPMENTAL DISABILITIES"]
["2080P0201X","25",{"$f":"\"036\"","v":"036"},"PHYSICIAN (M.D.)","PEDIATRICS, ALLERGY","2080P0201X","PEDIATRICS - PEDIATRIC ALLERGY/IMMUNOLOGY"]
["2080P0202X","25",{"$f":"\"037\"","v":"037"},"PHYSICIAN (M.D.)","PEDIATRICS, CARDIOLOGY","2080P0202X","PEDIATRICS - PEDIATRIC CARDIOLOGY"]
["2080P0207X","25",{"$f":"\"038\"","v":"038"},"PHYSICIAN (M.D.)","PEDIATRICS, ONCOLOGY/HEMATOLOGY","2080P0207X","PEDIATRICS - PEDIATRIC HEMATOLOGY-ONCOLOGY"]
["2080P0210X","25",{"$f":"\"039\"","v":"039"},"PHYSICIAN (M.D.)","PEDIATRICS, NEPHROLOGY","2080P0210X","PEDIATRICS - PEDIATRIC NEPHROLOGY"]
["208100000X","25",{"$f":"\"041\"","v":"041"},"PHYSICIAN (M.D.)","PHYSICAL MEDICINE AND REHAB","208100000X","PHYSICAL MEDICINE & REHABILITATION"]
["2081H0002X","25","041","PHYSICIAN (M.D.)","PHYSICAL MEDICINE AND REHAB","2081H0002X","PHYSICAL MEDICINE & REHABILITATION - HOSPICE AND PALLIATIVE MEDICINE"]
["2081N0008X","25","041","PHYSICIAN (M.D.)","PHYSICAL MEDICINE AND REHAB","2081N0008X","PHYSICAL MEDICINE & REHABILITATION - NEUROMUSCULAR MEDICINE"]
["2081P0004X","25","041","PHYSICIAN (M.D.)","PHYSICAL MEDICINE AND REHAB","2081P0004X","PHYSICAL MEDICINE & REHABILITATION - SPINAL CORD INJURY MEDICINE"]
["2081P0010X","25","041","PHYSICIAN (M.D.)","PHYSICAL MEDICINE AND REHAB","2081P0010X","PHYSICAL MEDICINE & REHABILITATION - PEDIATRIC REHABILITATION MEDICINE"]
["2081P0301X","25","041","PHYSICIAN (M.D.)","PHYSICAL MEDICINE AND REHAB","2081P0301X","PHYSICAL MEDICINE AND REHABILITATION - BRAIN INJURY MEDICINE"]
["2081P2900X","25","041","PHYSICIAN (M.D.)","PHYSICAL MEDICINE AND REHAB","2081P2900X","PHYSICAL MEDICINE & REHABILITATION - PAIN MEDICINE"]
["2081S0010X","25","041","PHYSICIAN (M.D.)","PHYSICAL MEDICINE AND REHAB","2081S0010X","PHYSICAL MEDICINE & REHABILITATION - SPORTS MEDICINE"]
["207RA0401X","25",{"$f":"\"042\"","v":"042"},"PHYSICIAN (M.D.)","PSYCHIATRY","207RA0401X","INTERNAL MEDICINE - ADDICTION MEDICINE"]
["2084B0002X","25","042","PHYSICIAN (M.D.)","PSYCHIATRY","2084B0002X","PSYCHIATRY AND NEUROLOGY - OBESITY MEDICINE"]
["2084F0202X","25","042","PHYSICIAN (M.D.)","PSYCHIATRY","2084F0202X","PSYCHIATRY & NEUROLOGY - FORENSIC PSYCHIATRY"]
["2084H0002X","25","042","PHYSICIAN (M.D.)","PSYCHIATRY","2084H0002X","PSYCHIATRY & NEUROLOGY - HOSPICE AND PALLIATIVE MEDICINE"]
["2084N0600X","25","042","PHYSICIAN (M.D.)","PSYCHIATRY","2084N0600X","PSYCHIATRY & NEUROLOGY - CLINICAL NEUROPHYSIOLOGY"]
["2084P0015X","25","042","PHYSICIAN (M.D.)","PSYCHIATRY","2084P0015X","PSYCHIATRY & NEUROLOGY - PSYCHOSOMATIC MEDICINE"]
["2084P0301X","25","042","PHYSICIAN (M.D.)","PSYCHIATRY","2084P0301X","PSYCHIATRY AND NEUROLOGY - BRAIN INJURY MEDICINE"]
["2084P0800X","25","042","PHYSICIAN (M.D.)","PSYCHIATRY","2084P0800X","PSYCHIATRY & NEUROLOGY - PSYCHIATRY"]
["2084P0802X","25","042","PHYSICIAN (M.D.)","PSYCHIATRY","2084P0802X","PSYCHIATRY & NEUROLOGY - ADDICTION PSYCHIATRY"]
["2084P2900X","25","042","PHYSICIAN (M.D.)","PSYCHIATRY","2084P2900X","PSYCHIATRY & NEUROLOGY - PAIN MEDICINE"]
["2084S0012X","25","042","PHYSICIAN (M.D.)","PSYCHIATRY","2084S0012X","PSYCHIATRY & NEUROLOGY - SLEEP MEDICINE"]
["2084P0301X","25",{"$f":"\"043\"","v":"043"},"PHYSICIAN (M.D.)","PSYCHIATRY, CHILD","2084P0301X","PSYCHIATRY AND NEUROLOGY - BRAIN INJURY MEDICINE"]
["2084P0804X","25",{"$f":"\"043\"","v":"043"},"PHYSICIAN (M.D.)","PSYCHIATRY, CHILD","2084P0804X","PSYCHIATRY & NEUROLOGY - CHILD & ADOLESCENT PSYCHIATRY"]
["2083P0901X","25",{"$f":"\"045\"","v":"045"},"PHYSICIAN (M.D.)","PUBLIC HEALTH","2083P0901X","PREVENTIVE MEDICINE - PUBLIC HEALTH & GENERAL PREVENTIVE MEDICINE"]
["207RP1001X","25",{"$f":"\"046\"","v":"046"},"PHYSICIAN (M.D.)","PULMONARY DISEASES","207RP1001X","INTERNAL MEDICINE - PULMONARY DISEASE"]
["2080P0214X","25",{"$f":"\"046\"","v":"046"},"PHYSICIAN (M.D.)","PULMONARY DISEASES","2080P0214X","PEDIATRICS - PEDIATRIC PULMONOLOGY"]
["2085B0100X","25",{"$f":"\"047\"","v":"047"},"PHYSICIAN (M.D.)","RADIOLOGY","2085B0100X","RADIOLOGY - BODY IMAGING"]
["2085D0003X","25",{"$f":"\"047\"","v":"047"},"PHYSICIAN (M.D.)","RADIOLOGY","2085D0003X","RADIOLOGY - DIAGNOSTIC NEUROIMAGING"]
["207U00000X","25",{"$f":"\"048\"","v":"048"},"PHYSICIAN (M.D.)","RADIOLOGY, DIAGNOSTIC","207U00000X","NUCLEAR MEDICINE"]
["207UN0901X","25","048","PHYSICIAN (M.D.)","RADIOLOGY, DIAGNOSTIC","207UN0901X","NUCLEAR MEDICINE - NUCLEAR CARDIOLOGY"]
["207UN0903X","25","048","PHYSICIAN (M.D.)","RADIOLOGY, DIAGNOSTIC","207UN0903X","NUCLEAR MEDICINE - IN VIVO & IN VITRO NUCLEAR MEDICINE"]
["2085N0700X","25","048","PHYSICIAN (M.D.)","RADIOLOGY, DIAGNOSTIC","2085N0700X","RADIOLOGY - NEURORADIOLOGY"]
["2085N0904X","25","048","PHYSICIAN (M.D.)","RADIOLOGY, DIAGNOSTIC","2085N0904X","RADIOLOGY - NUCLEAR RADIOLOGY"]
["2085R0202X","25","048","PHYSICIAN (M.D.)","RADIOLOGY, DIAGNOSTIC","2085R0202X","RADIOLOGY - DIAGNOSTIC RADIOLOGY"]
["2085R0204X",{"$f":"\"25\"","v":"25"},"048","PHYSICIAN (M.D.)","RADIOLOGY, DIAGNOSTIC","2085R0204X","RADIOLOGY - VASCULAR & INTERVENTIONAL RADIOLOGY"]
["2085R0205X","25","048","PHYSICIAN (M.D.)","RADIOLOGY, DIAGNOSTIC","2085R0205X","RADIOLOGY - RADIOLOGICAL PHYSICS"]
["2085P0229X","25",{"$f":"\"049\"","v":"049"},"PHYSICIAN (M.D.)","RADIOLOGY, PEDIATRIC","2085P0229X","RADIOLOGY - PEDIATRIC RADIOLOGY"]
["207UN0902X","25",{"$f":"\"050\"","v":"050"},"PHYSICIAN (M.D.)","RADIOLOGY, THERAPEUTIC","207UN0902X","NUCLEAR MEDICINE - NUCLEAR IMAGING & THERAPY"]
["2085H0002X","25","050","PHYSICIAN (M.D.)","RADIOLOGY, THERAPEUTIC","2085H0002X","RADIOLOGY - HOSPICE AND PALLIATIVE MEDICINE"]
["2085N0700X","25","050","PHYSICIAN (M.D.)","RADIOLOGY, THERAPEUTIC","2085N0700X","RADIOLOGY - NEURORADIOLOGY"]
["2085N0904X","25","050","PHYSICIAN (M.D.)","RADIOLOGY, THERAPEUTIC","2085N0904X","RADIOLOGY - NUCLEAR RADIOLOGY"]
["2085R0001X","25","050","PHYSICIAN (M.D.)","RADIOLOGY, THERAPEUTIC","2085R0001X","RADIOLOGY - RADIATION ONCOLOGY"]
["2085R0203X","25","050","PHYSICIAN (M.D.)","RADIOLOGY, THERAPEUTIC","2085R0203X","RADIOLOGY - THERAPEUTIC RADIOLOGY"]
["2085R0204X","25","050","PHYSICIAN (M.D.)","RADIOLOGY, THERAPEUTIC","2085R0204X","RADIOLOGY - VASCULAR & INTERVENTIONAL RADIOLOGY"]
["2085R0205X","25","050","PHYSICIAN (M.D.)","RADIOLOGY, THERAPEUTIC","2085R0205X","RADIOLOGY - RADIOLOGICAL PHYSICS"]
["207RR0500X","25",{"$f":"\"051\"","v":"051"},"PHYSICIAN (M.D.)","RHEUMATOLOGY","207RR0500X","INTERNAL MEDICINE - RHEUMATOLOGY"]
["208600000X","25",{"$f":"\"052\"","v":"052"},"PHYSICIAN (M.D.)","SURGERY, ABDOMINAL","208600000X","SURGERY"]
["2086S0129X","25",{"$f":"\"053\"","v":"053"},"PHYSICIAN (M.D.)","SURGERY, CARDIOVASCULAR","2086S0129X","SURGERY - VASCULAR SURGERY"]
["208C00000X","25",{"$f":"\"054\"","v":"054"},"PHYSICIAN (M.D.)","SURGERY, COLON/RECTAL","208C00000X","COLON & RECTAL SURGERY"]
["204E00000X","25",{"$f":"\"055\"","v":"055"},"PHYSICIAN (M.D.)","SURGERY, GENERAL","204E00000X","ORAL & MAXILLOFACIAL SURGERY"]
["208600000X","25","055","PHYSICIAN (M.D.)","SURGERY, GENERAL","208600000X","SURGERY"]
["2086H0002X","25","055","PHYSICIAN (M.D.)","SURGERY, GENERAL","2086H0002X","SURGERY - HOSPICE AND PALLIATIVE MEDICINE"]
["2086S0102X","25","055","PHYSICIAN (M.D.)","SURGERY, GENERAL","2086S0102X","SURGERY - SURGICAL CRITICAL CARE"]
["2086S0129X","25","055","PHYSICIAN (M.D.)","SURGERY, GENERAL","2086S0129X","SURGERY - VASCULAR SURGERY"]
["2086X0206X","25","055","PHYSICIAN (M.D.)","SURGERY, GENERAL","2086X0206X","SURGERY - SURGICAL ONCOLOGY"]
["207XS0106X","25",{"$f":"\"056\"","v":"056"},"PHYSICIAN (M.D.)","SURGERY, HAND","207XS0106X","ORTHOPAEDIC SURGERY - HAND SURGERY"]
["2082S0105X","25",{"$f":"\"056\"","v":"056"},"PHYSICIAN (M.D.)","SURGERY, HAND","2082S0105X","PLASTIC SURGERY - SURGERY OF THE HAND"]
["2086S0105X","25",{"$f":"\"056\"","v":"056"},"PHYSICIAN (M.D.)","SURGERY, HAND","2086S0105X","SURGERY - SURGERY OF THE HAND"]
["207T00000X","25",{"$f":"\"057\"","v":"057"},"PHYSICIAN (M.D.)","SURGERY, NEUROLOGICAL","207T00000X","NEUROLOGICAL SURGERY"]
[{"$f":"CLEAN(F323)","v":"2084E0001X"},"25",{"$f":"\"057\"","v":"057"},"PHYSICIAN (M.D.)","SURGERY, NEUROLOGICAL","2084E0001X","EPILEPSY PHYSICIAN"]
["207X00000X","25",{"$f":"\"058\"","v":"058"},"PHYSICIAN (M.D.)","SURGERY, ORTHOPEDIC","207X00000X","ORTHOPAEDIC SURGERY"]
["207XP3100X","25","058","PHYSICIAN (M.D.)","SURGERY, ORTHOPEDIC","207XP3100X","ORTHOPAEDIC SURGERY - PEDIATRIC ORTHOPAEDIC SURGERY"]
["207XS0114X","25","058","PHYSICIAN (M.D.)","SURGERY, ORTHOPEDIC","207XS0114X","ORTHOPAEDIC SURGERY - ADULT RECONSTRUCTIVE ORTHOPAEDIC SURGERY"]
["207XS0117X","25","058","PHYSICIAN (M.D.)","SURGERY, ORTHOPEDIC","207XS0117X","ORTHOPAEDIC SURGERY - ORTHOPAEDIC SURGERY OF THE SPINE"]
["207XX0004X","25","058","PHYSICIAN (M.D.)","SURGERY, ORTHOPEDIC","207XX0004X","ORTHOPAEDIC SURGERY - FOOT AND ANKLE SURGERY"]
["207XX0005X","25","058","PHYSICIAN (M.D.)","SURGERY, ORTHOPEDIC","207XX0005X","ORTHOPAEDIC SURGERY - SPORTS MEDICINE"]
["207XX0801X","25","058","PHYSICIAN (M.D.)","SURGERY, ORTHOPEDIC","207XX0801X","ORTHOPAEDIC SURGERY - ORTHOPAEDIC TRAUMA"]
["207XP3100X","25",{"$f":"\"059\"","v":"059"},"PHYSICIAN (M.D.)","SURGERY, PEDIATRIC","207XP3100X","ORTHOPAEDIC SURGERY - PEDIATRIC ORTHOPAEDIC SURGERY"]
["2086S0120X","25",{"$f":"\"059\"","v":"059"},"PHYSICIAN (M.D.)","SURGERY, PEDIATRIC","2086S0120X","SURGERY - PEDIATRIC SURGERY"]
["207ND0101X","25",{"$f":"\"060\"","v":"060"},"PHYSICIAN (M.D.)","SURGERY, PLASTIC","207ND0101X","DERMATOLOGY - MOHS-MICROGRAPHIC SURGERY"]
["208200000X","25",{"$f":"\"060\"","v":"060"},"PHYSICIAN (M.D.)","SURGERY, PLASTIC","208200000X","PLASTIC SURGERY"]
["2082S0099X","25",{"$f":"\"060\"","v":"060"},"PHYSICIAN (M.D.)","SURGERY, PLASTIC","2082S0099X","PLASTIC SURGERY - PLASTIC SURGERY WITHIN THE HEAD AND NECK"]
["2086S0122X","25",{"$f":"\"060\"","v":"060"},"PHYSICIAN (M.D.)","SURGERY, PLASTIC","2086S0122X","SURGERY - PLASTIC AND RECONSTRUCTIVE SURGERY"]
["208G00000X","25",{"$f":"\"061\"","v":"061"},"PHYSICIAN (M.D.)","SURGERY, THORACIC","208G00000X","THORACIC SURGERY (CARDIOTHORACIC VASCULAR SURGERY)"]
["207XX0801X","25",{"$f":"\"062\"","v":"062"},"PHYSICIAN (M.D.)","SURGERY, TRAUMATIC","207XX0801X","ORTHOPAEDIC SURGERY - ORTHOPAEDIC TRAUMA"]
["2086S0127X","25",{"$f":"\"062\"","v":"062"},"PHYSICIAN (M.D.)","SURGERY, TRAUMATIC","2086S0127X","SURGERY - TRAUMA SURGERY"]
["208800000X","25",{"$f":"\"063\"","v":"063"},"PHYSICIAN (M.D.)","SURGERY, UROLOGICAL","208800000X","UROLOGY"]
["2088P0231X","25",{"$f":"\"063\"","v":"063"},"PHYSICIAN (M.D.)","SURGERY, UROLOGICAL","2088P0231X","UROLOGY - PEDIATRIC UROLOGY"]
["207VM0101X","25",{"$f":"\"065\"","v":"065"},"PHYSICIAN (M.D.)","MATERNAL/FETAL","207VM0101X","OBSTETRICS & GYNECOLOGY - MATERNAL & FETAL MEDICINE"]
["2084P0800X","25",{"$f":"\"066\"","v":"066"},"PHYSICIAN (M.D.)","COMPREHENSIVE BEHAVIORAL HEALTH ASSESSMENT","2084P0800X","PSYCHIATRY & NEUROLOGY - PSYCHIATRY"]
["207SC0300X","25",{"$f":"\"100\"","v":"100"},"PHYSICIAN (M.D.)","GENETICS","207SC0300X","MEDICAL GENETICS - CLINICAL CYTOGENETIC"]
["207SG0201X","25",{"$f":"\"100\"","v":"100"},"PHYSICIAN (M.D.)","GENETICS","207SG0201X","MEDICAL GENETICS - CLINICAL GENETICS (M.D.)"]
["207SG0202X","25",{"$f":"\"100\"","v":"100"},"PHYSICIAN (M.D.)","GENETICS","207SG0202X","MEDICAL GENETICS - CLINICAL BIOCHEMICAL GENETICS"]
["207SG0203X","25",{"$f":"\"100\"","v":"100"},"PHYSICIAN (M.D.)","GENETICS","207SG0203X","MEDICAL GENETICS - CLINICAL MOLECULAR GENETICS"]
["207SG0207X","25",{"$f":"\"100\"","v":"100"},"PHYSICIAN (M.D.)","GENETICS","207SG0207X","MEDICAL GENETICS - MEDICAL BIOCHEMICAL GENETICS"]
["2080N0001X","25",{"$f":"\"101\"","v":"101"},"PHYSICIAN (M.D.)","PEDIATRICS, CRITICAL CARE","2080N0001X","PEDIATRICS - NEONATAL-PERINATAL MEDICINE"]
["2080P0203X","25",{"$f":"\"101\"","v":"101"},"PHYSICIAN (M.D.)","PEDIATRICS, CRITICAL CARE","2080P0203X","PEDIATRICS - PEDIATRIC CRITICAL CARE MEDICINE"]
["2080P0204X","25",{"$f":"\"102\"","v":"102"},"PHYSICIAN (M.D.)","PEDIATRICS, EMERGENCY CARE","2080P0204X","PEDIATRICS - PEDIATRIC EMERGENCY MEDICINE"]
["2086S0120X","25",{"$f":"\"103\"","v":"103"},"PHYSICIAN (M.D.)","SURGERY, PEDIATRIC - NON-BOARD CERTIFIED","2086S0120X","SURGERY - PEDIATRIC SURGERY"]
["208800000X","25",{"$f":"\"104\"","v":"104"},"PHYSICIAN (M.D.)","SURGERY, UROLOGIC - NON-BOARD CERTIFIED","208800000X","UROLOGY"]
["2080H0002X","25",{"$f":"\"105\"","v":"105"},"PHYSICIAN (M.D.)","PEDIATRIC PALLIATIVE CARE","2080H0002X","PEDIATRICS - HOSPICE AND PALLIATIVE MEDICINE"]
["202D00000X","25",{"$f":"\"140\"","v":"140"},"PHYSICIAN (M.D.)","HOSPITALIST","202D00000X","INTEGRATIVE MEDICINE"]
["207RA0401X","25",{"$f":"\"140\"","v":"140"},"PHYSICIAN (M.D.)","HOSPITALIST","207RA0401X","INTERNAL MEDICINE - ADDICTION MEDICINE"]
["208M00000X","25",{"$f":"\"140\"","v":"140"},"PHYSICIAN (M.D.)","HOSPITALIST","208M00000X","HOSPITALIST"]
["2080P0205X","25",{"$f":"\"205\"","v":"205"},"PHYSICIAN (M.D.)","ENDOCRINOLOGY (PEDS)","2080P0205X","PEDIATRICS - PEDIATRIC ENDOCRINOLOGY"]
["208800000X","25",{"$f":"\"209\"","v":"209"},"PHYSICIAN (M.D.)","UROLOGY","208800000X","UROLOGY"]
["2088F0040X","25",{"$f":"\"209\"","v":"209"},"PHYSICIAN (M.D.)","UROLOGY","2088F0040X","UROLOGY - FEMALE PELVIC MEDICINE AND RECONSTRUCTIVE SURGERY"]
["207QA0000X",{"$f":"\"26\"","v":"26"},{"$f":"\"001\"","v":"001"},"PHYSICIAN (D.O.)","ADOLESCENT MEDICINE","207QA0000X","FAMILY MEDICINE - ADOLESCENT MEDICINE"]
["207RA0000X","26",{"$f":"\"001\"","v":"001"},"PHYSICIAN (D.O.)","ADOLESCENT MEDICINE","207RA0000X","INTERNAL MEDICINE - ADOLESCENT MEDICINE"]
["2080A0000X","26",{"$f":"\"001\"","v":"001"},"PHYSICIAN (D.O.)","ADOLESCENT MEDICINE","2080A0000X","PEDIATRICS - ADOLESCENT MEDICINE"]
["2084E0001X","26",{"$f":"\"001\"","v":"001"},"PHYSICIAN (D.O.)","ADOLESCENT MEDICINE","2084E0001X","EPILEPSY PHYSICIAN"]
["207K00000X","26",{"$f":"\"002\"","v":"002"},"PHYSICIAN (D.O.)","ALLERGY","207K00000X","ALLERGY & IMMUNOLOGY"]
["207KA0200X","26",{"$f":"\"002\"","v":"002"},"PHYSICIAN (D.O.)","ALLERGY","207KA0200X","ALLERGY & IMMUNOLOGY - ALLERGY"]
["207L00000X","26",{"$f":"\"003\"","v":"003"},"PHYSICIAN (D.O.)","ANESTHESIOLOGY","207L00000X","ANESTHESIOLOGY"]
["207LA0401X","26","003","PHYSICIAN (D.O.)","ANESTHESIOLOGY","207LA0401X","ANESTHESIOLOGY - ADDICTION MEDICINE"]
["207LC0200X","26","003","PHYSICIAN (D.O.)","ANESTHESIOLOGY","207LC0200X","ANESTHESIOLOGY - CRITICAL CARE MEDICINE"]
["207LH0002X","26","003","PHYSICIAN (D.O.)","ANESTHESIOLOGY","207LH0002X","ANESTHESIOLOGY - HOSPICE AND PALLIATIVE MEDICINE"]
["207LP2900X","26","003","PHYSICIAN (D.O.)","ANESTHESIOLOGY","207LP2900X","ANESTHESIOLOGY - PAIN MEDICINE"]
["207LP3000X","26","003","PHYSICIAN (D.O.)","ANESTHESIOLOGY","207LP3000X","ANESTHESIOLOGY - PEDIATRIC ANESTHESIOLOGY"]
["207RC0000X","26",{"$f":"\"004\"","v":"004"},"PHYSICIAN (D.O.)","CARDIOVASCULAR MEDICINE","207RC0000X","INTERNAL MEDICINE - CARDIOVASCULAR DISEASE"]
["207RC0001X","26",{"$f":"\"004\"","v":"004"},"PHYSICIAN (D.O.)","CARDIOVASCULAR MEDICINE","207RC0001X","INTERNAL MEDICINE - CLINICAL CARDIAC ELECTROPHYSIOLOGY"]
["207RI0011X","26",{"$f":"\"004\"","v":"004"},"PHYSICIAN (D.O.)","CARDIOVASCULAR MEDICINE","207RI0011X","INTERNAL MEDICINE - INTERVENTIONAL CARDIOLOGY"]
["207N00000X","26",{"$f":"\"005\"","v":"005"},"PHYSICIAN (D.O.)","DERMATOLOGY","207N00000X","DERMATOLOGY"]
["207ND0101X","26","005","PHYSICIAN (D.O.)","DERMATOLOGY","207ND0101X","DERMATOLOGY - MOHS-MICROGRAPHIC SURGERY"]
["207ND0900X","26","005","PHYSICIAN (D.O.)","DERMATOLOGY","207ND0900X","DERMATOLOGY - DERMATOPATHOLOGY"]
["207NI0002X","26","005","PHYSICIAN (D.O.)","DERMATOLOGY","207NI0002X","DERMATOLOGY - CLINICAL & LABORATORY DERMATOLOGICAL IMMUNOLOGY"]
["207NP0225X","26","005","PHYSICIAN (D.O.)","DERMATOLOGY","207NP0225X","DERMATOLOGY - PEDIATRIC DERMATOLOGY"]
["207NS0135X","26","005","PHYSICIAN (D.O.)","DERMATOLOGY","207NS0135X","DERMATOLOGY - PROCEDURAL DERMATOLOGY"]
["207RE0101X","26",{"$f":"\"006\"","v":"006"},"PHYSICIAN (D.O.)","DIABETES","207RE0101X","INTERNAL MEDICINE - ENDOCRINOLOGY, DIABETES & METABOLISM"]
["207P00000X","26",{"$f":"\"007\"","v":"007"},"PHYSICIAN (D.O.)","EMERGENCY MEDICINE","207P00000X","EMERGENCY MEDICINE"]
["207PE0004X","26","007","PHYSICIAN (D.O.)","EMERGENCY MEDICINE","207PE0004X","EMERGENCY MEDICINE - EMERGENCY MEDICAL SERVICES"]
["207PE0005X","26","007","PHYSICIAN (D.O.)","EMERGENCY MEDICINE","207PE0005X","EMERGENCY MEDICINE - UNDERSEA AND HYPERBARIC MEDICINE"]
["207PH0002X","26","007","PHYSICIAN (D.O.)","EMERGENCY MEDICINE","207PH0002X","EMERGENCY MEDICINE - HOSPICE AND PALLIATIVE MEDICINE"]
[{"$f":"CLEAN(F387)","v":"207PP0204X"},"26","007","PHYSICIAN (D.O.)","EMERGENCY MEDICINE","207PP0204X","EMERGENCY MEDICINE - PEDIATRIC EMERGENCY MEDICINE"]
["207PS0010X","26","007","PHYSICIAN (D.O.)","EMERGENCY MEDICINE","207PS0010X","EMERGENCY MEDICINE - SPORTS MEDICINE"]
["207PT0002X","26","007","PHYSICIAN (D.O.)","EMERGENCY MEDICINE","207PT0002X","EMERGENCY MEDICINE - MEDICAL TOXICOLOGY"]
["207RE0101X","26",{"$f":"\"008\"","v":"008"},"PHYSICIAN (D.O.)","ENDOCRINOLOGY","207RE0101X","INTERNAL MEDICINE - ENDOCRINOLOGY, DIABETES & METABOLISM"]
["202D00000X","26",{"$f":"\"009\"","v":"009"},"PHYSICIAN (D.O.)","FAMILY PRACTICE","202D00000X","INTEGRATIVE MEDICINE"]
["207Q00000X","26","009","PHYSICIAN (D.O.)","FAMILY PRACTICE","207Q00000X","FAMILY MEDICINE"]
["207QA0401X","26","009","PHYSICIAN (D.O.)","FAMILY PRACTICE","207QA0401X","FAMILY MEDICINE - ADDICTION MEDICINE"]
["207QA0505X","26","009","PHYSICIAN (D.O.)","FAMILY PRACTICE","207QA0505X","FAMILY MEDICINE - ADULT MEDICINE"]
["207QB0002X","26","009","PHYSICIAN (D.O.)","FAMILY PRACTICE","207QB0002X","FAMILY MEDICINE - OBESITY MEDICINE"]
["207QH0002X","26","009","PHYSICIAN (D.O.)","FAMILY PRACTICE","207QH0002X","FAMILY MEDICINE - HOSPICE AND PALLIATIVE MEDICINE"]
["207QS0010X","26","009","PHYSICIAN (D.O.)","FAMILY PRACTICE","207QS0010X","FAMILY MEDICINE - SPORTS MEDICINE"]
["207QS1201X","26","009","PHYSICIAN (D.O.)","FAMILY PRACTICE","207QS1201X","FAMILY MEDICINE - SLEEP MEDICINE"]
["207RG0100X","26",{"$f":"\"010\"","v":"010"},"PHYSICIAN (D.O.)","GASTROENTEROLOGY","207RG0100X","INTERNAL MEDICINE - GASTROENTEROLOGY"]
["207RT0003X","26",{"$f":"\"010\"","v":"010"},"PHYSICIAN (D.O.)","GASTROENTEROLOGY","207RT0003X","INTERNAL MEDICINE - TRANSPLANT HEPATOLOGY"]
["202D00000X","26",{"$f":"\"011\"","v":"011"},"PHYSICIAN (D.O.)","GENERAL PRACTICE (DEFAULT SPEC FOR PHYS)","202D00000X","INTEGRATIVE MEDICINE"]
["2084E0001X","26",{"$f":"\"011\"","v":"011"},"PHYSICIAN (D.O.)","GENERAL PRACTICE (DEFAULT SPEC FOR PHYS)","2084E0001X","EPILEPSY PHYSICIAN"]
["208D00000X","26",{"$f":"\"011\"","v":"011"},"PHYSICIAN (D.O.)","GENERAL PRACTICE (DEFAULT SPEC FOR PHYS)","208D00000X","GENERAL PRACTICE"]
["202D00000X","26",{"$f":"\"012\"","v":"012"},"PHYSICIAN (D.O.)","PREVENTIVE MEDICINE","202D00000X","INTEGRATIVE MEDICINE"]
["207RA0401X","26","012","PHYSICIAN (D.O.)","PREVENTIVE MEDICINE","207RA0401X","INTERNAL MEDICINE - ADDICTION MEDICINE"]
["2083A0100X","26","012","PHYSICIAN (D.O.)","PREVENTIVE MEDICINE","2083A0100X","PREVENTIVE MEDICINE - AEROSPACE MEDICINE"]
["2083B0002X","26","012","PHYSICIAN (D.O.)","PREVENTIVE MEDICINE","2083B0002X","PREVENTIVE MEDICINE - OBESITY MEDICINE"]
["2083C0008X","26","012","PHYSICIAN (D.O.)","PREVENTIVE MEDICINE","2083C0008X","PREVENTIVE MEDICINE - CLINICAL INFORMATICS"]
["2083P0011X","26","012","PHYSICIAN (D.O.)","PREVENTIVE MEDICINE","2083P0011X","PREVENTIVE MEDICINE - UNDERSEA AND HYPERBARIC MEDICINE"]
["2083P0500X","26","012","PHYSICIAN (D.O.)","PREVENTIVE MEDICINE","2083P0500X","PREVENTIVE MEDICINE - PREVENTIVE MEDICINE/OCCUPATIONAL ENVIRONMENTAL MEDICINE"]
["2083P0901X","26","012","PHYSICIAN (D.O.)","PREVENTIVE MEDICINE","2083P0901X","PREVENTIVE MEDICINE - PUBLIC HEALTH & GENERAL PREVENTIVE MEDICINE"]
["2083S0010X","26","012","PHYSICIAN (D.O.)","PREVENTIVE MEDICINE","2083S0010X","PREVENTIVE MEDICINE - SPORTS MEDICINE"]
["2083T0002X","26","012","PHYSICIAN (D.O.)","PREVENTIVE MEDICINE","2083T0002X","PREVENTIVE MEDICINE - MEDICAL TOXICOLOGY"]
["207QG0300X","26",{"$f":"\"013\"","v":"013"},"PHYSICIAN (D.O.)","GERIATRICS","207QG0300X","FAMILY MEDICINE - GERIATRIC MEDICINE"]
["207RG0300X","26",{"$f":"\"013\"","v":"013"},"PHYSICIAN (D.O.)","GERIATRICS","207RG0300X","INTERNAL MEDICINE - GERIATRIC MEDICINE"]
["207VG0400X","26",{"$f":"\"014\"","v":"014"},"PHYSICIAN (D.O.)","GYNECOLOGY","207VG0400X","OBSTETRICS & GYNECOLOGY - GYNECOLOGY"]
["207VX0201X","26",{"$f":"\"014\"","v":"014"},"PHYSICIAN (D.O.)","GYNECOLOGY","207VX0201X","OBSTETRICS & GYNECOLOGY - GYNECOLOGIC ONCOLOGY"]
["207RH0000X","26",{"$f":"\"015\"","v":"015"},"PHYSICIAN (D.O.)","HEMATOLOGY","207RH0000X","INTERNAL MEDICINE - HEMATOLOGY"]
["207ZH0000X","26",{"$f":"\"015\"","v":"015"},"PHYSICIAN (D.O.)","HEMATOLOGY","207ZH0000X","PATHOLOGY - HEMATOLOGY"]
["207KI0005X","26",{"$f":"\"016\"","v":"016"},"PHYSICIAN (D.O.)","IMMUNOLOGY","207KI0005X","ALLERGY & IMMUNOLOGY - CLINICAL & LABORATORY IMMUNOLOGY"]
["207RA0201X","26",{"$f":"\"016\"","v":"016"},"PHYSICIAN (D.O.)","IMMUNOLOGY","207RA0201X","INTERNAL MEDICINE - ALLERGY & IMMUNOLOGY"]
["207RI0001X","26",{"$f":"\"016\"","v":"016"},"PHYSICIAN (D.O.)","IMMUNOLOGY","207RI0001X","INTERNAL MEDICINE - CLINICAL & LABORATORY IMMUNOLOGY"]
["207RI0200X","26",{"$f":"\"017\"","v":"017"},"PHYSICIAN (D.O.)","INFECTIOUS DISEASES","207RI0200X","INTERNAL MEDICINE - INFECTIOUS DISEASE"]
["202D00000X","26",{"$f":"\"018\"","v":"018"},"PHYSICIAN (D.O.)","INTERNAL MEDICINE","202D00000X","INTEGRATIVE MEDICINE"]
["207R00000X",{"$f":"\"26\"","v":"26"},"018","PHYSICIAN (D.O.)","INTERNAL MEDICINE","207R00000X","INTERNAL MEDICINE"]
["207RA0401X","26","018","PHYSICIAN (D.O.)","INTERNAL MEDICINE","207RA0401X","INTERNAL MEDICINE - ADDICTION MEDICINE"]
["207RB0002X","26","018","PHYSICIAN (D.O.)","INTERNAL MEDICINE","207RB0002X","INTERNAL MEDICINE - OBESITY MEDICINE"]
["207RC0200X","26","018","PHYSICIAN (D.O.)","INTERNAL MEDICINE","207RC0200X","INTERNAL MEDICINE - CRITICAL CARE MEDICINE"]
["207RH0002X","26","018","PHYSICIAN (D.O.)","INTERNAL MEDICINE","207RH0002X","INTERNAL MEDICINE - HOSPICE AND PALLIATIVE MEDICINE"]
["207RH0005X","26","018","PHYSICIAN (D.O.)","INTERNAL MEDICINE","207RH0005X","INTERNAL MEDICINE - HYPERTENSION SPECIALIST"]
["207RI0008X","26","018","PHYSICIAN (D.O.)","INTERNAL MEDICINE","207RI0008X","INTERNAL MEDICINE - HEPATOLOGY"]
["207RM1200X","26","018","PHYSICIAN (D.O.)","INTERNAL MEDICINE","207RM1200X","INTERNAL MEDICINE - MAGNETIC RESONANCE IMAGING (MRI)"]
["207RS0010X","26","018","PHYSICIAN (D.O.)","INTERNAL MEDICINE","207RS0010X","INTERNAL MEDICINE - SPORTS MEDICINE"]
["207RS0012X","26","018","PHYSICIAN (D.O.)","INTERNAL MEDICINE","207RS0012X","INTERNAL MEDICINE - SLEEP MEDICINE"]
["2084E0001X","26","018","PHYSICIAN (D.O.)","INTERNAL MEDICINE","2084E0001X","EPILEPSY PHYSICIAN"]
["261QI0500X","26","018","PHYSICIAN (D.O.)","INTERNAL MEDICINE","261QI0500X","CLINIC/CENTER - INFUSION THERAPY"]
["2080N0001X","26",{"$f":"\"019\"","v":"019"},"PHYSICIAN (D.O.)","NEONATAL/PERINATAL","2080N0001X","PEDIATRICS - NEONATAL-PERINATAL MEDICINE"]
["207RN0300X","26",{"$f":"\"021\"","v":"021"},"PHYSICIAN (D.O.)","NEPHROLOGY","207RN0300X","INTERNAL MEDICINE - NEPHROLOGY"]
["2084B0002X","26",{"$f":"\"022\"","v":"022"},"PHYSICIAN (D.O.)","NEUROLOGY","2084B0002X","PSYCHIATRY AND NEUROLOGY - OBESITY MEDICINE"]
["2084B0040X","26","022","PHYSICIAN (D.O.)","NEUROLOGY","2084B0040X","PSYCHIATRY AND NEUROLOGY - BEHAVIORAL NEUROLOGY AND NEUROPSYCHIATRY"]
["2084E0001X","26","022","PHYSICIAN (D.O.)","NEUROLOGY","2084E0001X","EPILEPSY PHYSICIAN"]
["2084H0002X","26","022","PHYSICIAN (D.O.)","NEUROLOGY","2084H0002X","PSYCHIATRY & NEUROLOGY - HOSPICE AND PALLIATIVE MEDICINE"]
["2084N0008X","26","022","PHYSICIAN (D.O.)","NEUROLOGY","2084N0008X","PSYCHIATRY & NEUROLOGY - NEUROMUSCULAR MEDICINE"]
["2084N0400X","26","022","PHYSICIAN (D.O.)","NEUROLOGY","2084N0400X","PSYCHIATRY & NEUROLOGY - NEUROLOGY"]
["2084N0600X","26","022","PHYSICIAN (D.O.)","NEUROLOGY","2084N0600X","PSYCHIATRY & NEUROLOGY - CLINICAL NEUROPHYSIOLOGY"]
["2084P0005X","26","022","PHYSICIAN (D.O.)","NEUROLOGY","2084P0005X","PSYCHIATRY & NEUROLOGY - NEURODEVELOPMENTAL DISABILITIES"]
["2084P0015X","26","022","PHYSICIAN (D.O.)","NEUROLOGY","2084P0015X","PSYCHIATRY & NEUROLOGY - PSYCHOSOMATIC MEDICINE"]
["2084P0301X","26","022","PHYSICIAN (D.O.)","NEUROLOGY","2084P0301X","PSYCHIATRY AND NEUROLOGY - BRAIN INJURY MEDICINE"]
["2084P0805X","26","022","PHYSICIAN (D.O.)","NEUROLOGY","2084P0805X","PSYCHIATRY & NEUROLOGY - GERIATRIC PSYCHIATRY"]
["2084P2900X","26","022","PHYSICIAN (D.O.)","NEUROLOGY","2084P2900X","PSYCHIATRY & NEUROLOGY - PAIN MEDICINE"]
[{"$f":"CLEAN(F451)","v":"2084S0012X"},"26","022","PHYSICIAN (D.O.)","NEUROLOGY","2084S0012X","PSYCHIATRY & NEUROLOGY - SLEEP MEDICINE"]
["2084V0102X","26","022","PHYSICIAN (D.O.)","NEUROLOGY","2084V0102X","PSYCHIATRY & NEUROLOGY - VASCULAR NEUROLOGY"]
["2084E0001X","26",{"$f":"\"023\"","v":"023"},"PHYSICIAN (D.O.)","NEUROLOGY/CHILDREN","2084E0001X","EPILEPSY PHYSICIAN"]
["2084N0402X","26",{"$f":"\"023\"","v":"023"},"PHYSICIAN (D.O.)","NEUROLOGY/CHILDREN","2084N0402X","PSYCHIATRY & NEUROLOGY - NEUROLOGY WITH SPECIAL QUALIFICATIONS IN CHILD NEUROLOGY"]
["2084P0005X","26",{"$f":"\"023\"","v":"023"},"PHYSICIAN (D.O.)","NEUROLOGY/CHILDREN","2084P0005X","PSYCHIATRY & NEUROLOGY - NEURODEVELOPMENTAL DISABILITIES"]
["2084P0301X","26",{"$f":"\"023\"","v":"023"},"PHYSICIAN (D.O.)","NEUROLOGY/CHILDREN","2084P0301X","PSYCHIATRY AND NEUROLOGY - BRAIN INJURY MEDICINE"]
["207ZN0500X","26",{"$f":"\"024\"","v":"024"},"PHYSICIAN (D.O.)","NEUROPATHOLOGY","207ZN0500X","PATHOLOGY - NEUROPATHOLOGY"]
["2084E0001X","26",{"$f":"\"024\"","v":"024"},"PHYSICIAN (D.O.)","NEUROPATHOLOGY","2084E0001X","EPILEPSY PHYSICIAN"]
["207VX0000X","26",{"$f":"\"026\"","v":"026"},"PHYSICIAN (D.O.)","OBSTETRICS","207VX0000X","OBSTETRICS & GYNECOLOGY - OBSTETRICS"]
["207V00000X","26",{"$f":"\"027\"","v":"027"},"PHYSICIAN (D.O.)","OB-GYN","207V00000X","OBSTETRICS & GYNECOLOGY"]
["207VB0002X","26","027","PHYSICIAN (D.O.)","OB-GYN","207VB0002X","OBSTETRICS AND GYNECOLOGY - OBESITY MEDICINE"]
["207VC0200X","26","027","PHYSICIAN (D.O.)","OB-GYN","207VC0200X","OBSTETRICS & GYNECOLOGY - CRITICAL CARE MEDICINE"]
["207VC0300X","26","027","PHYSICIAN (D.O.)","OB-GYN","207VC0300X","OBSTETRICS & GYNECOLOGY - COMPLEX FAMILY PLANNING"]
["207VE0102X","26","027","PHYSICIAN (D.O.)","OB-GYN","207VE0102X","OBSTETRICS & GYNECOLOGY - REPRODUCTIVE ENDOCRINOLOGY"]
["207VF0040X","26","027","PHYSICIAN (D.O.)","OB-GYN","207VF0040X","OBSTETRICS AND GYNECOLOGY - FEMALE PELVIC MEDICINE AND RECONSTRUCTIVE SURGERY"]
["207VH0002X","26","027","PHYSICIAN (D.O.)","OB-GYN","207VH0002X","OBSTETRICS & GYNECOLOGY - HOSPICE AND PALLIATIVE MEDICINE"]
["2083X0100X","26",{"$f":"\"028\"","v":"028"},"PHYSICIAN (D.O.)","OCCUPATIONAL MEDICINE","2083X0100X","PREVENTIVE MEDICINE - OCCUPATIONAL MEDICINE"]
["207RH0003X","26",{"$f":"\"029\"","v":"029"},"PHYSICIAN (D.O.)","ONCOLOGY","207RH0003X","INTERNAL MEDICINE - HEMATOLOGY & ONCOLOGY"]
["207RX0202X","26",{"$f":"\"029\"","v":"029"},"PHYSICIAN (D.O.)","ONCOLOGY","207RX0202X","INTERNAL MEDICINE - MEDICAL ONCOLOGY"]
["207W00000X","26",{"$f":"\"030\"","v":"030"},"PHYSICIAN (D.O.)","OPHTHALMOLOGY","207W00000X","OPHTHALMOLOGY"]
["207WX0009X","26",{"$f":"\"030\"","v":"030"},"PHYSICIAN (D.O.)","OPHTHALMOLOGY","207WX0009X","OPHTHALMOLOGY - GLAUCOMA SPECIALIST"]
["207WX0107X","26",{"$f":"\"030\"","v":"030"},"PHYSICIAN (D.O.)","OPHTHALMOLOGY","207WX0107X","OPHTHALMOLOGY - RETINA SPECIALIST"]
["207WX0108X","26",{"$f":"\"030\"","v":"030"},"PHYSICIAN (D.O.)","OPHTHALMOLOGY","207WX0108X","OPHTHALMOLOGY - UVEITIS AND OCULAR INFLAMMATORY DISEASE"]
["207WX0200X","26",{"$f":"\"030\"","v":"030"},"PHYSICIAN (D.O.)","OPHTHALMOLOGY","207WX0200X","OPHTHALMOLOGY - OPHTHALMIC PLASTIC AND RECONSTRUCTIVE SURGERY"]
["207Y00000X","26",{"$f":"\"031\"","v":"031"},"PHYSICIAN (D.O.)","OTOLARYNGOLOGY","207Y00000X","OTOLARYNGOLOGY"]
["207YP0228X","26","031","PHYSICIAN (D.O.)","OTOLARYNGOLOGY","207YP0228X","OTOLARYNGOLOGY - PEDIATRIC OTOLARYNGOLOGY"]
["207YS0012X","26","031","PHYSICIAN (D.O.)","OTOLARYNGOLOGY","207YS0012X","OTOLARYNGOLOGY - SLEEP MEDICINE"]
["207YS0123X","26","031","PHYSICIAN (D.O.)","OTOLARYNGOLOGY","207YS0123X","OTOLARYNGOLOGY - FACIAL PLASTIC SURGERY"]
["207YX0007X","26","031","PHYSICIAN (D.O.)","OTOLARYNGOLOGY","207YX0007X","OTOLARYNGOLOGY - PLASTIC SURGERY WITHIN THE HEAD & NECK"]
["207YX0602X","26","031","PHYSICIAN (D.O.)","OTOLARYNGOLOGY","207YX0602X","OTOLARYNGOLOGY - OTOLARYNGIC ALLERGY"]
["207YX0901X","26","031","PHYSICIAN (D.O.)","OTOLARYNGOLOGY","207YX0901X","OTOLARYNGOLOGY - OTOLOGY & NEUROTOLOGY"]
["207YX0905X","26","031","PHYSICIAN (D.O.)","OTOLARYNGOLOGY","207YX0905X","OTOLARYNGOLOGY - OTOLARYNGOLOGY/FACIAL PLASTIC SURGERY"]
["207SM0001X","26",{"$f":"\"032\"","v":"032"},"PHYSICIAN (D.O.)","PATHOLOGY","207SM0001X","MEDICAL GENETICS - MOLECULAR GENETIC PATHOLOGY"]
["207ZB0001X","26","032","PHYSICIAN (D.O.)","PATHOLOGY","207ZB0001X","PATHOLOGY - BLOOD BANKING & TRANSFUSION MEDICINE"]
["207ZC0006X","26","032","PHYSICIAN (D.O.)","PATHOLOGY","207ZC0006X","PATHOLOGY - CLINICAL PATHOLOGY"]
["207ZC0500X","26","032","PHYSICIAN (D.O.)","PATHOLOGY","207ZC0500X","PATHOLOGY - CYTOPATHOLOGY"]
["207ZD0900X","26","032","PHYSICIAN (D.O.)","PATHOLOGY","207ZD0900X","PATHOLOGY - DERMATOPATHOLOGY"]
["207ZI0100X","26","032","PHYSICIAN (D.O.)","PATHOLOGY","207ZI0100X","PATHOLOGY - IMMUNOPATHOLOGY"]
["207ZM0300X",{"$f":"\"26\"","v":"26"},"032","PHYSICIAN (D.O.)","PATHOLOGY","207ZM0300X","PATHOLOGY - MEDICAL MICROBIOLOGY"]
["207ZP0007X","26","032","PHYSICIAN (D.O.)","PATHOLOGY","207ZP0007X","PATHOLOGY - MOLECULAR GENETIC PATHOLOGY"]
["207ZP0101X","26","032","PHYSICIAN (D.O.)","PATHOLOGY","207ZP0101X","PATHOLOGY - ANATOMIC PATHOLOGY"]
["207ZP0102X","26","032","PHYSICIAN (D.O.)","PATHOLOGY","207ZP0102X","PATHOLOGY - ANATOMIC PATHOLOGY & CLINICAL PATHOLOGY"]
["207ZP0104X","26","032","PHYSICIAN (D.O.)","PATHOLOGY","207ZP0104X","PATHOLOGY - CHEMICAL PATHOLOGY"]
["207ZP0105X","26","032","PHYSICIAN (D.O.)","PATHOLOGY","207ZP0105X","PATHOLOGY - CLINICAL PATHOLOGY/LABORATORY MEDICINE"]
["207ZP0213X","26","032","PHYSICIAN (D.O.)","PATHOLOGY","207ZP0213X","PATHOLOGY - PEDIATRIC PATHOLOGY"]
["207SM0001X","26",{"$f":"\"033\"","v":"033"},"PHYSICIAN (D.O.)","PATHOLOGY, CLINICAL","207SM0001X","MEDICAL GENETICS - MOLECULAR GENETIC PATHOLOGY"]
["207ZC0006X","26","033","PHYSICIAN (D.O.)","PATHOLOGY, CLINICAL","207ZC0006X","PATHOLOGY - CLINICAL PATHOLOGY"]
["207ZC0500X","26","033","PHYSICIAN (D.O.)","PATHOLOGY, CLINICAL","207ZC0500X","PATHOLOGY - CYTOPATHOLOGY"]
["207ZD0900X","26","033","PHYSICIAN (D.O.)","PATHOLOGY, CLINICAL","207ZD0900X","PATHOLOGY - DERMATOPATHOLOGY"]
["207ZP0104X","26","033","PHYSICIAN (D.O.)","PATHOLOGY, CLINICAL","207ZP0104X","PATHOLOGY - CHEMICAL PATHOLOGY"]
["207ZP0213X","26","033","PHYSICIAN (D.O.)","PATHOLOGY, CLINICAL","207ZP0213X","PATHOLOGY - PEDIATRIC PATHOLOGY"]
["207ZF0201X","26",{"$f":"\"034\"","v":"034"},"PHYSICIAN (D.O.)","PATHOLOGY, FORENSIC","207ZF0201X","PATHOLOGY - FORENSIC PATHOLOGY"]
["208000000X","26",{"$f":"\"035\"","v":"035"},"PHYSICIAN (D.O.)","PEDIATRICS","208000000X","PEDIATRICS"]
["2080B0002X","26","035","PHYSICIAN (D.O.)","PEDIATRICS","2080B0002X","PEDIATRICS - OBESITY MEDICINE"]
["2080C0008X","26","035","PHYSICIAN (D.O.)","PEDIATRICS","2080C0008X","PEDIATRICS - CHILD ABUSE PEDIATRICS"]
["2080I0007X","26","035","PHYSICIAN (D.O.)","PEDIATRICS","2080I0007X","PEDIATRICS - CLINICAL & LABORATORY IMMUNOLOGY"]
["2080P0006X","26","035","PHYSICIAN (D.O.)","PEDIATRICS","2080P0006X","PEDIATRICS - DEVELOPMENTAL - BEHAVIORAL PEDIATRICS"]
["2080P0008X","26","035","PHYSICIAN (D.O.)","PEDIATRICS","2080P0008X","PEDIATRICS - NEURODEVELOPMENTAL DISABILITIES"]
["2080P0206X","26","035","PHYSICIAN (D.O.)","PEDIATRICS","2080P0206X","PEDIATRICS - PEDIATRIC GASTROENTEROLOGY"]
["2080P0208X","26","035","PHYSICIAN (D.O.)","PEDIATRICS","2080P0208X","PEDIATRICS - PEDIATRIC INFECTIOUS DISEASES"]
["2080P0214X","26","035","PHYSICIAN (D.O.)","PEDIATRICS","2080P0214X","PEDIATRICS - PEDIATRIC PULMONOLOGY"]
["2080P0216X","26","035","PHYSICIAN (D.O.)","PEDIATRICS","2080P0216X","PEDIATRICS - PEDIATRIC RHEUMATOLOGY"]
["2080S0010X","26","035","PHYSICIAN (D.O.)","PEDIATRICS","2080S0010X","PEDIATRICS - SPORTS MEDICINE"]
["2080S0012X","26","035","PHYSICIAN (D.O.)","PEDIATRICS","2080S0012X","PEDIATRICS - SLEEP MEDICINE"]
[{"$f":"CLEAN(F515)","v":"2080T0002X"},"26","035","PHYSICIAN (D.O.)","PEDIATRICS","2080T0002X","PEDIATRICS - MEDICAL TOXICOLOGY"]
["2080T0004X","26","035","PHYSICIAN (D.O.)","PEDIATRICS","2080T0004X","PEDIATRICS - PEDIATRIC TRANSPLANT HEPATOLOGY"]
["2084E0001X","26","035","PHYSICIAN (D.O.)","PEDIATRICS","2084E0001X","EPILEPSY PHYSICIAN"]
["2084P0005X","26","035","PHYSICIAN (D.O.)","PEDIATRICS","2084P0005X","PSYCHIATRY & NEUROLOGY - NEURODEVELOPMENTAL DISABILITIES"]
["2080P0201X","26",{"$f":"\"036\"","v":"036"},"PHYSICIAN (D.O.)","PEDIATRICS, ALLERGY","2080P0201X","PEDIATRICS - PEDIATRIC ALLERGY/IMMUNOLOGY"]
["2080P0202X","26",{"$f":"\"037\"","v":"037"},"PHYSICIAN (D.O.)","PEDIATRICS, CARDIOLOGY","2080P0202X","PEDIATRICS - PEDIATRIC CARDIOLOGY"]
["2080P0207X","26",{"$f":"\"038\"","v":"038"},"PHYSICIAN (D.O.)","PEDIATRICS, ONCOLOGY/HEMATOLOGY","2080P0207X","PEDIATRICS - PEDIATRIC HEMATOLOGY-ONCOLOGY"]
["2080P0210X","26",{"$f":"\"039\"","v":"039"},"PHYSICIAN (D.O.)","PEDIATRICS, NEPHROLOGY","2080P0210X","PEDIATRICS - PEDIATRIC NEPHROLOGY"]
["208100000X","26",{"$f":"\"041\"","v":"041"},"PHYSICIAN (D.O.)","PHYSICAL MEDICINE AND REHAB","208100000X","PHYSICAL MEDICINE & REHABILITATION"]
["2081H0002X","26","041","PHYSICIAN (D.O.)","PHYSICAL MEDICINE AND REHAB","2081H0002X","PHYSICAL MEDICINE & REHABILITATION - HOSPICE AND PALLIATIVE MEDICINE"]
["2081N0008X","26","041","PHYSICIAN (D.O.)","PHYSICAL MEDICINE AND REHAB","2081N0008X","PHYSICAL MEDICINE & REHABILITATION - NEUROMUSCULAR MEDICINE"]
["2081P0004X","26","041","PHYSICIAN (D.O.)","PHYSICAL MEDICINE AND REHAB","2081P0004X","PHYSICAL MEDICINE & REHABILITATION - SPINAL CORD INJURY MEDICINE"]
["2081P0010X","26","041","PHYSICIAN (D.O.)","PHYSICAL MEDICINE AND REHAB","2081P0010X","PHYSICAL MEDICINE & REHABILITATION - PEDIATRIC REHABILITATION MEDICINE"]
["2081P0301X","26","041","PHYSICIAN (D.O.)","PHYSICAL MEDICINE AND REHAB","2081P0301X","PHYSICAL MEDICINE AND REHABILITATION - BRAIN INJURY MEDICINE"]
["2081P2900X","26","041","PHYSICIAN (D.O.)","PHYSICAL MEDICINE AND REHAB","2081P2900X","PHYSICAL MEDICINE & REHABILITATION - PAIN MEDICINE"]
["2081S0010X","26","041","PHYSICIAN (D.O.)","PHYSICAL MEDICINE AND REHAB","2081S0010X","PHYSICAL MEDICINE & REHABILITATION - SPORTS MEDICINE"]
["207RA0401X","26",{"$f":"\"042\"","v":"042"},"PHYSICIAN (D.O.)","PSYCHIATRY","207RA0401X","INTERNAL MEDICINE - ADDICTION MEDICINE"]
["2084A0401X","26","042","PHYSICIAN (D.O.)","PSYCHIATRY","2084A0401X","PSYCHIATRY & NEUROLOGY - ADDICTION MEDICINE"]
["2084B0002X","26","042","PHYSICIAN (D.O.)","PSYCHIATRY","2084B0002X","PSYCHIATRY AND NEUROLOGY - OBESITY MEDICINE"]
["2084F0202X","26","042","PHYSICIAN (D.O.)","PSYCHIATRY","2084F0202X","PSYCHIATRY & NEUROLOGY - FORENSIC PSYCHIATRY"]
["2084H0002X","26","042","PHYSICIAN (D.O.)","PSYCHIATRY","2084H0002X","PSYCHIATRY & NEUROLOGY - HOSPICE AND PALLIATIVE MEDICINE"]
["2084N0600X","26","042","PHYSICIAN (D.O.)","PSYCHIATRY","2084N0600X","PSYCHIATRY & NEUROLOGY - CLINICAL NEUROPHYSIOLOGY"]
["2084P0015X","26","042","PHYSICIAN (D.O.)","PSYCHIATRY","2084P0015X","PSYCHIATRY & NEUROLOGY - PSYCHOSOMATIC MEDICINE"]
["2084P0301X","26","042","PHYSICIAN (D.O.)","PSYCHIATRY","2084P0301X","PSYCHIATRY AND NEUROLOGY - BRAIN INJURY MEDICINE"]
["2084P0800X","26","042","PHYSICIAN (D.O.)","PSYCHIATRY","2084P0800X","PSYCHIATRY & NEUROLOGY - PSYCHIATRY"]
["2084P0802X","26","042","PHYSICIAN (D.O.)","PSYCHIATRY","2084P0802X","PSYCHIATRY & NEUROLOGY - ADDICTION PSYCHIATRY"]
["2084P2900X","26","042","PHYSICIAN (D.O.)","PSYCHIATRY","2084P2900X","PSYCHIATRY & NEUROLOGY - PAIN MEDICINE"]
["2084S0010X","26","042","PHYSICIAN (D.O.)","PSYCHIATRY","2084S0010X","PSYCHIATRY & NEUROLOGY - SPORTS MEDICINE"]
["2084S0012X","26","042","PHYSICIAN (D.O.)","PSYCHIATRY","2084S0012X","PSYCHIATRY & NEUROLOGY - SLEEP MEDICINE"]
["2084P0301X","26",{"$f":"\"043\"","v":"043"},"PHYSICIAN (D.O.)","PSYCHIATRY, CHILD","2084P0301X","PSYCHIATRY AND NEUROLOGY - BRAIN INJURY MEDICINE"]
["2084P0804X","26",{"$f":"\"043\"","v":"043"},"PHYSICIAN (D.O.)","PSYCHIATRY, CHILD","2084P0804X","PSYCHIATRY & NEUROLOGY - CHILD & ADOLESCENT PSYCHIATRY"]
["2083P0901X","26",{"$f":"\"045\"","v":"045"},"PHYSICIAN (D.O.)","PUBLIC HEALTH","2083P0901X","PREVENTIVE MEDICINE - PUBLIC HEALTH & GENERAL PREVENTIVE MEDICINE"]
["207RP1001X","26",{"$f":"\"046\"","v":"046"},"PHYSICIAN (D.O.)","PULMONARY DISEASES","207RP1001X","INTERNAL MEDICINE - PULMONARY DISEASE"]
["2080P0214X","26",{"$f":"\"046\"","v":"046"},"PHYSICIAN (D.O.)","PULMONARY DISEASES","2080P0214X","PEDIATRICS - PEDIATRIC PULMONOLOGY"]
["2085B0100X","26",{"$f":"\"047\"","v":"047"},"PHYSICIAN (D.O.)","RADIOLOGY","2085B0100X","RADIOLOGY - BODY IMAGING"]
["2085D0003X","26",{"$f":"\"047\"","v":"047"},"PHYSICIAN (D.O.)","RADIOLOGY","2085D0003X","RADIOLOGY - DIAGNOSTIC NEUROIMAGING"]
["207U00000X","26",{"$f":"\"048\"","v":"048"},"PHYSICIAN (D.O.)","RADIOLOGY, DIAGNOSTIC","207U00000X","NUCLEAR MEDICINE"]
["207UN0901X","26","048","PHYSICIAN (D.O.)","RADIOLOGY, DIAGNOSTIC","207UN0901X","NUCLEAR MEDICINE - NUCLEAR CARDIOLOGY"]
["207UN0903X",{"$f":"\"26\"","v":"26"},"048","PHYSICIAN (D.O.)","RADIOLOGY, DIAGNOSTIC","207UN0903X","NUCLEAR MEDICINE - IN VIVO & IN VITRO NUCLEAR MEDICINE"]
["2085N0700X","26","048","PHYSICIAN (D.O.)","RADIOLOGY, DIAGNOSTIC","2085N0700X","RADIOLOGY - NEURORADIOLOGY"]
["2085N0904X","26","048","PHYSICIAN (D.O.)","RADIOLOGY, DIAGNOSTIC","2085N0904X","RADIOLOGY - NUCLEAR RADIOLOGY"]
["2085R0202X","26","048","PHYSICIAN (D.O.)","RADIOLOGY, DIAGNOSTIC","2085R0202X","RADIOLOGY - DIAGNOSTIC RADIOLOGY"]
["2085R0204X","26","048","PHYSICIAN (D.O.)","RADIOLOGY, DIAGNOSTIC","2085R0204X","RADIOLOGY - VASCULAR & INTERVENTIONAL RADIOLOGY"]
["2085U0001X","26","048","PHYSICIAN (D.O.)","RADIOLOGY, DIAGNOSTIC","2085U0001X","RADIOLOGY - DIAGNOSTIC ULTRASOUND"]
["2085P0229X","26",{"$f":"\"049\"","v":"049"},"PHYSICIAN (D.O.)","RADIOLOGY, PEDIATRIC","2085P0229X","RADIOLOGY - PEDIATRIC RADIOLOGY"]
["207UN0902X","26",{"$f":"\"050\"","v":"050"},"PHYSICIAN (D.O.)","RADIOLOGY, THERAPEUTIC","207UN0902X","NUCLEAR MEDICINE - NUCLEAR IMAGING & THERAPY"]
["2085H0002X","26","050","PHYSICIAN (D.O.)","RADIOLOGY, THERAPEUTIC","2085H0002X","RADIOLOGY - HOSPICE AND PALLIATIVE MEDICINE"]
["2085N0700X","26","050","PHYSICIAN (D.O.)","RADIOLOGY, THERAPEUTIC","2085N0700X","RADIOLOGY - NEURORADIOLOGY"]
["2085N0904X","26","050","PHYSICIAN (D.O.)","RADIOLOGY, THERAPEUTIC","2085N0904X","RADIOLOGY - NUCLEAR RADIOLOGY"]
["2085R0001X","26","050","PHYSICIAN (D.O.)","RADIOLOGY, THERAPEUTIC","2085R0001X","RADIOLOGY - RADIATION ONCOLOGY"]
["2085R0203X","26","050","PHYSICIAN (D.O.)","RADIOLOGY, THERAPEUTIC","2085R0203X","RADIOLOGY - THERAPEUTIC RADIOLOGY"]
["2085R0204X","26","050","PHYSICIAN (D.O.)","RADIOLOGY, THERAPEUTIC","2085R0204X","RADIOLOGY - VASCULAR & INTERVENTIONAL RADIOLOGY"]
["207RR0500X","26",{"$f":"\"051\"","v":"051"},"PHYSICIAN (D.O.)","RHEUMATOLOGY","207RR0500X","INTERNAL MEDICINE - RHEUMATOLOGY"]
["208600000X","26",{"$f":"\"052\"","v":"052"},"PHYSICIAN (D.O.)","SURGERY, ABDOMINAL","208600000X","SURGERY"]
["2086S0129X","26",{"$f":"\"053\"","v":"053"},"PHYSICIAN (D.O.)","SURGERY, CARDIOVASCULAR","2086S0129X","SURGERY - VASCULAR SURGERY"]
["208C00000X","26",{"$f":"\"054\"","v":"054"},"PHYSICIAN (D.O.)","SURGERY, COLON/RECTAL","208C00000X","COLON & RECTAL SURGERY"]
["204E00000X","26",{"$f":"\"055\"","v":"055"},"PHYSICIAN (D.O.)","SURGERY, GENERAL","204E00000X","ORAL & MAXILLOFACIAL SURGERY"]
["208600000X","26","055","PHYSICIAN (D.O.)","SURGERY, GENERAL","208600000X","SURGERY"]
["2086H0002X","26","055","PHYSICIAN (D.O.)","SURGERY, GENERAL","2086H0002X","SURGERY - HOSPICE AND PALLIATIVE MEDICINE"]
["2086S0102X","26","055","PHYSICIAN (D.O.)","SURGERY, GENERAL","2086S0102X","SURGERY - SURGICAL CRITICAL CARE"]
["2086S0129X","26","055","PHYSICIAN (D.O.)","SURGERY, GENERAL","2086S0129X","SURGERY - VASCULAR SURGERY"]
["2086X0206X","26","055","PHYSICIAN (D.O.)","SURGERY, GENERAL","2086X0206X","SURGERY - SURGICAL ONCOLOGY"]
["207XS0106X","26",{"$f":"\"056\"","v":"056"},"PHYSICIAN (D.O.)","SURGERY, HAND","207XS0106X","ORTHOPAEDIC SURGERY - HAND SURGERY"]
["2082S0105X","26",{"$f":"\"056\"","v":"056"},"PHYSICIAN (D.O.)","SURGERY, HAND","2082S0105X","PLASTIC SURGERY - SURGERY OF THE HAND"]
[{"$f":"CLEAN(F579)","v":"2086S0105X"},"26",{"$f":"\"056\"","v":"056"},"PHYSICIAN (D.O.)","SURGERY, HAND","2086S0105X","SURGERY - SURGERY OF THE HAND"]
["207T00000X","26",{"$f":"\"057\"","v":"057"},"PHYSICIAN (D.O.)","SURGERY, NEUROLOGICAL","207T00000X","NEUROLOGICAL SURGERY"]
["2084E0001X","26",{"$f":"\"057\"","v":"057"},"PHYSICIAN (D.O.)","SURGERY, NEUROLOGICAL","2084E0001X","EPILEPSY PHYSICIAN"]
["207X00000X","26",{"$f":"\"058\"","v":"058"},"PHYSICIAN (D.O.)","SURGERY, ORTHOPEDIC","207X00000X","ORTHOPAEDIC SURGERY"]
["207XP3100X","26","058","PHYSICIAN (D.O.)","SURGERY, ORTHOPEDIC","207XP3100X","ORTHOPAEDIC SURGERY - PEDIATRIC ORTHOPAEDIC SURGERY"]
["207XS0114X","26","058","PHYSICIAN (D.O.)","SURGERY, ORTHOPEDIC","207XS0114X","ORTHOPAEDIC SURGERY - ADULT RECONSTRUCTIVE ORTHOPAEDIC SURGERY"]
["207XS0117X","26","058","PHYSICIAN (D.O.)","SURGERY, ORTHOPEDIC","207XS0117X","ORTHOPAEDIC SURGERY - ORTHOPAEDIC SURGERY OF THE SPINE"]
["207XX0004X","26","058","PHYSICIAN (D.O.)","SURGERY, ORTHOPEDIC","207XX0004X","ORTHOPAEDIC SURGERY - FOOT AND ANKLE SURGERY"]
["207XX0005X","26","058","PHYSICIAN (D.O.)","SURGERY, ORTHOPEDIC","207XX0005X","ORTHOPAEDIC SURGERY - SPORTS MEDICINE"]
["207XX0801X","26","058","PHYSICIAN (D.O.)","SURGERY, ORTHOPEDIC","207XX0801X","ORTHOPAEDIC SURGERY - ORTHOPAEDIC TRAUMA"]
["207XP3100X","26",{"$f":"\"059\"","v":"059"},"PHYSICIAN (D.O.)","SURGERY, PEDIATRIC","207XP3100X","ORTHOPAEDIC SURGERY - PEDIATRIC ORTHOPAEDIC SURGERY"]
["2086S0120X","26",{"$f":"\"059\"","v":"059"},"PHYSICIAN (D.O.)","SURGERY, PEDIATRIC","2086S0120X","SURGERY - PEDIATRIC SURGERY"]
["207ND0101X","26",{"$f":"\"060\"","v":"060"},"PHYSICIAN (D.O.)","SURGERY, PLASTIC","207ND0101X","DERMATOLOGY - MOHS-MICROGRAPHIC SURGERY"]
["208200000X","26",{"$f":"\"060\"","v":"060"},"PHYSICIAN (D.O.)","SURGERY, PLASTIC","208200000X","PLASTIC SURGERY"]
["2082S0099X","26",{"$f":"\"060\"","v":"060"},"PHYSICIAN (D.O.)","SURGERY, PLASTIC","2082S0099X","PLASTIC SURGERY - PLASTIC SURGERY WITHIN THE HEAD AND NECK"]
["2086S0122X","26",{"$f":"\"060\"","v":"060"},"PHYSICIAN (D.O.)","SURGERY, PLASTIC","2086S0122X","SURGERY - PLASTIC AND RECONSTRUCTIVE SURGERY"]
["208G00000X","26",{"$f":"\"061\"","v":"061"},"PHYSICIAN (D.O.)","SURGERY, THORACIC","208G00000X","THORACIC SURGERY (CARDIOTHORACIC VASCULAR SURGERY)"]
["207XX0801X","26",{"$f":"\"062\"","v":"062"},"PHYSICIAN (D.O.)","SURGERY, TRAUMATIC","207XX0801X","ORTHOPAEDIC SURGERY - ORTHOPAEDIC TRAUMA"]
["2086S0127X","26",{"$f":"\"062\"","v":"062"},"PHYSICIAN (D.O.)","SURGERY, TRAUMATIC","2086S0127X","SURGERY - TRAUMA SURGERY"]
["208800000X","26",{"$f":"\"063\"","v":"063"},"PHYSICIAN (D.O.)","SURGERY, UROLOGICAL","208800000X","UROLOGY"]
["2088P0231X","26",{"$f":"\"063\"","v":"063"},"PHYSICIAN (D.O.)","SURGERY, UROLOGICAL","2088P0231X","UROLOGY - PEDIATRIC UROLOGY"]
["207VM0101X","26",{"$f":"\"065\"","v":"065"},"PHYSICIAN (D.O.)","MATERNAL/FETAL","207VM0101X","OBSTETRICS & GYNECOLOGY - MATERNAL & FETAL MEDICINE"]
["2084P0800X","26",{"$f":"\"066\"","v":"066"},"PHYSICIAN (D.O.)","COMPREHENSIVE BEHAVIORAL HEALTH ASSESSMENT","2084P0800X","PSYCHIATRY & NEUROLOGY - PSYCHIATRY"]
["2080N0001X","26",{"$f":"\"101\"","v":"101"},"PHYSICIAN (D.O.)","PEDIATRICS, CRITICAL CARE","2080N0001X","PEDIATRICS - NEONATAL-PERINATAL MEDICINE"]
["2080P0203X","26",{"$f":"\"101\"","v":"101"},"PHYSICIAN (D.O.)","PEDIATRICS, CRITICAL CARE","2080P0203X","PEDIATRICS - PEDIATRIC CRITICAL CARE MEDICINE"]
["2080P0204X","26",{"$f":"\"102\"","v":"102"},"PHYSICIAN (D.O.)","PEDIATRICS, EMERGENCY CARE","2080P0204X","PEDIATRICS - PEDIATRIC EMERGENCY MEDICINE"]
["2086S0120X","26",{"$f":"\"103\"","v":"103"},"PHYSICIAN (D.O.)","SURGERY, PEDIATRIC - NON-BOARD CERTIFIED","2086S0120X","SURGERY - PEDIATRIC SURGERY"]
["208800000X","26",{"$f":"\"104\"","v":"104"},"PHYSICIAN (D.O.)","SURGERY, UROLOGIC - NON-BOARD CERTIFIED","208800000X","UROLOGY"]
["202D00000X","26",{"$f":"\"140\"","v":"140"},"PHYSICIAN (D.O.)","HOSPITALIST","202D00000X","INTEGRATIVE MEDICINE"]
["207RA0401X","26",{"$f":"\"140\"","v":"140"},"PHYSICIAN (D.O.)","HOSPITALIST","207RA0401X","INTERNAL MEDICINE - ADDICTION MEDICINE"]
["208M00000X","26",{"$f":"\"140\"","v":"140"},"PHYSICIAN (D.O.)","HOSPITALIST","208M00000X","HOSPITALIST"]
["2080P0205X","26",{"$f":"\"205\"","v":"205"},"PHYSICIAN (D.O.)","ENDOCRINOLOGY (PEDS)","2080P0205X","PEDIATRICS - PEDIATRIC ENDOCRINOLOGY"]
["208800000X","26",{"$f":"\"209\"","v":"209"},"PHYSICIAN (D.O.)","UROLOGY","208800000X","UROLOGY"]
["2088F0040X","26",{"$f":"\"209\"","v":"209"},"PHYSICIAN (D.O.)","UROLOGY","2088F0040X","UROLOGY - FEMALE PELVIC MEDICINE AND RECONSTRUCTIVE SURGERY"]
["213E00000X",{"$f":"\"27\"","v":"27"},{"$f":"\"927\"","v":"927"},"PODIATRIST","PODIATRIST","213E00000X","PODIATRIST"]
["213EP0504X","27","927","PODIATRIST","PODIATRIST","213EP0504X","PODIATRIST - PUBLIC MEDICINE"]
["213EP1101X","27","927","PODIATRIST","PODIATRIST","213EP1101X","PODIATRIST - PRIMARY PODIATRIC MEDICINE"]
["213ER0200X","27","927","PODIATRIST","PODIATRIST","213ER0200X","PODIATRIST - RADIOLOGY"]
["213ES0000X","27","927","PODIATRIST","PODIATRIST","213ES0000X","PODIATRIST - SPORTS MEDICINE"]
["213ES0103X","27","927","PODIATRIST","PODIATRIST","213ES0103X","PODIATRIST - FOOT & ANKLE SURGERY"]
["213ES0131X","27","927","PODIATRIST","PODIATRIST","213ES0131X","PODIATRIST - FOOT SURGERY"]
["261QP1100X","27","927","PODIATRIST","PODIATRIST","261QP1100X","CLINIC/CENTER - PODIATRIC"]
["111N00000X",{"$f":"\"28\"","v":"28"},{"$f":"\"928\"","v":"928"},"CHIROPRACTOR","CHIROPRACTOR","111N00000X","CHIROPRACTOR"]
["111NI0013X","28","928","CHIROPRACTOR","CHIROPRACTOR","111NI0013X","CHIROPRACTOR - INDEPENDENT MEDICAL EXAMINER"]
["111NI0900X","28","928","CHIROPRACTOR","CHIROPRACTOR","111NI0900X","CHIROPRACTOR - INTERNIST"]
["111NN0400X","28","928","CHIROPRACTOR","CHIROPRACTOR","111NN0400X","CHIROPRACTOR - NEUROLOGY"]
["111NN1001X","28","928","CHIROPRACTOR","CHIROPRACTOR","111NN1001X","CHIROPRACTOR - NUTRITION"]
["111NP0017X","28","928","CHIROPRACTOR","CHIROPRACTOR","111NP0017X","CHIROPRACTOR - PEDIATRIC CHIROPRACTOR"]
["111NR0200X","28","928","CHIROPRACTOR","CHIROPRACTOR","111NR0200X","CHIROPRACTOR - RADIOLOGY"]
["111NR0400X","28","928","CHIROPRACTOR","CHIROPRACTOR","111NR0400X","CHIROPRACTOR - REHABILITATION"]
["111NS0005X","28","928","CHIROPRACTOR","CHIROPRACTOR","111NS0005X","CHIROPRACTOR - SPORTS PHYSICIAN"]
["111NT0100X","28","928","CHIROPRACTOR","CHIROPRACTOR","111NT0100X","CHIROPRACTOR - THERMOGRAPHY"]
["111NX0100X","28","928","CHIROPRACTOR","CHIROPRACTOR","111NX0100X","CHIROPRACTOR - OCCUPATIONAL HEALTH"]
["111NX0800X","28","928","CHIROPRACTOR","CHIROPRACTOR","111NX0800X","CHIROPRACTOR - ORTHOPEDIC"]
["246ZX2200X",{"$f":"\"29\"","v":"29"},{"$f":"\"929\"","v":"929"},"PHYSICIAN ASSISTANT","PHYSICIAN ASSISTANT","246ZX2200X","SPECIALIST/TECHNOLOGIST, OTHER - ORTHOPEDIC ASSISTANT"]
["363A00000X",{"$f":"\"29\"","v":"29"},{"$f":"\"929\"","v":"929"},"PHYSICIAN ASSISTANT","PHYSICIAN ASSISTANT","363A00000X","PHYSICIAN ASSISTANT"]
["363AM0700X",{"$f":"\"29\"","v":"29"},{"$f":"\"929\"","v":"929"},"PHYSICIAN ASSISTANT","PHYSICIAN ASSISTANT","363AM0700X","PHYSICIAN ASSISTANT - MEDICAL"]
["363AS0400X",{"$f":"\"29\"","v":"29"},{"$f":"\"929\"","v":"929"},"PHYSICIAN ASSISTANT","PHYSICIAN ASSISTANT","363AS0400X","PHYSICIAN ASSISTANT - SURGICAL TECHNOLOGIST"]
["363LA2200X",{"$f":"\"30\"","v":"30"},{"$f":"\"075\"","v":"075"},"ADVANCED PRACTICE REGISTERED NURSE","ADULT PRIMARY CARE","363LA2200X","NURSE PRACTITIONER - ADULT HEALTH"]
["363LP2300X","30",{"$f":"\"075\"","v":"075"},"ADVANCED PRACTICE REGISTERED NURSE","ADULT PRIMARY CARE","363LP2300X","NURSE PRACTITIONER - PRIMARY CARE"]
["363LP0808X","30",{"$f":"\"076\"","v":"076"},"ADVANCED PRACTICE REGISTERED NURSE","CLINICAL NURSE SPECIALIST PSYCH. MENTAL HEALTH","363LP0808X","NURSE PRACTITIONER - PSYCH/MENTAL HEALTH"]
["364SP0807X","30","076","ADVANCED PRACTICE REGISTERED NURSE","CLINICAL NURSE SPECIALIST PSYCH. MENTAL HEALTH","364SP0807X","CLINICAL NURSE SPECIALIST - PSYCH/MENTAL HEALTH, CHILD & ADOLESCENT"]
["364SP0808X","30","076","ADVANCED PRACTICE REGISTERED NURSE","CLINICAL NURSE SPECIALIST PSYCH. MENTAL HEALTH","364SP0808X","CLINICAL NURSE SPECIALIST - PSYCH/MENTAL HEALTH"]
["364SP0809X","30","076","ADVANCED PRACTICE REGISTERED NURSE","CLINICAL NURSE SPECIALIST PSYCH. MENTAL HEALTH","364SP0809X","CLINICAL NURSE SPECIALIST - PSYCH/MENTAL HEALTH, ADULT"]
[{"$f":"CLEAN(F643)","v":"364SP0810X"},"30","076","ADVANCED PRACTICE REGISTERED NURSE","CLINICAL NURSE SPECIALIST PSYCH. MENTAL HEALTH","364SP0810X","CLINICAL NURSE SPECIALIST - PSYCH/MENTAL HEALTH, CHILD & FAMILY"]
["364SP0811X","30","076","ADVANCED PRACTICE REGISTERED NURSE","CLINICAL NURSE SPECIALIST PSYCH. MENTAL HEALTH","364SP0811X","CLINICAL NURSE SPECIALIST - PSYCH/MENTAL HEALTH, CHRONICALLY ILL"]
["364SP0812X","30","076","ADVANCED PRACTICE REGISTERED NURSE","CLINICAL NURSE SPECIALIST PSYCH. MENTAL HEALTH","364SP0812X","CLINICAL NURSE SPECIALIST - PSYCH/MENTAL HEALTH, COMMUNITY"]
["364SP0813X","30","076","ADVANCED PRACTICE REGISTERED NURSE","CLINICAL NURSE SPECIALIST PSYCH. MENTAL HEALTH","364SP0813X","CLINICAL NURSE SPECIALIST - PSYCH/MENTAL HEALTH, GEROPSYCHIATRIC"]
["363LS0200X","30",{"$f":"\"077\"","v":"077"},"ADVANCED PRACTICE REGISTERED NURSE","COLLEGE HEALTH NURSE","363LS0200X","NURSE PRACTITIONER - SCHOOL"]
["363LP2300X","30",{"$f":"\"078\"","v":"078"},"ADVANCED PRACTICE REGISTERED NURSE","DIABETIC NURSE PRACTITIONER","363LP2300X","NURSE PRACTITIONER - PRIMARY CARE"]
["363LF0000X","30",{"$f":"\"080\"","v":"080"},"ADVANCED PRACTICE REGISTERED NURSE","FAMILY NURSE","363LF0000X","NURSE PRACTITIONER - FAMILY"]
["363LF0000X","30",{"$f":"\"081\"","v":"081"},"ADVANCED PRACTICE REGISTERED NURSE","FAMILY PLANNING","363LF0000X","NURSE PRACTITIONER - FAMILY"]
["363LG0600X","30",{"$f":"\"082\"","v":"082"},"ADVANCED PRACTICE REGISTERED NURSE","GERIATRIC","363LG0600X","NURSE PRACTITIONER - GERONTOLOGY"]
["363LX0001X","30",{"$f":"\"083\"","v":"083"},"ADVANCED PRACTICE REGISTERED NURSE","MATERNAL/CHILD HEALTH FAMILY PLANNING","363LX0001X","NURSE PRACTITIONER - OBSTETRICS & GYNECOLOGY"]
["367500000X","30",{"$f":"\"084\"","v":"084"},"ADVANCED PRACTICE REGISTERED NURSE","CERTIFIED REGISTERED NURSE ANESTHETIST","367500000X","NURSE ANESTHETIST, CERTIFIED REGISTERED"]
["367A00000X","30",{"$f":"\"085\"","v":"085"},"ADVANCED PRACTICE REGISTERED NURSE","CERTIFIED REGISTERED NURSE MIDWIFE","367A00000X","ADVANCED PRACTICE MIDWIFE"]
["363LP1700X","30",{"$f":"\"086\"","v":"086"},"ADVANCED PRACTICE REGISTERED NURSE","OB/GYN NURSE","363LP1700X","NURSE PRACTITIONER - PERINATAL"]
["363LW0102X","30",{"$f":"\"086\"","v":"086"},"ADVANCED PRACTICE REGISTERED NURSE","OB/GYN NURSE","363LW0102X","NURSE PRACTITIONER - WOMEN'S HEALTH"]
["363LX0001X","30",{"$f":"\"086\"","v":"086"},"ADVANCED PRACTICE REGISTERED NURSE","OB/GYN NURSE","363LX0001X","NURSE PRACTITIONER - OBSTETRICS & GYNECOLOGY"]
["363LN0000X","30",{"$f":"\"087\"","v":"087"},"ADVANCED PRACTICE REGISTERED NURSE","PEDIATRIC NURSE","363LN0000X","NURSE PRACTITIONER - NEONATAL"]
["363LN0005X","30",{"$f":"\"087\"","v":"087"},"ADVANCED PRACTICE REGISTERED NURSE","PEDIATRIC NURSE","363LN0005X","NURSE PRACTITIONER - NEONATAL, CRITICAL CARE"]
["363LP0200X","30",{"$f":"\"087\"","v":"087"},"ADVANCED PRACTICE REGISTERED NURSE","PEDIATRIC NURSE","363LP0200X","NURSE PRACTITIONER - PEDIATRICS"]
["363LP0222X","30",{"$f":"\"087\"","v":"087"},"ADVANCED PRACTICE REGISTERED NURSE","PEDIATRIC NURSE","363LP0222X","NURSE PRACTITIONER - PEDIATRICS, CRITICAL CARE"]
["363L00000X","30",{"$f":"\"160\"","v":"160"},"ADVANCED PRACTICE REGISTERED NURSE","RETAIL HEALTH CLINIC","363L00000X","NURSE PRACTITIONER"]
["363L00000X","30",{"$f":"\"177\"","v":"177"},"ADVANCED PRACTICE REGISTERED NURSE","CMS/MFC TCM","363L00000X","NURSE PRACTITIONER"]
["363L00000X","30",{"$f":"\"930\"","v":"930"},"ADVANCED PRACTICE REGISTERED NURSE","NURSE PRACTITIONER (ARNP) - GROUP","363L00000X","NURSE PRACTITIONER"]
["363LA2100X","30",{"$f":"\"930\"","v":"930"},"ADVANCED PRACTICE REGISTERED NURSE","NURSE PRACTITIONER (ARNP) - GROUP","363LA2100X","NURSE PRACTITIONER - ACUTE CARE"]
["363LC0200X","30",{"$f":"\"930\"","v":"930"},"ADVANCED PRACTICE REGISTERED NURSE","NURSE PRACTITIONER (ARNP) - GROUP","363LC0200X","NURSE PRACTITIONER - CRITICAL CARE MEDICINE"]
["363LC1500X","30",{"$f":"\"930\"","v":"930"},"ADVANCED PRACTICE REGISTERED NURSE","NURSE PRACTITIONER (ARNP) - GROUP","363LC1500X","NURSE PRACTITIONER - COMMUNITY HEALTH"]
["363LX0106X","30",{"$f":"\"930\"","v":"930"},"ADVANCED PRACTICE REGISTERED NURSE","NURSE PRACTITIONER (ARNP) - GROUP","363LX0106X","NURSE PRACTITIONER - OCCUPATIONAL HEALTH"]
["163WR0006X",{"$f":"\"31\"","v":"31"},{"$f":"\"172\"","v":"172"},"REGISTERED NURSE/REGISTERED NURSE FIRST ASSISTANT","RNFA","163WR0006X","REGISTERED NURSE - REGISTERED NURSE FIRST ASSISTANT"]
["163WC1500X",{"$f":"\"31\"","v":"31"},{"$f":"\"173\"","v":"173"},"REGISTERED NURSE/REGISTERED NURSE FIRST ASSISTANT","COUNTY HEALTH DEPARTMENT CERTIFIED MATCH RN/LPN","163WC1500X","REGISTERED NURSE - COMMUNITY HEALTH"]
["163WC1500X",{"$f":"\"31\"","v":"31"},{"$f":"\"177\"","v":"177"},"REGISTERED NURSE/REGISTERED NURSE FIRST ASSISTANT","CMS/MFC TCM","163WC1500X","REGISTERED NURSE - COMMUNITY HEALTH"]
["163W00000X",{"$f":"\"31\"","v":"31"},{"$f":"\"931\"","v":"931"},"REGISTERED NURSE/REGISTERED NURSE FIRST ASSISTANT","REGISTERED NURSE FIRST ASSISTANT","163W00000X","REGISTERED NURSE"]
["104100000X",{"$f":"\"32\"","v":"32"},{"$f":"\"174\"","v":"174"},"SOCIAL WORKER/CASE MANAGER","MENTAL HEALTH TCM","104100000X","SOCIAL WORKER"]
["1041C0700X","32",{"$f":"\"174\"","v":"174"},"SOCIAL WORKER/CASE MANAGER","MENTAL HEALTH TCM","1041C0700X","SOCIAL WORKER - CLINICAL"]
["171M00000X","32",{"$f":"\"174\"","v":"174"},"SOCIAL WORKER/CASE MANAGER","MENTAL HEALTH TCM","171M00000X","CASE MANAGER/CARE COORDINATOR"]
["104100000X","32",{"$f":"\"175\"","v":"175"},"SOCIAL WORKER/CASE MANAGER","TCM FOR CHILDREN AT RISK OF ABUSE AND NEGLECT","104100000X","SOCIAL WORKER"]
["104100000X","32",{"$f":"\"176\"","v":"176"},"SOCIAL WORKER/CASE MANAGER","DOH/CMS TCM","104100000X","SOCIAL WORKER"]
["1041C0700X","32",{"$f":"\"177\"","v":"177"},"SOCIAL WORKER/CASE MANAGER","CMS/MFC TCM","1041C0700X","SOCIAL WORKER - CLINICAL"]
["104100000X","32",{"$f":"\"932\"","v":"932"},"SOCIAL WORKER/CASE MANAGER","SOCIAL WORKER/CASE MANAGER","104100000X","SOCIAL WORKER"]
["1041C0700X","32",{"$f":"\"932\"","v":"932"},"SOCIAL WORKER/CASE MANAGER","SOCIAL WORKER/CASE MANAGER","1041C0700X","SOCIAL WORKER - CLINICAL"]
["405300000X","32",{"$f":"\"932\"","v":"932"},"SOCIAL WORKER/CASE MANAGER","SOCIAL WORKER/CASE MANAGER","405300000X","PREVENTION PROFESSIONAL"]
["175M00000X",{"$f":"\"34\"","v":"34"},{"$f":"\"934\"","v":"934"},"LICENSED MIDWIFE","LICENSED MIDWIFE","175M00000X","MIDWIFE, LAY"]
["176B00000X",{"$f":"\"34\"","v":"34"},{"$f":"\"934\"","v":"934"},"LICENSED MIDWIFE","LICENSED MIDWIFE","176B00000X","MIDWIFE"]
["122400000X",{"$f":"\"35\"","v":"35"},{"$f":"\"070\"","v":"070"},"DENTIST","ADULT DENTURES ONLY","122400000X","DENTURIST"]
["122300000X","35",{"$f":"\"071\"","v":"071"},"DENTIST","GENERAL DENTISTRY","122300000X","DENTIST"]
["1223D0004X","35","071","DENTIST","GENERAL DENTISTRY","1223D0004X","DENTIST - DENTIST ANESTHESIOLOGIST"]
["1223E0200X","35","071","DENTIST","GENERAL DENTISTRY","1223E0200X","DENTIST - ENDODONTICS"]
["1223G0001X","35","071","DENTIST","GENERAL DENTISTRY","1223G0001X","DENTIST - GENERAL PRACTICE"]
["1223P0106X","35","071","DENTIST","GENERAL DENTISTRY","1223P0106X","DENTIST - ORAL AND MAXILLOFACIAL PATHOLOGY"]
["1223P0300X","35","071","DENTIST","GENERAL DENTISTRY","1223P0300X","DENTIST - PERIODONTICS"]
["1223P0700X","35","071","DENTIST","GENERAL DENTISTRY","1223P0700X","DENTIST - PROSTHODONTICS"]
["1223S0112X","35",{"$f":"\"072\"","v":"072"},"DENTIST","ORAL SURGERY (DENTIST)","1223S0112X","DENTIST - ORAL AND MAXILLOFACIAL SURGERY"]
["1223P0221X","35",{"$f":"\"073\"","v":"073"},"DENTIST","PEDODONTIST","1223P0221X","DENTIST - PEDIATRIC DENTISTRY"]
["1223D0001X","35",{"$f":"\"074\"","v":"074"},"DENTIST","OTHER DENTIST","1223D0001X","DENTIST - DENTAL PUBLIC HEALTH"]
["1223G0001X","35",{"$f":"\"074\"","v":"074"},"DENTIST","OTHER DENTIST","1223G0001X","DENTIST - GENERAL PRACTICE"]
["1223X0400X","35",{"$f":"\"088\"","v":"088"},"DENTIST","ORTHODONTIST","1223X0400X","DENTIST - ORTHODONTICS AND DENTOFACIAL ORTHOPEDICS"]
["367H00000X",{"$f":"\"36\"","v":"36"},{"$f":"\"130\"","v":"130"},"MEDICAL ASSISTANT","ANESTHESIOLOGY ASSISTANT","367H00000X","ANESTHESIOLOGIST ASSISTANT"]
["124Q00000X",{"$f":"\"37\"","v":"37"},{"$f":"\"937\"","v":"937"},"REGISTERED DENTAL HYGIENIST","REGISTERED DENTAL HYGIENIST","124Q00000X","DENTAL HYGIENIST"]
["125K00000X",{"$f":"\"37\"","v":"37"},{"$f":"\"937\"","v":"937"},"REGISTERED DENTAL HYGIENIST","REGISTERED DENTAL HYGIENIST","125K00000X","ADVANCED PRACTICE DENTAL THERAPIST"]
["101YA0400X",{"$f":"\"39\"","v":"39"},{"$f":"\"390\"","v":"390"},"BEHAVIOR ANALYSIS","REGISTERED BEHAVIOR TECHNICIAN","101YA0400X","COUNSELOR - ADDICTION (SUBSTANCE USE DISORDER)"]
["106S00000X","39",{"$f":"\"390\"","v":"390"},"BEHAVIOR ANALYSIS","REGISTERED BEHAVIOR TECHNICIAN","106S00000X","BEHAVIOR TECHNICIAN"]
["101Y00000X","39",{"$f":"\"391\"","v":"391"},"BEHAVIOR ANALYSIS","ASSISTANT BEHAVIOR ANALYST","101Y00000X","COUNSELOR"]
["101YA0400X","39",{"$f":"\"391\"","v":"391"},"BEHAVIOR ANALYSIS","ASSISTANT BEHAVIOR ANALYST","101YA0400X","COUNSELOR - ADDICTION (SUBSTANCE USE DISORDER)"]
["106E00000X","39",{"$f":"\"391\"","v":"391"},"BEHAVIOR ANALYSIS","ASSISTANT BEHAVIOR ANALYST","106E00000X","ASSISTANT BEHAVIOR ANALYST"]
["101Y00000X","39",{"$f":"\"392\"","v":"392"},"BEHAVIOR ANALYSIS","LEAD ANALYST","101Y00000X","COUNSELOR"]
["101YA0400X","39","392","BEHAVIOR ANALYSIS","LEAD ANALYST","101YA0400X","COUNSELOR - ADDICTION (SUBSTANCE USE DISORDER)"]
[{"$f":"CLEAN(F707)","v":"101YP2500X"},"39","392","BEHAVIOR ANALYSIS","LEAD ANALYST","101YP2500X","COUNSELOR - PROFESSIONAL"]
["102L00000X","39","392","BEHAVIOR ANALYSIS","LEAD ANALYST","102L00000X","PSYCHOANALYST"]
["103G00000X","39","392","BEHAVIOR ANALYSIS","LEAD ANALYST","103G00000X","CLINICAL NEUROPSYCHOLOGIST"]
["103K00000X","39","392","BEHAVIOR ANALYSIS","LEAD ANALYST","103K00000X","BEHAVIORAL ANALYST"]
["103TA0400X","39","392","BEHAVIOR ANALYSIS","LEAD ANALYST","103TA0400X","PSYCHOLOGIST - ADDICTION (SUBSTANCE USE DISORDER)"]
["103TA0700X","39","392","BEHAVIOR ANALYSIS","LEAD ANALYST","103TA0700X","PSYCHOLOGIST - ADULT DEVELOPMENT & AGING"]
["103TB0200X","39","392","BEHAVIOR ANALYSIS","LEAD ANALYST","103TB0200X","PSYCHOLOGIST - COGNITIVE & BEHAVIORAL"]
["103TC0700X","39","392","BEHAVIOR ANALYSIS","LEAD ANALYST","103TC0700X","PSYCHOLOGIST - CLINICAL"]
["103TC1900X","39","392","BEHAVIOR ANALYSIS","LEAD ANALYST","103TC1900X","PSYCHOLOGIST - COUNSELING"]
["103TC2200X","39","392","BEHAVIOR ANALYSIS","LEAD ANALYST","103TC2200X","PSYCHOLOGIST - CLINICAL CHILD & ADOLESCENT"]
["103TE1100X","39","392","BEHAVIOR ANALYSIS","LEAD ANALYST","103TE1100X","PSYCHOLOGIST - EXERCISE & SPORTS"]
["103TF0000X","39","392","BEHAVIOR ANALYSIS","LEAD ANALYST","103TF0000X","PSYCHOLOGIST - FAMILY"]
["103TF0200X","39","392","BEHAVIOR ANALYSIS","LEAD ANALYST","103TF0200X","PSYCHOLOGIST - FORENSIC"]
["103TH0004X","39","392","BEHAVIOR ANALYSIS","LEAD ANALYST","103TH0004X","PSYCHOLOGIST - HEALTH"]
["103TH0100X","39","392","BEHAVIOR ANALYSIS","LEAD ANALYST","103TH0100X","PSYCHOLOGIST - HEALTH SERVICE"]
["103TM1800X","39","392","BEHAVIOR ANALYSIS","LEAD ANALYST","103TM1800X","PSYCHOLOGIST - MENTAL RETARDATION & DEVELOPMENTAL DISABILITIES"]
["103TP0016X","39","392","BEHAVIOR ANALYSIS","LEAD ANALYST","103TP0016X","PSYCHOLOGIST - PRESCRIBING (MEDICAL)"]
["103TP0814X","39","392","BEHAVIOR ANALYSIS","LEAD ANALYST","103TP0814X","PSYCHOLOGIST - PSYCHOANALYSIS"]
["103TR0400X","39","392","BEHAVIOR ANALYSIS","LEAD ANALYST","103TR0400X","PSYCHOLOGIST - REHABILITATION"]
["103TS0200X","39","392","BEHAVIOR ANALYSIS","LEAD ANALYST","103TS0200X","PSYCHOLOGIST - SCHOOL"]
["103K00000X","39",{"$f":"\"393\"","v":"393"},"BEHAVIOR ANALYSIS","BEHAVIOR ANALYSIS GROUP","103K00000X","BEHAVIORAL ANALYST"]
["341600000X",{"$f":"\"40\"","v":"40"},{"$f":"\"940\"","v":"940"},"AMBULANCE","AMBULANCE","341600000X","AMBULANCE"]
["3416L0300X",{"$f":"\"40\"","v":"40"},{"$f":"\"940\"","v":"940"},"AMBULANCE","AMBULANCE","3416L0300X","AMBULANCE - LAND TRANSPORT"]
["3416S0300X",{"$f":"\"40\"","v":"40"},{"$f":"\"940\"","v":"940"},"AMBULANCE","AMBULANCE","3416S0300X","AMBULANCE - WATER TRANSPORT"]
["342000000X",{"$f":"\"41\"","v":"41"},{"$f":"\"941\"","v":"941"},"NON-EMERGENCY TRANSPORT","NON-EMERGENCY TRANSPORT","342000000X","TRANSPORTATION NETWORK COMPANY"]
["343900000X",{"$f":"\"41\"","v":"41"},{"$f":"\"941\"","v":"941"},"NON-EMERGENCY TRANSPORT","NON-EMERGENCY TRANSPORT","343900000X","NON-EMERGENCY MEDICAL TRANSPORT (VAN)"]
["3416A0800X",{"$f":"\"42\"","v":"42"},{"$f":"\"942\"","v":"942"},"AIR AMBULANCE","AIR AMBULANCE","3416A0800X","AMBULANCE - AIR TRANSPORT"]
["344600000X",{"$f":"\"43\"","v":"43"},{"$f":"\"943\"","v":"943"},"TAXICAB COMPANY","TAXICAB COMPANY","344600000X","TAXI"]
["3416A0800X",{"$f":"\"44\"","v":"44"},{"$f":"\"944\"","v":"944"},"GOVERNMENT/MUNICIPAL TRANSPORT","GOVERNMENT/MUNICIPAL TRANSPORT","3416A0800X","AMBULANCE - AIR TRANSPORT"]
["3416L0300X",{"$f":"\"44\"","v":"44"},{"$f":"\"944\"","v":"944"},"GOVERNMENT/MUNICIPAL TRANSPORT","GOVERNMENT/MUNICIPAL TRANSPORT","3416L0300X","AMBULANCE - LAND TRANSPORT"]
["3416S0300X",{"$f":"\"44\"","v":"44"},{"$f":"\"944\"","v":"944"},"GOVERNMENT/MUNICIPAL TRANSPORT","GOVERNMENT/MUNICIPAL TRANSPORT","3416S0300X","AMBULANCE - WATER TRANSPORT"]
["347C00000X",{"$f":"\"45\"","v":"45"},{"$f":"\"945\"","v":"945"},"PRIVATE TRANSPORTATION","PRIVATE TRANSPORTATION","347C00000X","PRIVATE VEHICLE"]
["343900000X",{"$f":"\"46\"","v":"46"},{"$f":"\"946\"","v":"946"},"NON-PROFIT TRANSPORTATION","NON-PROFIT TRANSPORTATION","343900000X","NON-EMERGENCY MEDICAL TRANSPORT (VAN)"]
["343900000X",{"$f":"\"47\"","v":"47"},{"$f":"\"947\"","v":"947"},"MULTI-LOAD PRIVATE TRANSPORT","MULTI-LOAD PRIVATE TRANSPORT","343900000X","NON-EMERGENCY MEDICAL TRANSPORT (VAN)"]
["291U00000X",{"$f":"\"50\"","v":"50"},{"$f":"\"950\"","v":"950"},"INDEPENDENT LABORATORY","INDEPENDENT LABORATORY","291U00000X","CLINICAL MEDICAL LABORATORY"]
["261QR0207X",{"$f":"\"51\"","v":"51"},{"$f":"\"951\"","v":"951"},"PORTABLE X-RAY COMPANY","PORTABLE X-RAY COMPANY","261QR0207X","CLINIC/CENTER - RADIOLOGY, MOBILE MAMMOGRAPHY"]
["261QR0208X",{"$f":"\"51\"","v":"51"},{"$f":"\"951\"","v":"951"},"PORTABLE X-RAY COMPANY","PORTABLE X-RAY COMPANY","261QR0208X","CLINIC/CENTER - RADIOLOGY, MOBILE"]
["335V00000X",{"$f":"\"51\"","v":"51"},{"$f":"\"951\"","v":"951"},"PORTABLE X-RAY COMPANY","PORTABLE X-RAY COMPANY","335V00000X","PORTABLE X-RAY SUPPLIER"]
["231H00000X",{"$f":"\"60\"","v":"60"},{"$f":"\"960\"","v":"960"},"AUDIOLOGIST","AUDIOLOGIST","231H00000X","AUDIOLOGIST"]
["231HA2400X",{"$f":"\"60\"","v":"60"},{"$f":"\"960\"","v":"960"},"AUDIOLOGIST","AUDIOLOGIST","231HA2400X","AUDIOLOGIST - ASSISTIVE TECHNOLOGY PRACTITIONER"]
["231HA2500X",{"$f":"\"60\"","v":"60"},{"$f":"\"960\"","v":"960"},"AUDIOLOGIST","AUDIOLOGIST","231HA2500X","AUDIOLOGIST - ASSISTIVE TECHNOLOGY SUPPLIER"]
["235500000X",{"$f":"\"61\"","v":"61"},{"$f":"\"961\"","v":"961"},"HEARING AID SPECIALIST","HEARING AID SPECIALIST","235500000X","SPECIALIST/TECHNOLOGIST"]
["237600000X",{"$f":"\"61\"","v":"61"},{"$f":"\"961\"","v":"961"},"HEARING AID SPECIALIST","HEARING AID SPECIALIST","237600000X","AUDIOLOGIST-HEARING AID FITTER"]
["237700000X",{"$f":"\"61\"","v":"61"},{"$f":"\"961\"","v":"961"},"HEARING AID SPECIALIST","HEARING AID SPECIALIST","237700000X","HEARING INSTRUMENT SPECIALIST"]
["152W00000X",{"$f":"\"62\"","v":"62"},{"$f":"\"962\"","v":"962"},"OPTOMETRIST","OPTOMETRIST","152W00000X","OPTOMETRIST"]
["152WC0802X","62","962","OPTOMETRIST","OPTOMETRIST","152WC0802X","OPTOMETRIST - CORNEAL AND CONTACT MANAGEMENT"]
["152WL0500X","62","962","OPTOMETRIST","OPTOMETRIST","152WL0500X","OPTOMETRIST - LOW VISION REHABILITATION"]
["152WP0200X","62","962","OPTOMETRIST","OPTOMETRIST","152WP0200X","OPTOMETRIST - PEDIATRICS"]
["152WS0006X","62","962","OPTOMETRIST","OPTOMETRIST","152WS0006X","OPTOMETRIST - SPORTS VISION"]
["152WV0400X","62","962","OPTOMETRIST","OPTOMETRIST","152WV0400X","OPTOMETRIST - VISION THERAPY"]
["152WX0102X","62","962","OPTOMETRIST","OPTOMETRIST","152WX0102X","OPTOMETRIST - OCCUPATIONAL VISION"]
["302F00000X","62","962","OPTOMETRIST","OPTOMETRIST","302F00000X","EXCLUSIVE PROVIDER ORGANIZATION"]
["156FX1800X",{"$f":"\"63\"","v":"63"},{"$f":"\"963\"","v":"963"},"OPTICIAN","OPTICIAN","156FX1800X","TECHNICIAN/TECHNOLOGIST - OPTICIAN"]
["253Z00000X",{"$f":"\"65\"","v":"65"},{"$f":"\"114\"","v":"114"},"HOME HEALTH SERVICES","PERSONAL CARE","253Z00000X","IN HOME SUPPORT CARE AGENCIES"]
["164W00000X","65",{"$f":"\"117\"","v":"117"},"HOME HEALTH SERVICES","INDEPENDENT HOME HEALTH NURSE - LPN","164W00000X","LICENSED PRACTICAL NURSE"]
["163WH0200X","65",{"$f":"\"118\"","v":"118"},"HOME HEALTH SERVICES","INDEPENDENT HOME HEALTH NURSE - RN","163WH0200X","REGISTERED NURSE - HOME HEALTH"]
["251E00000X","65",{"$f":"\"965\"","v":"965"},"HOME HEALTH SERVICES","HOME HEALTH AGENCY","251E00000X","HOME HEALTH"]
["253Z00000X","65",{"$f":"\"965\"","v":"965"},"HOME HEALTH SERVICES","HOME HEALTH AGENCY","253Z00000X","IN HOME SUPPORT CARE AGENCIES"]
["374U00000X","65",{"$f":"\"965\"","v":"965"},"HOME HEALTH SERVICES","HOME HEALTH AGENCY","374U00000X","HOME HEALTH AIDE"]
["261QR1300X",{"$f":"\"66\"","v":"66"},{"$f":"\"966\"","v":"966"},"RURAL HEALTH CLINIC","RURAL HEALTH CLINIC","261QR1300X","CLINIC/CENTER - RURAL HEALTH"]
["310400000X",{"$f":"\"67\"","v":"67"},{"$f":"\"089\"","v":"089"},"HOME AND COMMUNITY BASED SERVICES WAIVER","ASSISTED LIVING FOR THE ELDERLY","310400000X","ASSISTED LIVING FACILITY"]
["253Z00000X","67",{"$f":"\"095\"","v":"095"},"HOME AND COMMUNITY BASED SERVICES WAIVER","STATEWIDE MEDICAID MANAGED CARE WAIVER SERVICES","253Z00000X","IN HOME SUPPORT CARE AGENCIES"]
["333300000X","67",{"$f":"\"095\"","v":"095"},"HOME AND COMMUNITY BASED SERVICES WAIVER","STATEWIDE MEDICAID MANAGED CARE WAIVER SERVICES","333300000X","PERSONAL EMERGENCY RESPONSE SYSTEMS"]
["3747A0650X","67",{"$f":"\"095\"","v":"095"},"HOME AND COMMUNITY BASED SERVICES WAIVER","STATEWIDE MEDICAID MANAGED CARE WAIVER SERVICES","3747A0650X","TECHNICIAN - ATTENDANT CARE PROVIDER"]
[{"$f":"CLEAN(F771)","v":"251C00000X"},"67",{"$f":"\"096\"","v":"096"},"HOME AND COMMUNITY BASED SERVICES WAIVER","DEVELOPMENTAL DISABILITY","251C00000X","DAY TRAINING, DEVELOPMENTALLY DISABLED SERVICES"]
["251J00000X","67",{"$f":"\"096\"","v":"096"},"HOME AND COMMUNITY BASED SERVICES WAIVER","DEVELOPMENTAL DISABILITY","251J00000X","NURSING CARE"]
["261QD1600X","67",{"$f":"\"096\"","v":"096"},"HOME AND COMMUNITY BASED SERVICES WAIVER","DEVELOPMENTAL DISABILITY","261QD1600X","CLINIC/CENTER - DEVELOPMENTAL DISABILITIES"]
["320900000X","67",{"$f":"\"096\"","v":"096"},"HOME AND COMMUNITY BASED SERVICES WAIVER","DEVELOPMENTAL DISABILITY","320900000X","COMMUNITY BASED RESIDENTIAL TREATMENT, MENTAL RETARDATION AND/OR DEVELOPMENTAL DISABILITIES"]
["261QA0600X","67",{"$f":"\"113\"","v":"113"},"HOME AND COMMUNITY BASED SERVICES WAIVER","ADULT DAY CARE","261QA0600X","CLINIC/CENTER - ADULT DAY CARE"]
["385H00000X","67",{"$f":"\"113\"","v":"113"},"HOME AND COMMUNITY BASED SERVICES WAIVER","ADULT DAY CARE","385H00000X","RESPITE CARE"]
["251J00000X","67",{"$f":"\"967\"","v":"967"},"HOME AND COMMUNITY BASED SERVICES WAIVER","HOME & COMMUNITY-BASED SERVICES WAIVER","251J00000X","NURSING CARE"]
["261QF0400X",{"$f":"\"68\"","v":"68"},{"$f":"\"968\"","v":"968"},"FEDERALLY QUALIFIED HEALTH CENTER","FEDERALLY QUALIFIED HEALTH CENTER","261QF0400X","CLINIC/CENTER - FEDERALLY QUALIFIED HEALTH CENTER (FQHC)"]
["261QB0400X",{"$f":"\"69\"","v":"69"},{"$f":"\"969\"","v":"969"},"BIRTH CENTER","BIRTH CENTER","261QB0400X","CLINIC/CENTER - BIRTHING"]
["343900000X",{"$f":"\"70\"","v":"70"},{"$f":"\"600\"","v":"600"},"MEDICAID HEALTH PLAN","CNET CAPITATED TRANSPORTATION","343900000X","NON-EMERGENCY MEDICAL TRANSPORT (VAN)"]
["302R00000X","70",{"$f":"\"601\"","v":"601"},"MEDICAID HEALTH PLAN","DUAL SPECIAL NEEDS PLAN","302R00000X","HEALTH MAINTENANCE ORGANIZATION"]
["302R00000X","70",{"$f":"\"670\"","v":"670"},"MEDICAID HEALTH PLAN","SMMC-CAPITATED LTC","302R00000X","HEALTH MAINTENANCE ORGANIZATION"]
["302R00000X","70",{"$f":"\"672\"","v":"672"},"MEDICAID HEALTH PLAN","SMMC-CAPITATED MMA","302R00000X","HEALTH MAINTENANCE ORGANIZATION"]
["302R00000X","70",{"$f":"\"673\"","v":"673"},"MEDICAID HEALTH PLAN","SMMC-CAPITATED MMA SPECIALTY","302R00000X","HEALTH MAINTENANCE ORGANIZATION"]
["302R00000X","70",{"$f":"\"674\"","v":"674"},"MEDICAID HEALTH PLAN","SMMC-CAPITATED MMA CHILD WELFARE","302R00000X","HEALTH MAINTENANCE ORGANIZATION"]
["302R00000X","70",{"$f":"\"675\"","v":"675"},"MEDICAID HEALTH PLAN","MMA DOH CMS","302R00000X","HEALTH MAINTENANCE ORGANIZATION"]
["302F00000X","70",{"$f":"\"970\"","v":"970"},"MEDICAID HEALTH PLAN","HMO","302F00000X","EXCLUSIVE PROVIDER ORGANIZATION"]
["302R00000X","70",{"$f":"\"970\"","v":"970"},"MEDICAID HEALTH PLAN","HMO","302R00000X","HEALTH MAINTENANCE ORGANIZATION"]
["305R00000X","70",{"$f":"\"970\"","v":"970"},"MEDICAID HEALTH PLAN","HMO","305R00000X","PREFERRED PROVIDER ORGANIZATION"]
["251K00000X",{"$f":"\"77\"","v":"77"},{"$f":"\"977\"","v":"977"},"COUNTY HEALTH DEPARTMENT","COUNTY HEALTH DEPARTMENT","251K00000X","PUBLIC HEALTH OR WELFARE"]
["261QP0905X",{"$f":"\"77\"","v":"77"},{"$f":"\"977\"","v":"977"},"COUNTY HEALTH DEPARTMENT","COUNTY HEALTH DEPARTMENT","261QP0905X","CLINIC/CENTER - PUBLIC HEALTH, STATE OR LOCAL"]
["261Q00000X",{"$f":"\"78\"","v":"78"},{"$f":"\"978\"","v":"978"},"CHILDREN'S MEDICAL SERVICES","CHILDREN'S MEDICAL SERVICES","261Q00000X","CLINIC/CENTER"]
["222Q00000X",{"$f":"\"81\"","v":"81"},{"$f":"\"981\"","v":"981"},"PROFESSIONAL EARLY INTERVENTION SERVICES","PROFESSIONAL EARLY INTERVENTION SERVICES","222Q00000X","DEVELOPMENTAL THERAPIST"]
["252Y00000X",{"$f":"\"81\"","v":"81"},{"$f":"\"981\"","v":"981"},"PROFESSIONAL EARLY INTERVENTION SERVICES","PROFESSIONAL EARLY INTERVENTION SERVICES","252Y00000X","EARLY INTERVENTION PROVIDER AGENCY"]
["225X00000X",{"$f":"\"83\"","v":"83"},{"$f":"\"090\"","v":"090"},"THERAPIST (PT, OT, ST, RT)","OCCUPATIONAL THERAPIST","225X00000X","OCCUPATIONAL THERAPIST"]
["225XE0001X","83","090","THERAPIST (PT, OT, ST, RT)","OCCUPATIONAL THERAPIST","225XE0001X","OCCUPATIONAL THERAPIST - ENVIRONMENTAL MODIFICATION"]
["225XE1200X","83","090","THERAPIST (PT, OT, ST, RT)","OCCUPATIONAL THERAPIST","225XE1200X","OCCUPATIONAL THERAPIST - ERGONOMICS"]
["225XF0002X","83","090","THERAPIST (PT, OT, ST, RT)","OCCUPATIONAL THERAPIST","225XF0002X","OCCUPATIONAL THERAPIST - FEEDING, EATING AND SWALLOWING"]
["225XG0600X","83","090","THERAPIST (PT, OT, ST, RT)","OCCUPATIONAL THERAPIST","225XG0600X","OCCUPATIONAL THERAPIST - GERONTOLOGY"]
["225XH1200X","83","090","THERAPIST (PT, OT, ST, RT)","OCCUPATIONAL THERAPIST","225XH1200X","OCCUPATIONAL THERAPIST - HAND"]
["225XH1300X","83","090","THERAPIST (PT, OT, ST, RT)","OCCUPATIONAL THERAPIST","225XH1300X","OCCUPATIONAL THERAPIST - HUMAN FACTORS"]
["225XL0004X","83","090","THERAPIST (PT, OT, ST, RT)","OCCUPATIONAL THERAPIST","225XL0004X","OCCUPATIONAL THERAPIST - LOW VISION"]
["225XM0800X","83","090","THERAPIST (PT, OT, ST, RT)","OCCUPATIONAL THERAPIST","225XM0800X","OCCUPATIONAL THERAPIST - MENTAL HEALTH"]
["225XN1300X","83","090","THERAPIST (PT, OT, ST, RT)","OCCUPATIONAL THERAPIST","225XN1300X","OCCUPATIONAL THERAPIST - NEUROREHABILITATION"]
["225XP0019X","83","090","THERAPIST (PT, OT, ST, RT)","OCCUPATIONAL THERAPIST","225XP0019X","OCCUPATIONAL THERAPIST - PHYSICAL REHABILITATION"]
["225XP0200X","83","090","THERAPIST (PT, OT, ST, RT)","OCCUPATIONAL THERAPIST","225XP0200X","OCCUPATIONAL THERAPIST - PEDIATRICS"]
["225XR0403X","83","090","THERAPIST (PT, OT, ST, RT)","OCCUPATIONAL THERAPIST","225XR0403X","OCCUPATIONAL THERAPIST - DRIVING AND COMMUNITY MOBILITY"]
["225100000X","83",{"$f":"\"091\"","v":"091"},"THERAPIST (PT, OT, ST, RT)","PHYSICAL THERAPIST","225100000X","PHYSICAL THERAPIST"]
["2251C2600X","83","091","THERAPIST (PT, OT, ST, RT)","PHYSICAL THERAPIST","2251C2600X","PHYSICAL THERAPIST - CARDIOPULMONARY"]
["2251E1200X","83","091","THERAPIST (PT, OT, ST, RT)","PHYSICAL THERAPIST","2251E1200X","PHYSICAL THERAPIST - ERGONOMICS"]
["2251E1300X","83","091","THERAPIST (PT, OT, ST, RT)","PHYSICAL THERAPIST","2251E1300X","PHYSICAL THERAPIST - ELECTROPHYSIOLOGY, CLINICAL"]
["2251G0304X","83","091","THERAPIST (PT, OT, ST, RT)","PHYSICAL THERAPIST","2251G0304X","PHYSICAL THERAPIST - GERIATRICS"]
["2251H1200X","83","091","THERAPIST (PT, OT, ST, RT)","PHYSICAL THERAPIST","2251H1200X","PHYSICAL THERAPIST - HAND"]
["2251H1300X","83","091","THERAPIST (PT, OT, ST, RT)","PHYSICAL THERAPIST","2251H1300X","PHYSICAL THERAPIST - HUMAN FACTORS"]
["2251N0400X","83","091","THERAPIST (PT, OT, ST, RT)","PHYSICAL THERAPIST","2251N0400X","PHYSICAL THERAPIST - NEUROLOGY"]
["2251P0200X","83","091","THERAPIST (PT, OT, ST, RT)","PHYSICAL THERAPIST","2251P0200X","PHYSICAL THERAPIST - PEDIATRICS"]
["2251S0007X","83","091","THERAPIST (PT, OT, ST, RT)","PHYSICAL THERAPIST","2251S0007X","PHYSICAL THERAPIST - SPORTS"]
["2251X0800X","83","091","THERAPIST (PT, OT, ST, RT)","PHYSICAL THERAPIST","2251X0800X","PHYSICAL THERAPIST - ORTHOPEDIC"]
["235Z00000X","83",{"$f":"\"092\"","v":"092"},"THERAPIST (PT, OT, ST, RT)","SPEECH THERAPIST","235Z00000X","SPEECH-LANGUAGE PATHOLOGIST"]
["227800000X","83",{"$f":"\"093\"","v":"093"},"THERAPIST (PT, OT, ST, RT)","RESPIRATORY THERAPIST","227800000X","RESPIRATORY THERAPIST, CERTIFIED"]
["2278C0205X","83","093","THERAPIST (PT, OT, ST, RT)","RESPIRATORY THERAPIST","2278C0205X","RESPIRATORY THERAPIST, CERTIFIED - CRITICAL CARE"]
["2278E0002X","83","093","THERAPIST (PT, OT, ST, RT)","RESPIRATORY THERAPIST","2278E0002X","RESPIRATORY THERAPIST, CERTIFIED - EMERGENCY CARE"]
["2278E1000X","83","093","THERAPIST (PT, OT, ST, RT)","RESPIRATORY THERAPIST","2278E1000X","RESPIRATORY THERAPIST, CERTIFIED - EDUCATIONAL"]
["2278G0305X","83","093","THERAPIST (PT, OT, ST, RT)","RESPIRATORY THERAPIST","2278G0305X","RESPIRATORY THERAPIST, CERTIFIED - GERIATRIC CARE"]
["2278G1100X","83","093","THERAPIST (PT, OT, ST, RT)","RESPIRATORY THERAPIST","2278G1100X","RESPIRATORY THERAPIST, CERTIFIED - GENERAL CARE"]
["2278P1004X","83","093","THERAPIST (PT, OT, ST, RT)","RESPIRATORY THERAPIST","2278P1004X","RESPIRATORY THERAPIST, CERTIFIED - PULMONARY DIAGNOSTICS"]
["2278P1005X","83","093","THERAPIST (PT, OT, ST, RT)","RESPIRATORY THERAPIST","2278P1005X","RESPIRATORY THERAPIST, CERTIFIED - PULMONARY REHABILITATION"]
["2278P1006X","83","093","THERAPIST (PT, OT, ST, RT)","RESPIRATORY THERAPIST","2278P1006X","RESPIRATORY THERAPIST, CERTIFIED - PULMONARY FUNCTION TECHNOLOGIST"]
["2278P3800X","83","093","THERAPIST (PT, OT, ST, RT)","RESPIRATORY THERAPIST","2278P3800X","RESPIRATORY THERAPIST, CERTIFIED - PALLIATIVE/HOSPICE"]
["2278P3900X","83","093","THERAPIST (PT, OT, ST, RT)","RESPIRATORY THERAPIST","2278P3900X","RESPIRATORY THERAPIST, CERTIFIED - NEONATAL/PEDIATRICS"]
["2278P4000X","83","093","THERAPIST (PT, OT, ST, RT)","RESPIRATORY THERAPIST","2278P4000X","RESPIRATORY THERAPIST, CERTIFIED - PATIENT TRANSPORT"]
["2278S1500X","83","093","THERAPIST (PT, OT, ST, RT)","RESPIRATORY THERAPIST","2278S1500X","RESPIRATORY THERAPIST, CERTIFIED - SNF/SUBACUTE CARE"]
["227900000X","83","093","THERAPIST (PT, OT, ST, RT)","RESPIRATORY THERAPIST","227900000X","RESPIRATORY THERAPIST, REGISTERED"]
["2279C0205X","83","093","THERAPIST (PT, OT, ST, RT)","RESPIRATORY THERAPIST","2279C0205X","RESPIRATORY THERAPIST, REGISTERED - CRITICAL CARE"]
[{"$f":"CLEAN(F835)","v":"2279E0002X"},"83","093","THERAPIST (PT, OT, ST, RT)","RESPIRATORY THERAPIST","2279E0002X","RESPIRATORY THERAPIST, REGISTERED - EMERGENCY CARE"]
["2279E1000X","83","093","THERAPIST (PT, OT, ST, RT)","RESPIRATORY THERAPIST","2279E1000X","RESPIRATORY THERAPIST, REGISTERED - EDUCATIONAL"]
["2279G0305X","83","093","THERAPIST (PT, OT, ST, RT)","RESPIRATORY THERAPIST","2279G0305X","RESPIRATORY THERAPIST, REGISTERED - GERIATRIC CARE"]
["2279G1100X","83","093","THERAPIST (PT, OT, ST, RT)","RESPIRATORY THERAPIST","2279G1100X","RESPIRATORY THERAPIST, REGISTERED - GENERAL CARE"]
["2279H0200X","83","093","THERAPIST (PT, OT, ST, RT)","RESPIRATORY THERAPIST","2279H0200X","RESPIRATORY THERAPIST, REGISTERED - HOME HEALTH"]
["2279P1004X","83","093","THERAPIST (PT, OT, ST, RT)","RESPIRATORY THERAPIST","2279P1004X","RESPIRATORY THERAPIST, REGISTERED - PULMONARY DIAGNOSTICS"]
["2279P1005X","83","093","THERAPIST (PT, OT, ST, RT)","RESPIRATORY THERAPIST","2279P1005X","RESPIRATORY THERAPIST, REGISTERED - PULMONARY REHABILITATION"]
["2279P1006X","83","093","THERAPIST (PT, OT, ST, RT)","RESPIRATORY THERAPIST","2279P1006X","RESPIRATORY THERAPIST, REGISTERED - PULMONARY FUNCTION TECHNOLOGIST"]
["2279P3800X","83","093","THERAPIST (PT, OT, ST, RT)","RESPIRATORY THERAPIST","2279P3800X","RESPIRATORY THERAPIST, REGISTERED - PALLIATIVE/HOSPICE"]
["2279P3900X","83","093","THERAPIST (PT, OT, ST, RT)","RESPIRATORY THERAPIST","2279P3900X","RESPIRATORY THERAPIST, REGISTERED - NEONATAL/PEDIATRICS"]
["2279P4000X","83","093","THERAPIST (PT, OT, ST, RT)","RESPIRATORY THERAPIST","2279P4000X","RESPIRATORY THERAPIST, REGISTERED - PATIENT TRANSPORT"]
["2279S1500X","83","093","THERAPIST (PT, OT, ST, RT)","RESPIRATORY THERAPIST","2279S1500X","RESPIRATORY THERAPIST, REGISTERED - SNF/SUBACUTE CARE"]
["261Q00000X","83",{"$f":"\"983\"","v":"983"},"THERAPIST (PT, OT, ST, RT)","THERAPIST (PT, OT, ST, RT) - GROUP","261Q00000X","CLINIC/CENTER"]
["224Z00000X",{"$f":"\"84\"","v":"84"},{"$f":"\"813\"","v":"813"},"SCHOOL HEALTH PROVIDER","OCCUPATIONAL THERAPY ASSISTANT","224Z00000X","OCCUPATIONAL THERAPY ASSISTANT"]
["225200000X","84",{"$f":"\"814\"","v":"814"},"SCHOOL HEALTH PROVIDER","PHYSICAL THERAPY ASSISTANT","225200000X","PHYSICAL THERAPY ASSISTANT"]
["2355S0801X","84",{"$f":"\"815\"","v":"815"},"SCHOOL HEALTH PROVIDER","SPEECH-LANGUAGE PATHOLOGY ASSISTANT","2355S0801X","SPECIALIST/TECHNOLOGIST - SPEECH-LANGUAGE ASSISTANT"]
["101YS0200X","84",{"$f":"\"816\"","v":"816"},"SCHOOL HEALTH PROVIDER","SCHOOL COUNSELOR","101YS0200X","COUNSELOR - SCHOOL"]
["164X00000X","84",{"$f":"\"817\"","v":"817"},"SCHOOL HEALTH PROVIDER","LICENSED PRACTICAL NURSE","164X00000X","LICENSED VOCATIONAL NURSE"]
["103TS0200X","84",{"$f":"\"819\"","v":"819"},"SCHOOL HEALTH PROVIDER","SCHOOL PSYCHOLOGIST","103TS0200X","PSYCHOLOGIST - SCHOOL"]
["1041S0200X","84",{"$f":"\"820\"","v":"820"},"SCHOOL HEALTH PROVIDER","SOCIAL WORKER","1041S0200X","SOCIAL WORKER - SCHOOL"]
["106H00000X","84",{"$f":"\"821\"","v":"821"},"SCHOOL HEALTH PROVIDER","MARRIAGE AND FAMILY THERAPIST","106H00000X","MARRIAGE & FAMILY THERAPIST"]
["101YS0200X","84",{"$f":"\"822\"","v":"822"},"SCHOOL HEALTH PROVIDER","MENTAL HEALTH COUNSELOR","101YS0200X","COUNSELOR - SCHOOL"]
["103K00000X","84",{"$f":"\"823\"","v":"823"},"SCHOOL HEALTH PROVIDER","CERTIFIED BEHAVIOR ANALYST - LEAD","103K00000X","BEHAVIORAL ANALYST"]
["106E00000X","84",{"$f":"\"824\"","v":"824"},"SCHOOL HEALTH PROVIDER","CERTIFIED ASSISTANT BEHAVIOR ANALYST","106E00000X","ASSISTANT BEHAVIOR ANALYST"]
["225X00000X","84",{"$f":"\"825\"","v":"825"},"SCHOOL HEALTH PROVIDER","OCCUPATIONAL THERAPIST","225X00000X","OCCUPATIONAL THERAPIST"]
["225100000X","84",{"$f":"\"826\"","v":"826"},"SCHOOL HEALTH PROVIDER","PHYSICAL THERAPIST","225100000X","PHYSICAL THERAPIST"]
["235Z00000X","84",{"$f":"\"827\"","v":"827"},"SCHOOL HEALTH PROVIDER","SPEECH LANGUAGE PATHOLOGIST","235Z00000X","SPEECH-LANGUAGE PATHOLOGIST"]
["163WS0200X","84",{"$f":"\"828\"","v":"828"},"SCHOOL HEALTH PROVIDER","REGISTERED NURSES","163WS0200X","REGISTERED NURSE - SCHOOL"]
["261QE0700X",{"$f":"\"89\"","v":"89"},{"$f":"\"989\"","v":"989"},"DIALYSIS CENTER","DIALYSIS CENTER","261QE0700X","CLINIC/CENTER - END-STAGE RENAL DISEASE (ESRD) TREATMENT"]
["332BX2000X",{"$f":"\"90\"","v":"90"},{"$f":"\"069\"","v":"069"},"DURABLE MED EQUIPT/ MEDICAL SUPPLIES","MEDICAL OXYGEN RETAILER","332BX2000X","DURABLE MEDICAL EQUIPMENT & MEDICAL SUPPLIES - OXYGEN EQUIPMENT & SUPPLIES"]
["222Z00000X","90",{"$f":"\"990\"","v":"990"},"DURABLE MED EQUIPT/ MEDICAL SUPPLIES","DURABLE MED EQUIPT/ MEDICAL SUPPLIES","222Z00000X","ORTHOTIST"]
["224900000X","90","990","DURABLE MED EQUIPT/ MEDICAL SUPPLIES","DURABLE MED EQUIPT/ MEDICAL SUPPLIES","224900000X","MASTECTOMY FITTER"]
["224L00000X","90","990","DURABLE MED EQUIPT/ MEDICAL SUPPLIES","DURABLE MED EQUIPT/ MEDICAL SUPPLIES","224L00000X","PEDORTHIST"]
["224P00000X","90","990","DURABLE MED EQUIPT/ MEDICAL SUPPLIES","DURABLE MED EQUIPT/ MEDICAL SUPPLIES","224P00000X","PROSTHETIST"]
["225000000X","90","990","DURABLE MED EQUIPT/ MEDICAL SUPPLIES","DURABLE MED EQUIPT/ MEDICAL SUPPLIES","225000000X","ORTHOTIC FITTER"]
["332B00000X","90","990","DURABLE MED EQUIPT/ MEDICAL SUPPLIES","DURABLE MED EQUIPT/ MEDICAL SUPPLIES","332B00000X","DURABLE MEDICAL EQUIPMENT & MEDICAL SUPPLIES"]
["332BC3200X","90","990","DURABLE MED EQUIPT/ MEDICAL SUPPLIES","DURABLE MED EQUIPT/ MEDICAL SUPPLIES","332BC3200X","DURABLE MEDICAL EQUIPMENT & MEDICAL SUPPLIES - CUSTOMIZED EQUIPMENT"]
["332BD1200X","90","990","DURABLE MED EQUIPT/ MEDICAL SUPPLIES","DURABLE MED EQUIPT/ MEDICAL SUPPLIES","332BD1200X","DURABLE MEDICAL EQUIPMENT & MEDICAL SUPPLIES - DIALYSIS EQUIPMENT & SUPPLIES"]
["332BN1400X","90","990","DURABLE MED EQUIPT/ MEDICAL SUPPLIES","DURABLE MED EQUIPT/ MEDICAL SUPPLIES","332BN1400X","DURABLE MEDICAL EQUIPMENT & MEDICAL SUPPLIES - NURSING FACILITY SUPPLIES"]
["332BP3500X","90","990","DURABLE MED EQUIPT/ MEDICAL SUPPLIES","DURABLE MED EQUIPT/ MEDICAL SUPPLIES","332BP3500X","DURABLE MEDICAL EQUIPMENT & MEDICAL SUPPLIES - PARENTERAL & ENTERAL NUTRITION"]
["335E00000X","90","990","DURABLE MED EQUIPT/ MEDICAL SUPPLIES","DURABLE MED EQUIPT/ MEDICAL SUPPLIES","335E00000X","PROSTHETIC/ORTHOTIC SUPPLIER"]
["251B00000X",{"$f":"\"91\"","v":"91"},{"$f":"\"174\"","v":"174"},"CASE MANAGEMENT AGENCY","MENTAL HEALTH TCM","251B00000X","CASE MANAGEMENT"]
["251B00000X","91",{"$f":"\"175\"","v":"175"},"CASE MANAGEMENT AGENCY","TCM FOR CHILDREN AT RISK OF ABUSE AND NEGLECT","251B00000X","CASE MANAGEMENT"]
["251B00000X","91",{"$f":"\"176\"","v":"176"},"CASE MANAGEMENT AGENCY","DOH/CMS TCM","251B00000X","CASE MANAGEMENT"]
["251B00000X","91",{"$f":"\"177\"","v":"177"},"CASE MANAGEMENT AGENCY","CMS/MFC TCM","251B00000X","CASE MANAGEMENT"]
["251B00000X","91",{"$f":"\"178\"","v":"178"},"CASE MANAGEMENT AGENCY","PROVIDER SERVICE NETWORK","251B00000X","CASE MANAGEMENT"]
["302R00000X","91",{"$f":"\"691\"","v":"691"},"CASE MANAGEMENT AGENCY","SMMC-FFS LTC","302R00000X","HEALTH MAINTENANCE ORGANIZATION"]
["302R00000X","91",{"$f":"\"692\"","v":"692"},"CASE MANAGEMENT AGENCY","SMMC-FFS MMA","302R00000X","HEALTH MAINTENANCE ORGANIZATION"]
["302R00000X","91",{"$f":"\"693\"","v":"693"},"CASE MANAGEMENT AGENCY","SMMC-FFS MMA SPECIALTY","302R00000X","HEALTH MAINTENANCE ORGANIZATION"]
["302R00000X","91",{"$f":"\"694\"","v":"694"},"CASE MANAGEMENT AGENCY","SMMC-FFS MMA CHILD WELFARE","302R00000X","HEALTH MAINTENANCE ORGANIZATION"]
["251B00000X","91",{"$f":"\"991\"","v":"991"},"CASE MANAGEMENT AGENCY","CASE MANAGEMENT AGENCY","251B00000X","CASE MANAGEMENT"]
["171100000X",{"$f":"\"97\"","v":"97"},{"$f":"\"800\"","v":"800"},"MANAGED CARE TREATING PROVIDER - NON-MEDICAID","MANAGED CARE TREATING PROVIDER - ACUPUNCTURIST","171100000X","ACUPUNCTURIST"]
["133N00000X",{"$f":"\"97\"","v":"97"},{"$f":"\"801\"","v":"801"},"MANAGED CARE TREATING PROVIDER - NON-MEDICAID","MANAGED CARE TREATING PROVIDER - NUTRITIONIST","133N00000X","NUTRITIONIST"]
["261QM1200X",{"$f":"\"97\"","v":"97"},{"$f":"\"802\"","v":"802"},"MANAGED CARE TREATING PROVIDER - NON-MEDICAID","MANAGED CARE TREATING PROVIDER - INDPDT DIAGNOST","261QM1200X","CLINIC/CENTER - MAGNETIC RESONANCE IMAGING (MRI)"]